Workbook

Sheet INTRO
D3: REVENUE MODEL TOOL
C7: VERSION | D7: 1.0 | F7: © ACCESS4SMEs PROJECT REF. H2020-723120
C9: Disclaimer: This excel sheet is generated for the free use for H2020 participants. The project decline any responsibility for its incorrect use or for any conclusions obtained with its use.
C12: INPUTS
C14: SELECT_BM | E14: This sheet will guide you through different business model options and allows you to select your revenue streams
C15: COST_HYPOTHESIS | E15: This sheet will allow to define the main cost categories of your business model
C16: GROWTH HYPOTHESIS | E16: This sheet allows you to define the growth parameters of your business model
C18: FINANCIAL MODELS
C20: FM_ONE OFF | E20: This excel sheet allows you to calculate your financial projections for business models using one-off revenue models
C22: FM_RECURRENT | E22: This excel sheet allows you to estimate your financial projections in business model when your revenue is based on recurrent fees
C24: FM_ONE OFF_DOUBLE | E24: This excel sheet allows you to calculate your financial projections for business models using double one-off revenue models
C26: FM_COMBINED | E26: This excel sheet allows you to estimate your financial projections in business models with revenues based on fees + one-off sales
C28: FINANCIAL MODELS
C30: GR_FM_ONE OFF | E30: This graph summarize the yearly projection of your business model when your revenue is based on one off sales
C32: GR_FM_RECURRENT | E32: This graph summarize the yearly projection of your business model when your revenue is based on one off sales
C34: GR_FM_ONE OFF_DOUBLE | E34: This graph summarize the yearly projection of your business model when your revenue is based on double one-off sales
C36: GR_FM_COMBINED | E36: This graph summarize the yearly projection of your business model when your revenue is based on recurrent fees + one off sales

Sheet GROWTH_Hypothesis
A1: Number | B1: Business model type | C1: Description | D1: Product or service? | E1: Revenue type | F1: Main Revenue | G1: Secondary revenue | H1: Ownership or right? | I1: Example | J1: KPI 1 | K1: KPI 2 | L1: KPI3 | M1: KPI4 | N1: KPI5 | O1: Financial model
A2: 1 | B2: Razor-blade | C2: Consumer purchases a low-margin item and then the necessary consumable as replacement with high margin (Nesspreso-Guillette) | D2: Product | E2: Mainly one-off | F2: consumables high cost | G2: Initial purchase low cost | H2: Ownership | I2: Nesspreso | J2: Average consumable price | K2: % Increase of new consumable transactions | L2: Average initial purchase price | M2: % Increase of new transactions | O2: FM one-off double
A3: =A2+1 -> 2 | B3: Inverted razor-blade | C3: Initial purchase has a high margin, but consumables are sold at low margin | D3: Product | E3: Mainly one-off | F3: Initial purchase high cost | G3: consumables low cost | H3: Ownership | I3: Apple Ipod & Itunes | J3: Average initial purchase price | K3: % Increase of new transactions | L3: Average consumable price | M3: % Increase of new consumable transactions | O3: FM one-off double
A4: =A3+1 -> 3 | B4: Upselling | C4: High percentage of buyers ultimately purchase more than they expected in extra features or finishings. (For instance, car dealers) | D4: Product | E4: one-off | F4: Transaction | G4: Extra features | H4: Ownership | I4: Audi | J4: Average transaction amount | K4: % Increase of new transactions | L4: Average upselling price | M4: % increase in upsellings | O4: FM one-off double
A5: 4 | B5: High volume low margin | C5: Marketing with low margins at large quatities | D5: Product | E5: one-off | F5: Transaction | H5: Ownership | I5: T-shirt | J5: Average transaction amount | K5: % Increase of new transactions | O5: 1 FM one-off
A6: 5 | B6: Bundling pricing model | C6: Sell together, as a combined product, several products and/or services. | D6: Product/Service | E6: one-off | F6: Transaction | G6: complementary features | H6: Ownership | I6: Mc Menu | J6: Average transaction price | K6: % Increase of transactions | O6: 1 FM one-off
A7: 6 | B7: Pay per use | C7: Clients are charged as the usage of the product/service. | D7: Product/Service | E7: Recurrent | F7: Consumption fee | H7: Right | I7: Iberdrola | J7: Average consumption invoice | K7: % increase of consumption | L7: % Increase of new customers | M7: % stops subscriptions | O7: 1 FM Recurrent
A8: 7 | B8: Nick and dime | C8: Price the most cost-sensitive item as low as possible and then charge for every little extra. | D8: Service | E8: one-off | F8: Transaction | G8: complementary features | H8: Ownership/right | I8: Ryan Air | J8: Average transaction amount | K8: % Increase of new transactions | L8: Average complementary price | M8: % increase in complementary transactions | O8: FM one-off double
A9: 8 | B9: Service-as-a product | C9: Standardizing a predetermined set of services typically bought together and selling for a fixed price similar to a product | D9: Service | E9: one-off | F9: Transaction | H9: Ownership | I9: Consultancy | J9: Average transaction price | K9: % Increase of new transactions | O9: 1 FM one-off
A10: 9 | B10: Franchise (royalty based) model | C10: Sell the right to use the business model in exchange for a percentage of revenues. | D10: Product/Service | E10: Recurrent | F10: Franchise fee | H10: Right | I10: Mc Donalds | J10: Average fee | K10: % Increase of new customers | L10: % stops subscriptions | O10: 1 FM Recurrent
A11: 10 | B11: Subscription | C11: Clients are charged as the usage/access of the product/service a subscription fee. | D11: Service | E11: Recurrent | F11: Subscription fee | H11: Right | I11: Newspaper | J11: Average fee | K11: % Increase of new customers | L11: % stops subscriptions | O11: 1 FM Recurrent
A12: 11 | B12: Unfair advantage | C12: Ccapacity to charge a high margin due to an unfair advantage(locations, events, dependence…) | D12: Product/Service | E12: one-off | F12: Transaction | H12: ownership/right | I12: Disneyland | J12: Average transaction price | K12: % Increase of new transactions | O12: 1 FM one-off
A13: 12 | B13: Demand driven service | C13: Quick adaptation of pricing of the service to the demand. | D13: Service | E13: one-off | F13: Transaction | H13: Right | I13: Airlines | J13: Average transaction price vs demand | K13: % Increase of new transaction | O13: 1 FM one-off
A14: 13 | B14: Premium | C14: Offer high-end products that appeal to brand-conscious consumers | D14: Product/Service | E14: one-off | F14: Transaction | H14: Ownership | I14: Rolls Royce | J14: Average transaction price | K14: % Increase of new transactions | O14: 1 FM one-off
A15: 14 | B15: Cheap-chic | C15: Marketing of stylish but inexpensive items at high margins. | D15: Product | E15: one-off | F15: Transaction | H15: Ownership | I15: IKEA | J15: Average transaction price | K15: % Increase of new transactions | O15: 1 FM one-off
A16: 15 | B16: High margin-low volume | C16: Selling large and expensive one-off transactions. | D16: Product/Service | E16: one-off | F16: Transaction | H16: Ownership | I16: Engineer | J16: Average transaction price | K16: % Increase of new transactions | O16: 1 FM one-off
A17: 16 | B17: Leasing (product as a a service) | C17: The product is not transferred to the buyer, but it has the rights to use it for a given period. | D17: Product | E17: Recurrent | F17: Subscription fee | H17: Exclusive Right | I17: Caterpillar | J17: Average fee | K17: % Increase of new customers | L17: % stops subscriptions | O17: 1 FM Recurrent
A18: 17 | B18: Discrete fees | C18: Charge different rates for discrete level of services | D18: Service | E18: Recurrent | F18: Subscription fee | H18: Right | I18: Movistar | J18: Average fee | K18: % Increase of new customers per fee level | L18: % stops subscriptions per fee | O18: 1 FM Recurrent per fee level
A19: 18 | B19: Freemium | C19: Product is offered for free and typically 8% of users upgrade to become paying customers of virtual goods or to get expanded access | D19: Product/Service | E19: Recurrent | F19: Subscription fee | H19: Right | I19: Linkedin | J19: Average subscription fee | K19: % Increase of new customers | L19: % stops subscriptions | O19: 1 FM Recurrent
A20: 19 | B20: Flat fee | C20: Most of the purchase in a period is included in a fee | D20: Service | E20: Recurrent | F20: Subscription fee | H20: Right | I20: Amazon Premium | J20: Average fee | K20: % Increase of new customers | L20: % stops subscriptions | O20: 1 FM Recurrent
A21: 20 | B21: Advertising-based | C21: A third party pays for accessing you users base | D21: Product/Service | E21: Recurrent | F21: Subscription fee | H21: Right | I21: 20min | J21: Average fee | K21: % Increase of new customers | L21: % stops subscriptions | O21: 1 FM Recurrent
A22: 21 | B22: Market place | C22: Bring together buyers and sellers, offering targeted products/services | D22: Service | E22: one-off | F22: Transaction | G22: Subscription fee | H22: Right | J22: Average fee | K22: % Increase of new customers | L22: % stops subscriptions | M22: Average transaction price | N22: % Increase of new transactions | O22: 1 FM combined
A23: 22 | B23: Auction-like model | C23: Create a community of buyers and sellers by using an auction-type selling process versus a set sales price | D23: Product/Service | E23: one-off | F23: Transaction fee | G23: Subscription fee | H23: Right | I23: Ebay | J23: Average fee | K23: % Increase of new customers | L23: % stops subscriptions | M23: Average transaction price | N23: % Increase of new transactions | O23: 1 FM combined
A24: 23 | B24: Matchmaking platform | C24: Bring together buyers and sellers, skipping intermediation | D24: Service | E24: one-off | F24: Transaction fee | G24: Subscription fee | H24: Right | I24: Wallapop | J24: Average fee | K24: % Increase of new customers | L24: % stops subscriptions | M24: Average transaction price | N24: % Increase of new transactions | O24: 1 FM combined
A25: 24 | B25: Affiliation-signposting | C25: Sell the right to sell others product exclusively to you clients | D25: Service | E25: Recurrent | F25: Subscription fee | G25: Trasaction fee | H25: Right | J25: Average fee | K25: % Increase of new customers | L25: % stops subscriptions | M25: Average transaction price | N25: % Increase of new transactions | O25: 1 FM combined
B26: Free combination | J26: Average fee | K26: % Increase of new customers | L26: % stops subscriptions | M26: Average transaction price | N26: % Increase of new transactions
B29: FM_recurrent
B30: Pay per use
B31: Franchise model
B32: Subscription
B33: Leasing
B34: Discrete fees
B35: Freemium
B36: Flat fee
B37: Advertising
B38: Auction-like model
B39: FM_oneoff double
B40: Razor-blade
B41: Inverted razor-blade
B42: Upselling
B43: Nick and dime
B44: Product bundled into service
B45: FM_oneoff
B46: Drop to drop
B47: Service into product
B48: Unfair Affiliation
B49: Demand driven service
B50: Premium
B51: Cheap-chic
B52: Project to project
B53: Market place
B54: Matchmaking platform
B55: FM_combined
B56: Affiliation-signposting

Sheet COST_Hypothesis
B1: Cost name | C1: FM ONE OFF | D1: FM RECURRENT | E1: FM ONE OFF DOUBLE 1 | F1: FM ONE OFF DOUBLE 2 | G1: FM COMBINED RECURRENT | H1: FM COMBINED ON OFF
A2: Cost definition | B2: Direct | C2: % of total prize | D2: % of total prize | E2: % of total prize | F2: % of total prize | G2: % of total prize | H2: % of total prize
A3: Cost for manufacturing a product, including personnel, raw material, equipment… or outsourced | B3: Manufacturing cost | C3: 0.15 | D3: 0 | E3: 0.35 | F3: 0.1 | G3: 0 | H3: 0.1
A4: Cost for assembly the different parts of the product if the product is not assembly from manufacturing | B4: Assembly cost | C4: 0.05 | D4: 0 | E4: 0.05 | F4: 0.05 | G4: 0.05 | H4: 0.1
A5: Cost for the packaging of the product for its safe and easy delivery | B5: Packaging cost | C5: 0.01 | D5: 0 | E5: 0.01 | F5: 0.01 | G5: 0.01 | H5: 0.2
A6: Cost for stocks | B6: Warehouse cost | C6: 0.03 | D6: 0 | E6: 0.03 | F6: 0.03 | G6: 0.03 | H6: 0
A7: Cost for putting the product within the client premises-delivery the service to the client | B7: Delivery cost | C7: 0.01 | D7: 0.15 | E7: 0.01 | F7: 0.01 | G7: 0.2 | H7: 0.15
A8: Cost and taxes due to export the product internationally | B8: Exporting cost | C8: 0.02 | D8: 0 | E8: 0.02 | F8: 0.02 | G8: 0.02 | H8: 0
A9: Cost for maintence of the product, including aftersales support (including services) | B9: Maintenance cost | C9: 0.15 | D9: 0.15 | E9: 0.15 | F9: 0.05 | G9: 0.15 | H9: 0.15
A10: Cost for hosting any web based element in internet (if the case) | B10: Hosting cost | C10: 0.05 | D10: 0.2 | E10: 0.05 | F10: 0.05 | G10: 0.2 | H10: 0
A11: Payment fees | B11: Payment cost | C11: 0.03 | D11: 0.03 | E11: 0.03 | F11: 0.03 | G11: 0.03 | H11: 0.03
A12: MARGIN | C12: =1-SUM(C3:C11) -> 0.5 | D12: =1-SUM(D3:D11) -> 0.47 | E12: =1-SUM(E3:E11) -> 0.3 | F12: 0.65 | G12: 0.31 | H12: 0.27
B13: Indirect | C13: Cost/month | D13: Cost/month | E13: Cost/month | F13: Cost/month | G13: Cost/month | H13: Cost/month
A14: Cost for running the company & its administration (venues, indirect personnel) (admin cost) | B14: Running cost | C14: 10000 | D14: 15000 | E14: 20000 | F14: 500 | G14: 10000 | H14: 5000
A15: Cost for a direct acquisition of a client for the product (direct sales dept, events...) (marketing cost) | B15: Acquisition cost | C15: 10000 | D15: 15000 | E15: 20000 | F15: 500 | G15: 10000 | H15: 5000
A16: Cost for an indirect acquisition of a client for the product (fees from resellers, …) (marketing cost) | B16: Intermediation cost | C16: 10000 | D16: 15000 | E16: 20000 | F16: 500 | G16: 10000 | H16: 5000
A17: Cost for design and developing the product/service (R&D cost) | B17: Development cost | C17: 10000 | D17: 15000 | E17: 20000 | F17: 500 | G17: 10000 | H17: 5000
A18: Cost for updating the product/service to newer versions (if needed) (R&D cost) | B18: Updating cost | C18: 10000 | D18: 15000 | E18: 20000 | F18: 500 | G18: 10000 | H18: 5000

Sheet Financial Model ONE-OFF
A1: Select your revenue model | B1: KPI definition | C1: Time evolution (year 1) | G1: Time evolution (year 2) | K1: Time evolution (year 3)
A2: Premium | B2: KPI linked to the revenue model | C2: Q1 | D2: Q2 | E2: Q3 | F2: Q4 | G2: Q1 | H2: Q2 | I2: Q3 | J2: Q4 | K2: Q1 | L2: Q2 | M2: Q3 | N2: Q4
A3: KPI 1 | B3: =VLOOKUP(A$2,GROWTH_Hypothesis!B$1:O$25,9,0) -> Average transaction price | C3: 70 | D3: 70 | E3: 70 | F3: 70 | G3: 80 | H3: 80 | I3: 80 | J3: 80 | K3: 100 | L3: 100 | M3: 100 | N3: 100
A4: KPI 2 | B4: =VLOOKUP(A$2,GROWTH_Hypothesis!B$1:O$25,10,0) -> % Increase of new transactions | C4: 0.2 | D4: 0.3 | E4: 0.4 | F4: 0.3 | G4: 0.2 | H4: 0.3 | I4: 0.4 | J4: 0.3 | K4: 0.2 | L4: 0.3 | M4: 0.4 | N4: 0.3
A5: KPI 3 | B5: =VLOOKUP(A$2,GROWTH_Hypothesis!B$1:O$25,11,0) -> 0
A6: KPI 4 | B6: =VLOOKUP(A$2,GROWTH_Hypothesis!B$1:O$25,12,0) -> 0
A7: KPI 5 | B7: =VLOOKUP(A$2,GROWTH_Hypothesis!B$1:O$25,13,0) -> 0
A8: Starting transactions | B8: 50
A9: Starting revenue | B9: =B8*C3 -> 3500
C10: Year 1 | O10: Year 2 | AA10: Year 3
A11: Month N | C11: 1 | D11: =C11+1 -> 2 | E11: =D11+1 -> 3 | F11: 4 | G11: 5 | H11: 6 | I11: 7 | J11: 8 | K11: 9 | L11: 10 | M11: 11 | N11: 12 | O11: 13 | P11: 14 | Q11: 15 | R11: 16 | S11: 17 | T11: 18 | U11: 19 | V11: 20 | W11: 21 | X11: 22 | Y11: 23 | Z11: 24 | AA11: 25 | AB11: 26 | AC11: 27 | AD11: 28 | AE11: 29 | AF11: 30 | AG11: 31 | AH11: 32 | AI11: 33 | AJ11: 34 | AK11: 35 | AL11: 36
A12: REVENUE STREAM ONE-OFF
A14: Revenue & customer Growth
B15: =B3 -> Average transaction price | C15: =$C3 -> 70 | D15: =$C3 -> 70 | E15: 70 | F15: =$D3 -> 70 | G15: =$D3 -> 70 | H15: 70 | I15: =$E3 -> 70 | J15: =$E3 -> 70 | K15: 70 | L15: =$F3 -> 70 | M15: =$F3 -> 70 | N15: 70 | O15: =$G3 -> 80 | P15: =$G3 -> 80 | Q15: =$G3 -> 80 | R15: =$H3 -> 80 | S15: =$H3 -> 80 | T15: =$H3 -> 80 | U15: =$I3 -> 80 | V15: =$I3 -> 80 | W15: =$I3 -> 80 | X15: =$J3 -> 80 | Y15: =$J3 -> 80 | Z15: =$J3 -> 80 | AA15: =$K3 -> 100 | AB15: =$K3 -> 100 | AC15: =$K3 -> 100 | AD15: =$L3 -> 100 | AE15: =$L3 -> 100 | AF15: =$L3 -> 100 | AG15: =$M3 -> 100 | AH15: =$M3 -> 100 | AI15: =$M3 -> 100 | AJ15: =$N3 -> 100 | AK15: =$N3 -> 100 | AL15: =$N3 -> 100
B16: Transactions/month | C16: =B8+B8*C4 -> 60 | D16: =C16+C16*$C4 -> 72 | E16: =D16+D16*$C4 -> 86.4 | F16: =E16+E16*$D4 -> 112.32 | G16: =F16+F16*$D4 -> 146.016 | H16: 189.8208 | I16: =H16+H16*$E4 -> 265.74912 | J16: =I16+I16*$E4 -> 372.048768 | K16: =J16+J16*$E4 -> 520.8682752 | L16: =K16+K16*$F4 -> 677.1287578 | M16: =L16+L16*$F4 -> 880.2673851 | N16: =M16+M16*$F4 -> 1144.347601 | O16: =N16+N16*$G4 -> 1373.217121 | P16: =O16+O16*$G4 -> 1647.860545 | Q16: =P16+P16*$G4 -> 1977.432654 | R16: =Q16+Q16*$H4 -> 2570.66245 | S16: =R16+R16*$H4 -> 3341.861185 | T16: =S16+S16*$H4 -> 4344.419541 | U16: =T16+T16*$I4 -> 6082.187357 | V16: =U16+U16*$I4 -> 8515.062299 | W16: =V16+V16*$I4 -> 11921.08722 | X16: =W16+W16*$J4 -> 15497.41338 | Y16: =X16+X16*$J4 -> 20146.6374 | Z16: =Y16+Y16*$J4 -> 26190.62862 | AA16: =Z16+Z16*$K4 -> 31428.75434 | AB16: =AA16+AA16*$K4 -> 37714.50521 | AC16: =AB16+AB16*$K4 -> 45257.40626 | AD16: =AC16+AC16*$L4 -> 58834.62813 | AE16: =AD16+AD16*$L4 -> 76485.01657 | AF16: =AE16+AE16*$L4 -> 99430.52155 | AG16: =AF16+AF16*$M4 -> 139202.7302 | AH16: =AG16+AG16*$M4 -> 194883.8222 | AI16: =AH16+AH16*$M4 -> 272837.3511 | AJ16: =AI16+AI16*$N4 -> 354688.5565 | AK16: =AJ16+AJ16*$N4 -> 461095.1234 | AL16: =AK16+AK16*$N4 -> 599423.6604
A19: Month One-off Revenue
B20: New MooR | C20: =C16*C15 -> 4200 | D20: 5040 | E20: =E16*E15 -> 6048 | F20: 7862.4 | G20: 10221.12 | H20: =H16*H15 -> 13287.456 | I20: 18602.4384 | J20: 26043.41376 | K20: 36460.77926 | L20: 47399.01304 | M20: 61618.71696 | N20: 80104.33204 | O20: 109857.3697 | P20: 131828.8436 | Q20: 158194.6123 | R20: 205652.996 | S20: 267348.8948 | T20: =T16*T15 -> 347553.5632 | U20: 486574.9885 | V20: 681204.984 | W20: 953686.9775 | X20: 1239793.071 | Y20: 1611730.992 | Z20: 2095250.29 | AA20: 3142875.434 | AB20: 3771450.521 | AC20: 4525740.626 | AD20: 5883462.813 | AE20: 7648501.657 | AF20: 9943052.155 | AG20: 13920273.02 | AH20: 19488382.22 | AI20: 27283735.11 | AJ20: 35468855.65 | AK20: 46109512.34 | AL20: 59942366.04
B21: Last MooR | C21: =B9 -> 3500 | D21: =C20 -> 4200 | E21: 5040 | F21: 6048 | G21: 7862.4 | H21: 10221.12 | I21: 13287.456 | J21: 18602.4384 | K21: 26043.41376 | L21: 36460.77926 | M21: 47399.01304 | N21: 61618.71696 | O21: 80104.33204 | P21: =O20 -> 109857.3697 | Q21: =P20 -> 131828.8436 | R21: =Q20 -> 158194.6123 | S21: =R20 -> 205652.996 | T21: =S20 -> 267348.8948 | U21: =T20 -> 347553.5632 | V21: =U20 -> 486574.9885 | W21: =V20 -> 681204.984 | X21: =W20 -> 953686.9775 | Y21: =X20 -> 1239793.071 | Z21: =Y20 -> 1611730.992 | AA21: 2095250.29 | AB21: =AA20 -> 3142875.434 | AC21: =AB20 -> 3771450.521 | AD21: =AC20 -> 4525740.626 | AE21: =AD20 -> 5883462.813 | AF21: =AE20 -> 7648501.657 | AG21: =AF20 -> 9943052.155 | AH21: =AG20 -> 13920273.02 | AI21: =AH20 -> 19488382.22 | AJ21: =AI20 -> 27283735.11 | AK21: =AJ20 -> 35468855.65 | AL21: =AK20 -> 46109512.34
B22: increase of MooR | C22: =C20-C21 -> 700 | D22: 840 | E22: 1008 | F22: 1814.4 | G22: 2358.72 | H22: 3066.336 | I22: 5314.9824 | J22: 7440.97536 | K22: 10417.3655 | L22: 10938.23378 | M22: 14219.70391 | N22: 18485.61509 | O22: =O20-O21 -> 29753.03762 | P22: 21971.47393 | Q22: 26365.76872 | R22: 47458.38369 | S22: 61695.8988 | T22: 80204.66844 | U22: 139021.4253 | V22: 194629.9954 | W22: 272481.9936 | X22: 286106.0933 | Y22: 371937.9212 | Z22: 483519.2976 | AA22: 1047625.145 | AB22: 628575.0869 | AC22: 754290.1043 | AD22: 1357722.188 | AE22: 1765038.844 | AF22: 2294550.497 | AG22: 3977220.862 | AH22: 5568109.207 | AI22: 7795352.889 | AJ22: 8185120.534 | AK22: 10640656.69 | AL22: 13832853.7
B23: Gross MooR | C23: =C20 -> 4200 | D23: 5040 | E23: 6048 | F23: 7862.4 | G23: 10221.12 | H23: 13287.456 | I23: 18602.4384 | J23: 26043.41376 | K23: 36460.77926 | L23: 47399.01304 | M23: 61618.71696 | N23: 80104.33204 | O23: =O20 -> 109857.3697 | P23: 131828.8436 | Q23: 158194.6123 | R23: 205652.996 | S23: 267348.8948 | T23: 347553.5632 | U23: 486574.9885 | V23: 681204.984 | W23: 953686.9775 | X23: 1239793.071 | Y23: 1611730.992 | Z23: 2095250.29 | AA23: 3142875.434 | AB23: 3771450.521 | AC23: 4525740.626 | AD23: 5883462.813 | AE23: 7648501.657 | AF23: 9943052.155 | AG23: 13920273.02 | AH23: 19488382.22 | AI23: 27283735.11 | AJ23: 35468855.65 | AK23: 46109512.34 | AL23: 59942366.04
B24: MooR Growth rate | C24: =C22/C23 -> 0.1666666667 | D24: 0.1666666667 | E24: 0.1666666667 | F24: 0.2307692308 | G24: 0.2307692308 | H24: 0.2307692308 | I24: 0.2857142857 | J24: 0.2857142857 | K24: 0.2857142857 | L24: 0.2307692308 | M24: 0.2307692308 | N24: 0.2307692308 | O24: =O22/O23 -> 0.2708333333 | P24: 0.1666666667 | Q24: 0.1666666667 | R24: 0.2307692308 | S24: 0.2307692308 | T24: 0.2307692308 | U24: 0.2857142857 | V24: 0.2857142857 | W24: 0.2857142857 | X24: 0.2307692308 | Y24: 0.2307692308 | Z24: 0.2307692308 | AA24: 0.3333333333 | AB24: 0.1666666667 | AC24: 0.1666666667 | AD24: 0.2307692308 | AE24: 0.2307692308 | AF24: 0.2307692308 | AG24: 0.2857142857 | AH24: 0.2857142857 | AI24: 0.2857142857 | AJ24: 0.2307692308 | AK24: 0.2307692308 | AL24: 0.2307692308
B25: Payment Processing cost | C25: =C23*0.03 -> 126 | D25: 151.2 | E25: 181.44 | F25: 235.872 | G25: 306.6336 | H25: 398.62368 | I25: 558.073152 | J25: 781.3024128 | K25: 1093.823378 | L25: 1421.970391 | M25: 1848.561509 | N25: 2403.129961 | O25: =O23*0.03 -> 3295.72109 | P25: 3954.865308 | Q25: 4745.838369 | R25: 6169.58988 | S25: 8020.466844 | T25: 10426.6069 | U25: 14597.24966 | V25: 20436.14952 | W25: 28610.60933 | X25: 37193.79212 | Y25: 48351.92976 | Z25: 62857.50869 | AA25: 94286.26303 | AB25: 113143.5156 | AC25: 135772.2188 | AD25: 176503.8844 | AE25: 229455.0497 | AF25: 298291.5646 | AG25: 417608.1905 | AH25: 584651.4667 | AI25: 818512.0534 | AJ25: 1064065.669 | AK25: 1383285.37 | AL25: 1798270.981
B26: Net MooR | C26: =C23-C25 -> 4074 | D26: 4888.8 | E26: =E23-E25 -> 5866.56 | F26: 7626.528 | G26: 9914.4864 | H26: =H23-H25 -> 12888.83232 | I26: 18044.36525 | J26: 25262.11135 | K26: 35366.95589 | L26: 45977.04265 | M26: 59770.15545 | N26: 77701.20208 | O26: 106561.6486 | P26: 127873.9783 | Q26: 153448.7739 | R26: 199483.4061 | S26: 259328.428 | T26: =T23-T25 -> 337126.9563 | U26: 471977.7389 | V26: 660768.8344 | W26: 925076.3682 | X26: 1202599.279 | Y26: 1563379.062 | Z26: 2032392.781 | AA26: 3048589.171 | AB26: 3658307.006 | AC26: 4389968.407 | AD26: 5706958.929 | AE26: 7419046.608 | AF26: 9644760.59 | AG26: 13502664.83 | AH26: 18903730.76 | AI26: 26465223.06 | AJ26: 34404789.98 | AK26: 44726226.97 | AL26: 58144095.06
B28: Accumulated Net MooR | C28: =C26 -> 4074 | D28: =C28+D26 -> 8962.8 | E28: =D28+E26 -> 14829.36 | F28: 22455.888 | G28: 32370.3744 | H28: 45259.20672 | I28: 63303.57197 | J28: 88565.68332 | K28: 123932.6392 | L28: 169909.6819 | M28: 229679.8373 | N28: 307381.0394 | O28: 413942.688 | P28: 541816.6662 | Q28: 695265.4402 | R28: 894748.8463 | S28: 1154077.274 | T28: 1491204.231 | U28: 1963181.969 | V28: 2623950.804 | W28: 3549027.172 | X28: 4751626.451 | Y28: 6315005.513 | Z28: 8347398.294 | AA28: 11395987.47 | AB28: 15054294.47 | AC28: 19444262.88 | AD28: 25151221.81 | AE28: 32570268.41 | AF28: 42215029 | AG28: 55717693.83 | AH28: 74621424.59 | AI28: 101086647.6 | AJ28: 135491437.6 | AK28: 180217664.6 | AL28: 238361759.7
A30: COSTS OF GOOD SOLD
A32: Cost of goods sold per transaction
B33: =COST_Hypothesis!B3 -> Manufacturing cost | C33: =C$15*COST_Hypothesis!$C3*C$16 -> 630 | D33: =D$15*COST_Hypothesis!$C3*D$16 -> 756 | E33: =E$15*COST_Hypothesis!$C3*E$16 -> 907.2 | F33: =F$15*COST_Hypothesis!$C3*F$16 -> 1179.36 | G33: =G$15*COST_Hypothesis!$C3*G$16 -> 1533.168 | H33: =H$15*COST_Hypothesis!$C3*H$16 -> 1993.1184 | I33: =I$15*COST_Hypothesis!$C3*I$16 -> 2790.36576 | J33: =J$15*COST_Hypothesis!$C3*J$16 -> 3906.512064 | K33: =K$15*COST_Hypothesis!$C3*K$16 -> 5469.11689 | L33: =L$15*COST_Hypothesis!$C3*L$16 -> 7109.851956 | M33: =M$15*COST_Hypothesis!$C3*M$16 -> 9242.807543 | N33: =N$15*COST_Hypothesis!$C3*N$16 -> 12015.64981 | O33: =O$15*COST_Hypothesis!$C3*O$16 -> 16478.60545 | P33: =P$15*COST_Hypothesis!$C3*P$16 -> 19774.32654 | Q33: =Q$15*COST_Hypothesis!$C3*Q$16 -> 23729.19185 | R33: =R$15*COST_Hypothesis!$C3*R$16 -> 30847.9494 | S33: =S$15*COST_Hypothesis!$C3*S$16 -> 40102.33422 | T33: =T$15*COST_Hypothesis!$C3*T$16 -> 52133.03449 | U33: =U$15*COST_Hypothesis!$C3*U$16 -> 72986.24828 | V33: =V$15*COST_Hypothesis!$C3*V$16 -> 102180.7476 | W33: =W$15*COST_Hypothesis!$C3*W$16 -> 143053.0466 | X33: =X$15*COST_Hypothesis!$C3*X$16 -> 185968.9606 | Y33: =Y$15*COST_Hypothesis!$C3*Y$16 -> 241759.6488 | Z33: =Z$15*COST_Hypothesis!$C3*Z$16 -> 314287.5434 | AA33: =AA$15*COST_Hypothesis!$C3*AA$16 -> 471431.3152 | AB33: =AB$15*COST_Hypothesis!$C3*AB$16 -> 565717.5782 | AC33: =AC$15*COST_Hypothesis!$C3*AC$16 -> 678861.0938 | AD33: =AD$15*COST_Hypothesis!$C3*AD$16 -> 882519.422 | AE33: =AE$15*COST_Hypothesis!$C3*AE$16 -> 1147275.249 | AF33: =AF$15*COST_Hypothesis!$C3*AF$16 -> 1491457.823 | AG33: =AG$15*COST_Hypothesis!$C3*AG$16 -> 2088040.952 | AH33: =AH$15*COST_Hypothesis!$C3*AH$16 -> 2923257.333 | AI33: =AI$15*COST_Hypothesis!$C3*AI$16 -> 4092560.267 | AJ33: =AJ$15*COST_Hypothesis!$C3*AJ$16 -> 5320328.347 | AK33: =AK$15*COST_Hypothesis!$C3*AK$16 -> 6916426.851 | AL33: =AL$15*COST_Hypothesis!$C3*AL$16 -> 8991354.906
B34: =COST_Hypothesis!B4 -> Assembly cost | C34: =C$15*COST_Hypothesis!$C4*C$16 -> 210 | D34: =D$15*COST_Hypothesis!$C4*D$16 -> 252 | E34: =E$15*COST_Hypothesis!$C4*E$16 -> 302.4 | F34: =F$15*COST_Hypothesis!$C4*F$16 -> 393.12 | G34: =G$15*COST_Hypothesis!$C4*G$16 -> 511.056 | H34: =H$15*COST_Hypothesis!$C4*H$16 -> 664.3728 | I34: =I$15*COST_Hypothesis!$C4*I$16 -> 930.12192 | J34: =J$15*COST_Hypothesis!$C4*J$16 -> 1302.170688 | K34: =K$15*COST_Hypothesis!$C4*K$16 -> 1823.038963 | L34: =L$15*COST_Hypothesis!$C4*L$16 -> 2369.950652 | M34: =M$15*COST_Hypothesis!$C4*M$16 -> 3080.935848 | N34: =N$15*COST_Hypothesis!$C4*N$16 -> 4005.216602 | O34: =O$15*COST_Hypothesis!$C4*O$16 -> 5492.868483 | P34: =P$15*COST_Hypothesis!$C4*P$16 -> 6591.44218 | Q34: =Q$15*COST_Hypothesis!$C4*Q$16 -> 7909.730615 | R34: =R$15*COST_Hypothesis!$C4*R$16 -> 10282.6498 | S34: =S$15*COST_Hypothesis!$C4*S$16 -> 13367.44474 | T34: =T$15*COST_Hypothesis!$C4*T$16 -> 17377.67816 | U34: =U$15*COST_Hypothesis!$C4*U$16 -> 24328.74943 | V34: =V$15*COST_Hypothesis!$C4*V$16 -> 34060.2492 | W34: =W$15*COST_Hypothesis!$C4*W$16 -> 47684.34888 | X34: =X$15*COST_Hypothesis!$C4*X$16 -> 61989.65354 | Y34: =Y$15*COST_Hypothesis!$C4*Y$16 -> 80586.5496 | Z34: =Z$15*COST_Hypothesis!$C4*Z$16 -> 104762.5145 | AA34: =AA$15*COST_Hypothesis!$C4*AA$16 -> 157143.7717 | AB34: =AB$15*COST_Hypothesis!$C4*AB$16 -> 188572.5261 | AC34: =AC$15*COST_Hypothesis!$C4*AC$16 -> 226287.0313 | AD34: =AD$15*COST_Hypothesis!$C4*AD$16 -> 294173.1407 | AE34: =AE$15*COST_Hypothesis!$C4*AE$16 -> 382425.0829 | AF34: =AF$15*COST_Hypothesis!$C4*AF$16 -> 497152.6077 | AG34: =AG$15*COST_Hypothesis!$C4*AG$16 -> 696013.6508 | AH34: =AH$15*COST_Hypothesis!$C4*AH$16 -> 974419.1111 | AI34: =AI$15*COST_Hypothesis!$C4*AI$16 -> 1364186.756 | AJ34: =AJ$15*COST_Hypothesis!$C4*AJ$16 -> 1773442.782 | AK34: =AK$15*COST_Hypothesis!$C4*AK$16 -> 2305475.617 | AL34: =AL$15*COST_Hypothesis!$C4*AL$16 -> 2997118.302
B35: =COST_Hypothesis!B5 -> Packaging cost | C35: =C$15*COST_Hypothesis!$C5*C$16 -> 42 | D35: =D$15*COST_Hypothesis!$C5*D$16 -> 50.4 | E35: =E$15*COST_Hypothesis!$C5*E$16 -> 60.48 | F35: =F$15*COST_Hypothesis!$C5*F$16 -> 78.624 | G35: =G$15*COST_Hypothesis!$C5*G$16 -> 102.2112 | H35: =H$15*COST_Hypothesis!$C5*H$16 -> 132.87456 | I35: =I$15*COST_Hypothesis!$C5*I$16 -> 186.024384 | J35: =J$15*COST_Hypothesis!$C5*J$16 -> 260.4341376 | K35: =K$15*COST_Hypothesis!$C5*K$16 -> 364.6077926 | L35: =L$15*COST_Hypothesis!$C5*L$16 -> 473.9901304 | M35: =M$15*COST_Hypothesis!$C5*M$16 -> 616.1871696 | N35: =N$15*COST_Hypothesis!$C5*N$16 -> 801.0433204 | O35: =O$15*COST_Hypothesis!$C5*O$16 -> 1098.573697 | P35: =P$15*COST_Hypothesis!$C5*P$16 -> 1318.288436 | Q35: =Q$15*COST_Hypothesis!$C5*Q$16 -> 1581.946123 | R35: =R$15*COST_Hypothesis!$C5*R$16 -> 2056.52996 | S35: =S$15*COST_Hypothesis!$C5*S$16 -> 2673.488948 | T35: =T$15*COST_Hypothesis!$C5*T$16 -> 3475.535632 | U35: =U$15*COST_Hypothesis!$C5*U$16 -> 4865.749885 | V35: =V$15*COST_Hypothesis!$C5*V$16 -> 6812.04984 | W35: =W$15*COST_Hypothesis!$C5*W$16 -> 9536.869775 | X35: =X$15*COST_Hypothesis!$C5*X$16 -> 12397.93071 | Y35: =Y$15*COST_Hypothesis!$C5*Y$16 -> 16117.30992 | Z35: =Z$15*COST_Hypothesis!$C5*Z$16 -> 20952.5029 | AA35: =AA$15*COST_Hypothesis!$C5*AA$16 -> 31428.75434 | AB35: =AB$15*COST_Hypothesis!$C5*AB$16 -> 37714.50521 | AC35: =AC$15*COST_Hypothesis!$C5*AC$16 -> 45257.40626 | AD35: =AD$15*COST_Hypothesis!$C5*AD$16 -> 58834.62813 | AE35: =AE$15*COST_Hypothesis!$C5*AE$16 -> 76485.01657 | AF35: =AF$15*COST_Hypothesis!$C5*AF$16 -> 99430.52155 | AG35: =AG$15*COST_Hypothesis!$C5*AG$16 -> 139202.7302 | AH35: =AH$15*COST_Hypothesis!$C5*AH$16 -> 194883.8222 | AI35: =AI$15*COST_Hypothesis!$C5*AI$16 -> 272837.3511 | AJ35: =AJ$15*COST_Hypothesis!$C5*AJ$16 -> 354688.5565 | AK35: =AK$15*COST_Hypothesis!$C5*AK$16 -> 461095.1234 | AL35: =AL$15*COST_Hypothesis!$C5*AL$16 -> 599423.6604
B36: =COST_Hypothesis!B6 -> Warehouse cost | C36: =C$15*COST_Hypothesis!$C6*C$16 -> 126 | D36: =D$15*COST_Hypothesis!$C6*D$16 -> 151.2 | E36: =E$15*COST_Hypothesis!$C6*E$16 -> 181.44 | F36: =F$15*COST_Hypothesis!$C6*F$16 -> 235.872 | G36: =G$15*COST_Hypothesis!$C6*G$16 -> 306.6336 | H36: =H$15*COST_Hypothesis!$C6*H$16 -> 398.62368 | I36: =I$15*COST_Hypothesis!$C6*I$16 -> 558.073152 | J36: =J$15*COST_Hypothesis!$C6*J$16 -> 781.3024128 | K36: =K$15*COST_Hypothesis!$C6*K$16 -> 1093.823378 | L36: =L$15*COST_Hypothesis!$C6*L$16 -> 1421.970391 | M36: =M$15*COST_Hypothesis!$C6*M$16 -> 1848.561509 | N36: =N$15*COST_Hypothesis!$C6*N$16 -> 2403.129961 | O36: =O$15*COST_Hypothesis!$C6*O$16 -> 3295.72109 | P36: =P$15*COST_Hypothesis!$C6*P$16 -> 3954.865308 | Q36: =Q$15*COST_Hypothesis!$C6*Q$16 -> 4745.838369 | R36: =R$15*COST_Hypothesis!$C6*R$16 -> 6169.58988 | S36: =S$15*COST_Hypothesis!$C6*S$16 -> 8020.466844 | T36: =T$15*COST_Hypothesis!$C6*T$16 -> 10426.6069 | U36: =U$15*COST_Hypothesis!$C6*U$16 -> 14597.24966 | V36: =V$15*COST_Hypothesis!$C6*V$16 -> 20436.14952 | W36: =W$15*COST_Hypothesis!$C6*W$16 -> 28610.60933 | X36: =X$15*COST_Hypothesis!$C6*X$16 -> 37193.79212 | Y36: =Y$15*COST_Hypothesis!$C6*Y$16 -> 48351.92976 | Z36: =Z$15*COST_Hypothesis!$C6*Z$16 -> 62857.50869 | AA36: =AA$15*COST_Hypothesis!$C6*AA$16 -> 94286.26303 | AB36: =AB$15*COST_Hypothesis!$C6*AB$16 -> 113143.5156 | AC36: =AC$15*COST_Hypothesis!$C6*AC$16 -> 135772.2188 | AD36: =AD$15*COST_Hypothesis!$C6*AD$16 -> 176503.8844 | AE36: =AE$15*COST_Hypothesis!$C6*AE$16 -> 229455.0497 | AF36: =AF$15*COST_Hypothesis!$C6*AF$16 -> 298291.5646 | AG36: =AG$15*COST_Hypothesis!$C6*AG$16 -> 417608.1905 | AH36: =AH$15*COST_Hypothesis!$C6*AH$16 -> 584651.4667 | AI36: =AI$15*COST_Hypothesis!$C6*AI$16 -> 818512.0534 | AJ36: =AJ$15*COST_Hypothesis!$C6*AJ$16 -> 1064065.669 | AK36: =AK$15*COST_Hypothesis!$C6*AK$16 -> 1383285.37 | AL36: =AL$15*COST_Hypothesis!$C6*AL$16 -> 1798270.981
B37: =COST_Hypothesis!B7 -> Delivery cost | C37: =C$15*COST_Hypothesis!$C7*C$16 -> 42 | D37: =D$15*COST_Hypothesis!$C7*D$16 -> 50.4 | E37: =E$15*COST_Hypothesis!$C7*E$16 -> 60.48 | F37: =F$15*COST_Hypothesis!$C7*F$16 -> 78.624 | G37: =G$15*COST_Hypothesis!$C7*G$16 -> 102.2112 | H37: =H$15*COST_Hypothesis!$C7*H$16 -> 132.87456 | I37: =I$15*COST_Hypothesis!$C7*I$16 -> 186.024384 | J37: =J$15*COST_Hypothesis!$C7*J$16 -> 260.4341376 | K37: =K$15*COST_Hypothesis!$C7*K$16 -> 364.6077926 | L37: =L$15*COST_Hypothesis!$C7*L$16 -> 473.9901304 | M37: =M$15*COST_Hypothesis!$C7*M$16 -> 616.1871696 | N37: =N$15*COST_Hypothesis!$C7*N$16 -> 801.0433204 | O37: =O$15*COST_Hypothesis!$C7*O$16 -> 1098.573697 | P37: =P$15*COST_Hypothesis!$C7*P$16 -> 1318.288436 | Q37: =Q$15*COST_Hypothesis!$C7*Q$16 -> 1581.946123 | R37: =R$15*COST_Hypothesis!$C7*R$16 -> 2056.52996 | S37: =S$15*COST_Hypothesis!$C7*S$16 -> 2673.488948 | T37: =T$15*COST_Hypothesis!$C7*T$16 -> 3475.535632 | U37: =U$15*COST_Hypothesis!$C7*U$16 -> 4865.749885 | V37: =V$15*COST_Hypothesis!$C7*V$16 -> 6812.04984 | W37: =W$15*COST_Hypothesis!$C7*W$16 -> 9536.869775 | X37: =X$15*COST_Hypothesis!$C7*X$16 -> 12397.93071 | Y37: =Y$15*COST_Hypothesis!$C7*Y$16 -> 16117.30992 | Z37: =Z$15*COST_Hypothesis!$C7*Z$16 -> 20952.5029 | AA37: =AA$15*COST_Hypothesis!$C7*AA$16 -> 31428.75434 | AB37: =AB$15*COST_Hypothesis!$C7*AB$16 -> 37714.50521 | AC37: =AC$15*COST_Hypothesis!$C7*AC$16 -> 45257.40626 | AD37: =AD$15*COST_Hypothesis!$C7*AD$16 -> 58834.62813 | AE37: =AE$15*COST_Hypothesis!$C7*AE$16 -> 76485.01657 | AF37: =AF$15*COST_Hypothesis!$C7*AF$16 -> 99430.52155 | AG37: =AG$15*COST_Hypothesis!$C7*AG$16 -> 139202.7302 | AH37: =AH$15*COST_Hypothesis!$C7*AH$16 -> 194883.8222 | AI37: =AI$15*COST_Hypothesis!$C7*AI$16 -> 272837.3511 | AJ37: =AJ$15*COST_Hypothesis!$C7*AJ$16 -> 354688.5565 | AK37: =AK$15*COST_Hypothesis!$C7*AK$16 -> 461095.1234 | AL37: =AL$15*COST_Hypothesis!$C7*AL$16 -> 599423.6604
B38: =COST_Hypothesis!B8 -> Exporting cost | C38: =C$15*COST_Hypothesis!$C8*C$16 -> 84 | D38: =D$15*COST_Hypothesis!$C8*D$16 -> 100.8 | E38: =E$15*COST_Hypothesis!$C8*E$16 -> 120.96 | F38: =F$15*COST_Hypothesis!$C8*F$16 -> 157.248 | G38: =G$15*COST_Hypothesis!$C8*G$16 -> 204.4224 | H38: =H$15*COST_Hypothesis!$C8*H$16 -> 265.74912 | I38: =I$15*COST_Hypothesis!$C8*I$16 -> 372.048768 | J38: =J$15*COST_Hypothesis!$C8*J$16 -> 520.8682752 | K38: =K$15*COST_Hypothesis!$C8*K$16 -> 729.2155853 | L38: =L$15*COST_Hypothesis!$C8*L$16 -> 947.9802609 | M38: =M$15*COST_Hypothesis!$C8*M$16 -> 1232.374339 | N38: =N$15*COST_Hypothesis!$C8*N$16 -> 1602.086641 | O38: =O$15*COST_Hypothesis!$C8*O$16 -> 2197.147393 | P38: =P$15*COST_Hypothesis!$C8*P$16 -> 2636.576872 | Q38: =Q$15*COST_Hypothesis!$C8*Q$16 -> 3163.892246 | R38: =R$15*COST_Hypothesis!$C8*R$16 -> 4113.05992 | S38: =S$15*COST_Hypothesis!$C8*S$16 -> 5346.977896 | T38: =T$15*COST_Hypothesis!$C8*T$16 -> 6951.071265 | U38: =U$15*COST_Hypothesis!$C8*U$16 -> 9731.499771 | V38: =V$15*COST_Hypothesis!$C8*V$16 -> 13624.09968 | W38: =W$15*COST_Hypothesis!$C8*W$16 -> 19073.73955 | X38: =X$15*COST_Hypothesis!$C8*X$16 -> 24795.86142 | Y38: =Y$15*COST_Hypothesis!$C8*Y$16 -> 32234.61984 | Z38: =Z$15*COST_Hypothesis!$C8*Z$16 -> 41905.00579 | AA38: =AA$15*COST_Hypothesis!$C8*AA$16 -> 62857.50869 | AB38: =AB$15*COST_Hypothesis!$C8*AB$16 -> 75429.01043 | AC38: =AC$15*COST_Hypothesis!$C8*AC$16 -> 90514.81251 | AD38: =AD$15*COST_Hypothesis!$C8*AD$16 -> 117669.2563 | AE38: =AE$15*COST_Hypothesis!$C8*AE$16 -> 152970.0331 | AF38: =AF$15*COST_Hypothesis!$C8*AF$16 -> 198861.0431 | AG38: =AG$15*COST_Hypothesis!$C8*AG$16 -> 278405.4603 | AH38: =AH$15*COST_Hypothesis!$C8*AH$16 -> 389767.6445 | AI38: =AI$15*COST_Hypothesis!$C8*AI$16 -> 545674.7022 | AJ38: =AJ$15*COST_Hypothesis!$C8*AJ$16 -> 709377.1129 | AK38: =AK$15*COST_Hypothesis!$C8*AK$16 -> 922190.2468 | AL38: =AL$15*COST_Hypothesis!$C8*AL$16 -> 1198847.321
B39: =COST_Hypothesis!B9 -> Maintenance cost | C39: =C$15*COST_Hypothesis!$C9*C$16 -> 630 | D39: =D$15*COST_Hypothesis!$C9*D$16 -> 756 | E39: =E$15*COST_Hypothesis!$C9*E$16 -> 907.2 | F39: =F$15*COST_Hypothesis!$C9*F$16 -> 1179.36 | G39: =G$15*COST_Hypothesis!$C9*G$16 -> 1533.168 | H39: =H$15*COST_Hypothesis!$C9*H$16 -> 1993.1184 | I39: =I$15*COST_Hypothesis!$C9*I$16 -> 2790.36576 | J39: =J$15*COST_Hypothesis!$C9*J$16 -> 3906.512064 | K39: =K$15*COST_Hypothesis!$C9*K$16 -> 5469.11689 | L39: =L$15*COST_Hypothesis!$C9*L$16 -> 7109.851956 | M39: =M$15*COST_Hypothesis!$C9*M$16 -> 9242.807543 | N39: =N$15*COST_Hypothesis!$C9*N$16 -> 12015.64981 | O39: =O$15*COST_Hypothesis!$C9*O$16 -> 16478.60545 | P39: =P$15*COST_Hypothesis!$C9*P$16 -> 19774.32654 | Q39: =Q$15*COST_Hypothesis!$C9*Q$16 -> 23729.19185 | R39: =R$15*COST_Hypothesis!$C9*R$16 -> 30847.9494 | S39: =S$15*COST_Hypothesis!$C9*S$16 -> 40102.33422 | T39: =T$15*COST_Hypothesis!$C9*T$16 -> 52133.03449 | U39: =U$15*COST_Hypothesis!$C9*U$16 -> 72986.24828 | V39: =V$15*COST_Hypothesis!$C9*V$16 -> 102180.7476 | W39: =W$15*COST_Hypothesis!$C9*W$16 -> 143053.0466 | X39: =X$15*COST_Hypothesis!$C9*X$16 -> 185968.9606 | Y39: =Y$15*COST_Hypothesis!$C9*Y$16 -> 241759.6488 | Z39: =Z$15*COST_Hypothesis!$C9*Z$16 -> 314287.5434 | AA39: =AA$15*COST_Hypothesis!$C9*AA$16 -> 471431.3152 | AB39: =AB$15*COST_Hypothesis!$C9*AB$16 -> 565717.5782 | AC39: =AC$15*COST_Hypothesis!$C9*AC$16 -> 678861.0938 | AD39: =AD$15*COST_Hypothesis!$C9*AD$16 -> 882519.422 | AE39: =AE$15*COST_Hypothesis!$C9*AE$16 -> 1147275.249 | AF39: =AF$15*COST_Hypothesis!$C9*AF$16 -> 1491457.823 | AG39: =AG$15*COST_Hypothesis!$C9*AG$16 -> 2088040.952 | AH39: =AH$15*COST_Hypothesis!$C9*AH$16 -> 2923257.333 | AI39: =AI$15*COST_Hypothesis!$C9*AI$16 -> 4092560.267 | AJ39: =AJ$15*COST_Hypothesis!$C9*AJ$16 -> 5320328.347 | AK39: =AK$15*COST_Hypothesis!$C9*AK$16 -> 6916426.851 | AL39: =AL$15*COST_Hypothesis!$C9*AL$16 -> 8991354.906
B40: =COST_Hypothesis!B10 -> Hosting cost | C40: =C$15*COST_Hypothesis!$C10*C$16 -> 210 | D40: =D$15*COST_Hypothesis!$C10*D$16 -> 252 | E40: =E$15*COST_Hypothesis!$C10*E$16 -> 302.4 | F40: =F$15*COST_Hypothesis!$C10*F$16 -> 393.12 | G40: =G$15*COST_Hypothesis!$C10*G$16 -> 511.056 | H40: =H$15*COST_Hypothesis!$C10*H$16 -> 664.3728 | I40: =I$15*COST_Hypothesis!$C10*I$16 -> 930.12192 | J40: =J$15*COST_Hypothesis!$C10*J$16 -> 1302.170688 | K40: =K$15*COST_Hypothesis!$C10*K$16 -> 1823.038963 | L40: =L$15*COST_Hypothesis!$C10*L$16 -> 2369.950652 | M40: =M$15*COST_Hypothesis!$C10*M$16 -> 3080.935848 | N40: =N$15*COST_Hypothesis!$C10*N$16 -> 4005.216602 | O40: =O$15*COST_Hypothesis!$C10*O$16 -> 5492.868483 | P40: =P$15*COST_Hypothesis!$C10*P$16 -> 6591.44218 | Q40: =Q$15*COST_Hypothesis!$C10*Q$16 -> 7909.730615 | R40: =R$15*COST_Hypothesis!$C10*R$16 -> 10282.6498 | S40: =S$15*COST_Hypothesis!$C10*S$16 -> 13367.44474 | T40: =T$15*COST_Hypothesis!$C10*T$16 -> 17377.67816 | U40: =U$15*COST_Hypothesis!$C10*U$16 -> 24328.74943 | V40: =V$15*COST_Hypothesis!$C10*V$16 -> 34060.2492 | W40: =W$15*COST_Hypothesis!$C10*W$16 -> 47684.34888 | X40: =X$15*COST_Hypothesis!$C10*X$16 -> 61989.65354 | Y40: =Y$15*COST_Hypothesis!$C10*Y$16 -> 80586.5496 | Z40: =Z$15*COST_Hypothesis!$C10*Z$16 -> 104762.5145 | AA40: =AA$15*COST_Hypothesis!$C10*AA$16 -> 157143.7717 | AB40: =AB$15*COST_Hypothesis!$C10*AB$16 -> 188572.5261 | AC40: =AC$15*COST_Hypothesis!$C10*AC$16 -> 226287.0313 | AD40: =AD$15*COST_Hypothesis!$C10*AD$16 -> 294173.1407 | AE40: =AE$15*COST_Hypothesis!$C10*AE$16 -> 382425.0829 | AF40: =AF$15*COST_Hypothesis!$C10*AF$16 -> 497152.6077 | AG40: =AG$15*COST_Hypothesis!$C10*AG$16 -> 696013.6508 | AH40: =AH$15*COST_Hypothesis!$C10*AH$16 -> 974419.1111 | AI40: =AI$15*COST_Hypothesis!$C10*AI$16 -> 1364186.756 | AJ40: =AJ$15*COST_Hypothesis!$C10*AJ$16 -> 1773442.782 | AK40: =AK$15*COST_Hypothesis!$C10*AK$16 -> 2305475.617 | AL40: =AL$15*COST_Hypothesis!$C10*AL$16 -> 2997118.302
B41: Total cost of Good Sold | C41: =SUM(C33:C40) -> 1974 | D41: 2368.8 | E41: 2842.56 | F41: 3695.328 | G41: 4803.9264 | H41: 6245.10432 | I41: 8743.146048 | J41: 12240.40447 | K41: 17136.56625 | L41: 22277.53613 | M41: 28960.79697 | N41: 37649.03606 | O41: =SUM(O33:O40) -> 51632.96374 | P41: 61959.55649 | Q41: 74351.46779 | R41: 96656.90812 | S41: 125653.9806 | T41: 163350.1747 | U41: 228690.2446 | V41: 320166.3425 | W41: 448232.8794 | X41: 582702.7433 | Y41: 757513.5663 | Z41: 984767.6361 | AA41: 1477151.454 | AB41: 1772581.745 | AC41: 2127098.094 | AD41: 2765227.522 | AE41: 3594795.779 | AF41: 4673234.513 | AG41: 6542528.318 | AH41: 9159539.645 | AI41: 12823355.5 | AJ41: 16670362.15 | AK41: 21671470.8 | AL41: 28172912.04
B43: Accummulated cost of Good Sold | C43: =C41 -> 1974 | D43: =C43+D41 -> 4342.8 | E43: =D43+E41 -> 7185.36 | F43: 10880.688 | G43: 15684.6144 | H43: 21929.71872 | I43: 30672.86477 | J43: 42913.26924 | K43: 60049.83549 | L43: 82327.37162 | M43: 111288.1686 | N43: 148937.2046 | O43: 200570.1684 | P43: 262529.7249 | Q43: 336881.1927 | R43: 433538.1008 | S43: 559192.0813 | T43: 722542.2561 | U43: 951232.5007 | V43: 1271398.843 | W43: 1719631.723 | X43: 2302334.466 | Y43: 3059848.032 | Z43: 4044615.668 | AA43: 5521767.122 | AB43: 7294348.867 | AC43: 9421446.962 | AD43: 12186674.48 | AE43: 15781470.26 | AF43: 20454704.78 | AG43: 26997233.09 | AH43: 36156772.74 | AI43: 48980128.24 | AJ43: 65650490.39 | AK43: 87321961.19 | AL43: 115494873.2
A45: PROFIT & LOSS
A47: Revenue
B48: Gross MooR | C48: =C23 -> 4200 | D48: =D23 -> 5040 | E48: =E23 -> 6048 | F48: 7862.4 | G48: 10221.12 | H48: 13287.456 | I48: 18602.4384 | J48: 26043.41376 | K48: 36460.77926 | L48: 47399.01304 | M48: 61618.71696 | N48: 80104.33204 | O48: =O23 -> 109857.3697 | P48: =P23 -> 131828.8436 | Q48: =Q23 -> 158194.6123 | R48: 205652.996 | S48: 267348.8948 | T48: 347553.5632 | U48: 486574.9885 | V48: 681204.984 | W48: 953686.9775 | X48: 1239793.071 | Y48: 1611730.992 | Z48: 2095250.29 | AA48: =AA23 -> 3142875.434 | AB48: =AB23 -> 3771450.521 | AC48: =AC23 -> 4525740.626 | AD48: 5883462.813 | AE48: 7648501.657 | AF48: 9943052.155 | AG48: 13920273.02 | AH48: 19488382.22 | AI48: 27283735.11 | AJ48: 35468855.65 | AK48: 46109512.34 | AL48: 59942366.04
A49: Costs of Good sold
B50: Total costs of Good Sold | C50: =C41 -> 1974 | D50: =D41 -> 2368.8 | E50: =E41 -> 2842.56 | F50: 3695.328 | G50: 4803.9264 | H50: 6245.10432 | I50: 8743.146048 | J50: 12240.40447 | K50: 17136.56625 | L50: 22277.53613 | M50: 28960.79697 | N50: 37649.03606 | O50: =O41 -> 51632.96374 | P50: =P41 -> 61959.55649 | Q50: =Q41 -> 74351.46779 | R50: 96656.90812 | S50: 125653.9806 | T50: 163350.1747 | U50: 228690.2446 | V50: 320166.3425 | W50: 448232.8794 | X50: 582702.7433 | Y50: 757513.5663 | Z50: 984767.6361 | AA50: =AA41 -> 1477151.454 | AB50: =AB41 -> 1772581.745 | AC50: =AC41 -> 2127098.094 | AD50: 2765227.522 | AE50: 3594795.779 | AF50: 4673234.513 | AG50: 6542528.318 | AH50: 9159539.645 | AI50: 12823355.5 | AJ50: 16670362.15 | AK50: 21671470.8 | AL50: 28172912.04
A51: Gross Profit
B52: Gross Profit | C52: =C48-C50 -> 2226 | D52: =D48-D50 -> 2671.2 | E52: =E48-E50 -> 3205.44 | F52: 4167.072 | G52: 5417.1936 | H52: 7042.35168 | I52: 9859.292352 | J52: 13803.00929 | K52: 19324.21301 | L52: 25121.47691 | M52: 32657.91999 | N52: 42455.29598 | O52: =O48-O50 -> 58224.40592 | P52: =P48-P50 -> 69869.2871 | Q52: =Q48-Q50 -> 83843.14452 | R52: 108996.0879 | S52: 141694.9142 | T52: 184203.3885 | U52: 257884.7439 | V52: 361038.6415 | W52: 505454.0981 | X52: 657090.3275 | Y52: 854217.4258 | Z52: 1110482.654 | AA52: =AA48-AA50 -> 1665723.98 | AB52: =AB48-AB50 -> 1998868.776 | AC52: =AC48-AC50 -> 2398642.532 | AD52: 3118235.291 | AE52: 4053705.878 | AF52: 5269817.642 | AG52: 7377744.699 | AH52: 10328842.58 | AI52: 14460379.61 | AJ52: 18798493.49 | AK52: 24438041.54 | AL52: 31769454
B53: % margin | C53: =1-C50/C48 -> 0.53 | D53: =1-D50/D48 -> 0.53 | E53: 0.53 | F53: 0.53 | G53: 0.53 | H53: 0.53 | I53: 0.53 | J53: 0.53 | K53: 0.53 | L53: 0.53 | M53: 0.53 | N53: 0.53 | O53: =1-O50/O48 -> 0.53 | P53: =1-P50/P48 -> 0.53 | Q53: 0.53 | R53: 0.53 | S53: 0.53 | T53: 0.53 | U53: 0.53 | V53: 0.53 | W53: 0.53 | X53: 0.53 | Y53: 0.53 | Z53: 0.53 | AA53: =1-AA50/AA48 -> 0.53 | AB53: =1-AB50/AB48 -> 0.53 | AC53: 0.53 | AD53: 0.53 | AE53: 0.53 | AF53: 0.53 | AG53: 0.53 | AH53: 0.53 | AI53: 0.53 | AJ53: 0.53 | AK53: 0.53 | AL53: 0.53
A54: Operating Expenses
A55: (acquisition cost, intermediation cost) | B55: Sales & Marketing | C55: =COST_Hypothesis!C15+COST_Hypothesis!C16 -> 20000 | D55: =C55 -> 20000 | E55: =D55 -> 20000 | F55: 20000 | G55: 20000 | H55: 20000 | I55: 20000 | J55: 20000 | K55: 20000 | L55: 20000 | M55: 20000 | N55: 20000 | O55: 20000 | P55: =O55 -> 20000 | Q55: =P55 -> 20000 | R55: =Q55 -> 20000 | S55: =R55 -> 20000 | T55: =S55 -> 20000 | U55: =T55 -> 20000 | V55: =U55 -> 20000 | W55: =V55 -> 20000 | X55: =W55 -> 20000 | Y55: =X55 -> 20000 | Z55: =Y55 -> 20000 | AA55: 20000 | AB55: =AA55 -> 20000 | AC55: =AB55 -> 20000 | AD55: =AC55 -> 20000 | AE55: =AD55 -> 20000 | AF55: =AE55 -> 20000 | AG55: =AF55 -> 20000 | AH55: =AG55 -> 20000 | AI55: =AH55 -> 20000 | AJ55: =AI55 -> 20000 | AK55: =AJ55 -> 20000 | AL55: =AK55 -> 20000
B56: % of Revenues | C56: =C55/C48 -> 4.761904762 | D56: =D55/D48 -> 3.968253968 | E56: 3.306878307 | F56: 2.543752544 | G56: 1.956732726 | H56: 1.50517902 | I56: 1.075127871 | J56: 0.7679484796 | K56: 0.5485346283 | L56: 0.4219497141 | M56: 0.3245767031 | N56: 0.249674387 | O56: =O55/O48 -> 0.1820542405 | P56: =P55/P48 -> 0.1517118671 | Q56: 0.1264265559 | R56: 0.09725119686 | S56: 0.07480861297 | T56: 0.0575450869 | U56: 0.0411036335 | V56: 0.02935973822 | W56: 0.02097124158 | X56: 0.01613172429 | Y56: 0.01240901869 | Z56: 0.009545398991 | AA56: =AA55/AA48 -> 0.006363599327 | AB56: =AB55/AB48 -> 0.005302999439 | AC56: 0.004419166199 | AD56: 0.003399358615 | AE56: 0.002614891242 | AF56: 0.002011454802 | AG56: 0.00143675343 | AH56: 0.00102625245 | AI56: 0.0007330374642 | AJ56: 0.0005638749724 | AK56: 0.0004337499788 | AL56: 0.0003336538299
A58: (updating costs, development cost) | B58: Research & Development | C58: =COST_Hypothesis!C17+COST_Hypothesis!C18 -> 20000 | D58: =C58 -> 20000 | E58: =D58 -> 20000 | F58: 20000 | G58: 20000 | H58: 20000 | I58: 20000 | J58: 20000 | K58: 20000 | L58: 20000 | M58: 20000 | N58: 20000 | O58: 20000 | P58: =O58 -> 20000 | Q58: =P58 -> 20000 | R58: =Q58 -> 20000 | S58: =R58 -> 20000 | T58: =S58 -> 20000 | U58: =T58 -> 20000 | V58: =U58 -> 20000 | W58: =V58 -> 20000 | X58: =W58 -> 20000 | Y58: =X58 -> 20000 | Z58: =Y58 -> 20000 | AA58: 20000 | AB58: =AA58 -> 20000 | AC58: =AB58 -> 20000 | AD58: =AC58 -> 20000 | AE58: =AD58 -> 20000 | AF58: =AE58 -> 20000 | AG58: =AF58 -> 20000 | AH58: =AG58 -> 20000 | AI58: =AH58 -> 20000 | AJ58: =AI58 -> 20000 | AK58: =AJ58 -> 20000 | AL58: =AK58 -> 20000
B59: % of Revenues | C59: =C58/C48 -> 4.761904762 | D59: =D58/D48 -> 3.968253968 | E59: 3.306878307 | F59: 2.543752544 | G59: 1.956732726 | H59: 1.50517902 | I59: 1.075127871 | J59: 0.7679484796 | K59: 0.5485346283 | L59: 0.4219497141 | M59: 0.3245767031 | N59: 0.249674387 | O59: =O58/O48 -> 0.1820542405 | P59: =P58/P48 -> 0.1517118671 | Q59: 0.1264265559 | R59: 0.09725119686 | S59: 0.07480861297 | T59: 0.0575450869 | U59: 0.0411036335 | V59: 0.02935973822 | W59: 0.02097124158 | X59: 0.01613172429 | Y59: 0.01240901869 | Z59: 0.009545398991 | AA59: =AA58/AA48 -> 0.006363599327 | AB59: =AB58/AB48 -> 0.005302999439 | AC59: 0.004419166199 | AD59: 0.003399358615 | AE59: 0.002614891242 | AF59: 0.002011454802 | AG59: 0.00143675343 | AH59: 0.00102625245 | AI59: 0.0007330374642 | AJ59: 0.0005638749724 | AK59: 0.0004337499788 | AL59: 0.0003336538299
A61: (running cost) | B61: General & Administrative | C61: =COST_Hypothesis!C14 -> 10000 | D61: =C61 -> 10000 | E61: =D61 -> 10000 | F61: 10000 | G61: 10000 | H61: 10000 | I61: 10000 | J61: 10000 | K61: 10000 | L61: 10000 | M61: 10000 | N61: 10000 | O61: 10000 | P61: =O61 -> 10000 | Q61: =P61 -> 10000 | R61: =Q61 -> 10000 | S61: =R61 -> 10000 | T61: =S61 -> 10000 | U61: =T61 -> 10000 | V61: =U61 -> 10000 | W61: =V61 -> 10000 | X61: =W61 -> 10000 | Y61: =X61 -> 10000 | Z61: =Y61 -> 10000 | AA61: 10000 | AB61: =AA61 -> 10000 | AC61: =AB61 -> 10000 | AD61: =AC61 -> 10000 | AE61: =AD61 -> 10000 | AF61: =AE61 -> 10000 | AG61: =AF61 -> 10000 | AH61: =AG61 -> 10000 | AI61: =AH61 -> 10000 | AJ61: =AI61 -> 10000 | AK61: =AJ61 -> 10000 | AL61: =AK61 -> 10000
B62: % of Revenues | C62: =C61/C48 -> 2.380952381 | D62: =D61/D48 -> 1.984126984 | E62: 1.653439153 | F62: 1.271876272 | G62: 0.978366363 | H62: 0.75258951 | I62: 0.5375639357 | J62: 0.3839742398 | K62: 0.2742673141 | L62: 0.210974857 | M62: 0.1622883516 | N62: 0.1248371935 | O62: =O61/O48 -> 0.09102712027 | P62: =P61/P48 -> 0.07585593355 | Q62: 0.06321327796 | R62: 0.04862559843 | S62: 0.03740430649 | T62: 0.02877254345 | U62: 0.02055181675 | V62: 0.01467986911 | W62: 0.01048562079 | X62: 0.008065862147 | Y62: 0.006204509344 | Z62: 0.004772699495 | AA62: =AA61/AA48 -> 0.003181799664 | AB62: =AB61/AB48 -> 0.00265149972 | AC62: 0.0022095831 | AD62: 0.001699679307 | AE62: 0.001307445621 | AF62: 0.001005727401 | AG62: 0.0007183767149 | AH62: 0.0005131262249 | AI62: 0.0003665187321 | AJ62: 0.0002819374862 | AK62: 0.0002168749894 | AL62: 0.0001668269149
A63: (payment process cost) | B63: Payment Processing cost | C63: =C25 -> 126 | D63: =D25 -> 151.2 | E63: 181.44 | F63: 235.872 | G63: 306.6336 | H63: 398.62368 | I63: 558.073152 | J63: 781.3024128 | K63: 1093.823378 | L63: 1421.970391 | M63: 1848.561509 | N63: 2403.129961 | O63: =O25 -> 3295.72109 | P63: =P25 -> 3954.865308 | Q63: 4745.838369 | R63: 6169.58988 | S63: 8020.466844 | T63: 10426.6069 | U63: 14597.24966 | V63: 20436.14952 | W63: 28610.60933 | X63: 37193.79212 | Y63: 48351.92976 | Z63: 62857.50869 | AA63: =AA25 -> 94286.26303 | AB63: =AB25 -> 113143.5156 | AC63: 135772.2188 | AD63: 176503.8844 | AE63: 229455.0497 | AF63: 298291.5646 | AG63: 417608.1905 | AH63: 584651.4667 | AI63: 818512.0534 | AJ63: 1064065.669 | AK63: 1383285.37 | AL63: 1798270.981
B64: % of Revenues | C64: =C63/C48 -> 0.03 | D64: =D63/D48 -> 0.03 | E64: 0.03 | F64: 0.03 | G64: 0.03 | H64: 0.03 | I64: 0.03 | J64: 0.03 | K64: 0.03 | L64: 0.03 | M64: 0.03 | N64: 0.03 | O64: =O63/O48 -> 0.03 | P64: =P63/P48 -> 0.03 | Q64: 0.03 | R64: 0.03 | S64: 0.03 | T64: 0.03 | U64: 0.03 | V64: 0.03 | W64: 0.03 | X64: 0.03 | Y64: 0.03 | Z64: 0.03 | AA64: =AA63/AA48 -> 0.03 | AB64: =AB63/AB48 -> 0.03 | AC64: 0.03 | AD64: 0.03 | AE64: 0.03 | AF64: 0.03 | AG64: 0.03 | AH64: 0.03 | AI64: 0.03 | AJ64: 0.03 | AK64: 0.03 | AL64: 0.03
A65: Total cost | C65: =C50+C55+C58+C61+C63 -> 52100 | D65: =D50+D55+D58+D61+D63 -> 52520 | E65: 53024 | F65: 53931.2 | G65: 55110.56 | H65: 56643.728 | I65: 59301.2192 | J65: 63021.70688 | K65: 68230.38963 | L65: 73699.50652 | M65: 80809.35848 | N65: 90052.16602 | O65: 104928.6848 | P65: 115914.4218 | Q65: 129097.3062 | R65: 152826.498 | S65: 183674.4474 | T65: 223776.7816 | U65: 293287.4943 | V65: 390602.492 | W65: 526843.4888 | X65: 669896.5354 | Y65: 855865.496 | Z65: 1097625.145 | AA65: 1621437.717 | AB65: 1935725.261 | AC65: 2312870.313 | AD65: 2991731.407 | AE65: 3874250.829 | AF65: 5021526.077 | AG65: 7010136.508 | AH65: 9794191.111 | AI65: 13691867.56 | AJ65: 17784427.82 | AK65: 23104756.17 | AL65: 30021183.02
B66: Earning Before Interest & Tax | C66: =C52-C55-C58-C61-C63 -> -47900 | D66: =D52-D55-D58-D61-D63 -> -47480 | E66: -46976 | F66: -46068.8 | G66: -44889.44 | H66: -43356.272 | I66: -40698.7808 | J66: -36978.29312 | K66: -31769.61037 | L66: -26300.49348 | M66: -19190.64152 | N66: -9947.833978 | O66: =O52-O55-O58-O61-O63 -> 4928.684829 | P66: =P52-P55-P58-P61-P63 -> 15914.4218 | Q66: 29097.30615 | R66: 52826.498 | S66: 83674.4474 | T66: 123776.7816 | U66: 193287.4943 | V66: 290602.492 | W66: 426843.4888 | X66: 569896.5354 | Y66: 755865.496 | Z66: 997625.1448 | AA66: =AA52-AA55-AA58-AA61-AA63 -> 1521437.717 | AB66: =AB52-AB55-AB58-AB61-AB63 -> 1835725.261 | AC66: 2212870.313 | AD66: 2891731.407 | AE66: 3774250.829 | AF66: 4921526.077 | AG66: 6910136.508 | AH66: 9694191.111 | AI66: 13591867.56 | AJ66: 17684427.82 | AK66: 23004756.17 | AL66: 29921183.02

Sheet Financial Model ONE-OFF double
A1: Select your revenue model | B1: KPI definition | C1: Time evolution (Year 1) | G1: Time evolution (Year 2) | K1: Time evolution (Year 3)
A2: Inverted razor-blade | B2: KPI linked to the revenue model | C2: Q1 | D2: Q2 | E2: Q3 | F2: Q4 | G2: Q1 | H2: Q2 | I2: Q3 | J2: Q4 | K2: Q1 | L2: Q2 | M2: Q3 | N2: Q4
A3: KPI 1 | B3: =VLOOKUP(A$2,GROWTH_Hypothesis!B$1:O$25,9,0) -> Average initial purchase price | C3: 70 | D3: 80 | E3: 70 | F3: 100 | G3: 70 | H3: 80 | I3: 70 | J3: 100 | K3: 70 | L3: 80 | M3: 70 | N3: 100
A4: KPI 2 | B4: =VLOOKUP(A$2,GROWTH_Hypothesis!B$1:O$25,10,0) -> % Increase of new transactions | C4: 0.2 | D4: 0.3 | E4: 0.4 | F4: 0.3 | G4: 0.2 | H4: 0.3 | I4: 0.4 | J4: 0.3 | K4: 0.2 | L4: 0.3 | M4: 0.4 | N4: 0.3
A5: KPI 3 | B5: =VLOOKUP(A$2,GROWTH_Hypothesis!B$1:O$25,11,0) -> Average consumable price | C5: 100 | D5: 100 | E5: 100 | F5: 100 | G5: 100 | H5: 100 | I5: 100 | J5: 100 | K5: 100 | L5: 100 | M5: 100 | N5: 100
A6: KPI 4 | B6: =VLOOKUP(A$2,GROWTH_Hypothesis!B$1:O$25,12,0) -> % Increase of new consumable transactions | C6: 0.2 | D6: 0.3 | E6: 0.4 | F6: 0.3 | G6: 0.2 | H6: 0.3 | I6: 0.4 | J6: 0.3 | K6: 0.2 | L6: 0.3 | M6: 0.4 | N6: 0.3
A7: KPI 5 | B7: =VLOOKUP(A$2,GROWTH_Hypothesis!B$1:O$25,13,0) -> 0
A8: Starting transactions 1 | B8: 50
A9: Starting revenue 1 | B9: =B8*C3 -> 3500
A10: Starting transactions 2 | B10: 50
A11: Starting revenue 2 | B11: =B10*C5 -> 5000
C12: Year 1 | O12: Year 2 | AA12: Year 3
A13: Month N | C13: 1 | D13: =C13+1 -> 2 | E13: =D13+1 -> 3 | F13: 4 | G13: 5 | H13: 6 | I13: 7 | J13: 8 | K13: 9 | L13: 10 | M13: 11 | N13: 12 | O13: 13 | P13: 14 | Q13: 15 | R13: 16 | S13: 17 | T13: 18 | U13: 19 | V13: 20 | W13: 21 | X13: 22 | Y13: 23 | Z13: 24 | AA13: 25 | AB13: 26 | AC13: 27 | AD13: 28 | AE13: 29 | AF13: 30 | AG13: 31 | AH13: 32 | AI13: 33 | AJ13: 34 | AK13: 35 | AL13: 36
A14: REVENUE STREAM 1: ONE OFF
A16: Revenue & customer Growth
B17: =B3 -> Average initial purchase price | C17: =$C3 -> 70 | D17: =$C3 -> 70 | E17: 70 | F17: =$D3 -> 80 | G17: =$D3 -> 80 | H17: 80 | I17: =$E3 -> 70 | J17: =$E3 -> 70 | K17: 70 | L17: =$F3 -> 100 | M17: =$F3 -> 100 | N17: 100 | O17: =$G3 -> 70 | P17: =$G3 -> 70 | Q17: =$G3 -> 70 | R17: =$H3 -> 80 | S17: =$H3 -> 80 | T17: =$H3 -> 80 | U17: =$I3 -> 70 | V17: =$I3 -> 70 | W17: =$I3 -> 70 | X17: =$J3 -> 100 | Y17: =$J3 -> 100 | Z17: =$J3 -> 100 | AA17: =$K3 -> 70 | AB17: =$K3 -> 70 | AC17: =$K3 -> 70 | AD17: =$L3 -> 80 | AE17: =$L3 -> 80 | AF17: =$L3 -> 80 | AG17: =$M3 -> 70 | AH17: =$M3 -> 70 | AI17: =$M3 -> 70 | AJ17: =$N3 -> 100 | AK17: =$N3 -> 100 | AL17: =$N3 -> 100
B18: Transactions/month | C18: =B8+B8*C4 -> 60 | D18: =C18+C18*$C4 -> 72 | E18: =D18+D18*$C4 -> 86.4 | F18: =E18+E18*$D4 -> 112.32 | G18: =F18+F18*$D4 -> 146.016 | H18: 189.8208 | I18: =H18+H18*$E4 -> 265.74912 | J18: =I18+I18*$E4 -> 372.048768 | K18: =J18+J18*$E4 -> 520.8682752 | L18: =K18+K18*$F4 -> 677.1287578 | M18: =L18+L18*$F4 -> 880.2673851 | N18: =M18+M18*$F4 -> 1144.347601 | O18: =N18+N18*$G4 -> 1373.217121 | P18: =O18+O18*$G4 -> 1647.860545 | Q18: =P18+P18*$G4 -> 1977.432654 | R18: =Q18+Q18*$H4 -> 2570.66245 | S18: =R18+R18*$H4 -> 3341.861185 | T18: =S18+S18*$H4 -> 4344.419541 | U18: =T18+T18*$I4 -> 6082.187357 | V18: =U18+U18*$I4 -> 8515.062299 | W18: =V18+V18*$I4 -> 11921.08722 | X18: =W18+W18*$J4 -> 15497.41338 | Y18: =X18+X18*$J4 -> 20146.6374 | Z18: =Y18+Y18*$J4 -> 26190.62862 | AA18: =Z18+Z18*$K4 -> 31428.75434 | AB18: =AA18+AA18*$K4 -> 37714.50521 | AC18: =AB18+AB18*$K4 -> 45257.40626 | AD18: =AC18+AC18*$L4 -> 58834.62813 | AE18: =AD18+AD18*$L4 -> 76485.01657 | AF18: =AE18+AE18*$L4 -> 99430.52155 | AG18: =AF18+AF18*$M4 -> 139202.7302 | AH18: =AG18+AG18*$M4 -> 194883.8222 | AI18: =AH18+AH18*$M4 -> 272837.3511 | AJ18: =AI18+AI18*$N4 -> 354688.5565 | AK18: =AJ18+AJ18*$N4 -> 461095.1234 | AL18: =AK18+AK18*$N4 -> 599423.6604
A21: Month One-off Revenue
B22: New MooR | C22: =C18*C17 -> 4200 | D22: 5040 | E22: 6048 | F22: 8985.6 | G22: 11681.28 | H22: 15185.664 | I22: 18602.4384 | J22: 26043.41376 | K22: 36460.77926 | L22: 67712.87578 | M22: 88026.73851 | N22: 114434.7601 | O22: =O18*O17 -> 96125.19845 | P22: 115350.2381 | Q22: 138420.2858 | R22: 205652.996 | S22: 267348.8948 | T22: 347553.5632 | U22: 425753.115 | V22: 596054.361 | W22: 834476.1053 | X22: 1549741.338 | Y22: 2014663.74 | Z22: 2619062.862 | AA22: 2200012.804 | AB22: 2640015.365 | AC22: 3168018.438 | AD22: 4706770.251 | AE22: 6118801.326 | AF22: 7954441.724 | AG22: 9744191.111 | AH22: 13641867.56 | AI22: 19098614.58 | AJ22: 35468855.65 | AK22: 46109512.34 | AL22: 59942366.04
B23: Last MooR | C23: =B9 -> 3500 | D23: =C22 -> 4200 | E23: 5040 | F23: 6048 | G23: 8985.6 | H23: 11681.28 | I23: 15185.664 | J23: 18602.4384 | K23: 26043.41376 | L23: 36460.77926 | M23: 67712.87578 | N23: 88026.73851 | O23: 114434.7601 | P23: =O22 -> 96125.19845 | Q23: =P22 -> 115350.2381 | R23: =Q22 -> 138420.2858 | S23: =R22 -> 205652.996 | T23: =S22 -> 267348.8948 | U23: =T22 -> 347553.5632 | V23: =U22 -> 425753.115 | W23: =V22 -> 596054.361 | X23: =W22 -> 834476.1053 | Y23: =X22 -> 1549741.338 | Z23: =Y22 -> 2014663.74 | AA23: 2619062.862 | AB23: =AA22 -> 2200012.804 | AC23: =AB22 -> 2640015.365 | AD23: =AC22 -> 3168018.438 | AE23: =AD22 -> 4706770.251 | AF23: =AE22 -> 6118801.326 | AG23: =AF22 -> 7954441.724 | AH23: =AG22 -> 9744191.111 | AI23: =AH22 -> 13641867.56 | AJ23: =AI22 -> 19098614.58 | AK23: =AJ22 -> 35468855.65 | AL23: =AK22 -> 46109512.34
B24: increase of MooR | C24: =C22-C23 -> 700 | D24: 840 | E24: 1008 | F24: 2937.6 | G24: 2695.68 | H24: 3504.384 | I24: 3416.7744 | J24: 7440.97536 | K24: 10417.3655 | L24: 31252.09651 | M24: 20313.86273 | N24: 26408.02155 | O24: =O22-O23 -> -18309.56161 | P24: 19225.03969 | Q24: 23070.04763 | R24: 67232.71023 | S24: 61695.8988 | T24: 80204.66844 | U24: 78199.55173 | V24: 170301.246 | W24: 238421.7444 | X24: 715265.2332 | Y24: 464922.4015 | Z24: 604399.122 | AA24: -419050.0579 | AB24: 440002.5608 | AC24: 528003.073 | AD24: 1538751.813 | AE24: 1412031.075 | AF24: 1835640.398 | AG24: 1789749.388 | AH24: 3897676.445 | AI24: 5456747.022 | AJ24: 16370241.07 | AK24: 10640656.69 | AL24: 13832853.7
B25: Gross MooR | C25: =C22 -> 4200 | D25: 5040 | E25: 6048 | F25: 8985.6 | G25: 11681.28 | H25: 15185.664 | I25: 18602.4384 | J25: 26043.41376 | K25: 36460.77926 | L25: 67712.87578 | M25: 88026.73851 | N25: 114434.7601 | O25: =O22 -> 96125.19845 | P25: 115350.2381 | Q25: 138420.2858 | R25: 205652.996 | S25: 267348.8948 | T25: 347553.5632 | U25: 425753.115 | V25: 596054.361 | W25: 834476.1053 | X25: 1549741.338 | Y25: 2014663.74 | Z25: 2619062.862 | AA25: 2200012.804 | AB25: 2640015.365 | AC25: 3168018.438 | AD25: 4706770.251 | AE25: 6118801.326 | AF25: 7954441.724 | AG25: 9744191.111 | AH25: 13641867.56 | AI25: 19098614.58 | AJ25: 35468855.65 | AK25: 46109512.34 | AL25: 59942366.04
B26: MooR Growth rate | C26: =C24/C25 -> 0.1666666667 | D26: 0.1666666667 | E26: 0.1666666667 | F26: 0.3269230769 | G26: 0.2307692308 | H26: 0.2307692308 | I26: 0.1836734694 | J26: 0.2857142857 | K26: 0.2857142857 | L26: 0.4615384615 | M26: 0.2307692308 | N26: 0.2307692308 | O26: =O24/O25 -> -0.1904761905 | P26: 0.1666666667 | Q26: 0.1666666667 | R26: 0.3269230769 | S26: 0.2307692308 | T26: 0.2307692308 | U26: 0.1836734694 | V26: 0.2857142857 | W26: 0.2857142857 | X26: 0.4615384615 | Y26: 0.2307692308 | Z26: 0.2307692308 | AA26: -0.1904761905 | AB26: 0.1666666667 | AC26: 0.1666666667 | AD26: 0.3269230769 | AE26: 0.2307692308 | AF26: 0.2307692308 | AG26: 0.1836734694 | AH26: 0.2857142857 | AI26: 0.2857142857 | AJ26: 0.4615384615 | AK26: 0.2307692308 | AL26: 0.2307692308
B27: Payment Processing cost | C27: =C25*0.03 -> 126 | D27: 151.2 | E27: 181.44 | F27: 269.568 | G27: 350.4384 | H27: 455.56992 | I27: 558.073152 | J27: 781.3024128 | K27: 1093.823378 | L27: 2031.386273 | M27: 2640.802155 | N27: 3433.042802 | O27: =O25*0.03 -> 2883.755954 | P27: 3460.507144 | Q27: 4152.608573 | R27: 6169.58988 | S27: 8020.466844 | T27: 10426.6069 | U27: 12772.59345 | V27: 17881.63083 | W27: 25034.28316 | X27: 46492.24015 | Y27: 60439.9122 | Z27: 78571.88586 | AA27: 66000.38412 | AB27: 79200.46095 | AC27: 95040.55314 | AD27: 141203.1075 | AE27: 183564.0398 | AF27: 238633.2517 | AG27: 292325.7333 | AH27: 409256.0267 | AI27: 572958.4374 | AJ27: 1064065.669 | AK27: 1383285.37 | AL27: 1798270.981
B28: Net MooR | C28: =C25-C27 -> 4074 | D28: 4888.8 | E28: 5866.56 | F28: 8716.032 | G28: 11330.8416 | H28: 14730.09408 | I28: 18044.36525 | J28: 25262.11135 | K28: 35366.95589 | L28: 65681.4895 | M28: 85385.93635 | N28: 111001.7173 | O28: =O25-O27 -> 93241.4425 | P28: 111889.731 | Q28: 134267.6772 | R28: 199483.4061 | S28: 259328.428 | T28: 337126.9563 | U28: 412980.5215 | V28: 578172.7301 | W28: 809441.8222 | X28: 1503249.098 | Y28: 1954223.828 | Z28: 2540490.976 | AA28: 2134012.42 | AB28: 2560814.904 | AC28: 3072977.885 | AD28: 4565567.143 | AE28: 5935237.286 | AF28: 7715808.472 | AG28: 9451865.378 | AH28: 13232611.53 | AI28: 18525656.14 | AJ28: 34404789.98 | AK28: 44726226.97 | AL28: 58144095.06
B30: Accumulated net MooR | C30: =C28 -> 4074 | D30: =C30+D28 -> 8962.8 | E30: =D30+E28 -> 14829.36 | F30: 23545.392 | G30: 34876.2336 | H30: 49606.32768 | I30: 67650.69293 | J30: 92912.80428 | K30: 128279.7602 | L30: 193961.2497 | M30: 279347.186 | N30: 390348.9033 | O30: 483590.3458 | P30: 595480.0768 | Q30: 729747.754 | R30: 929231.1601 | S30: 1188559.588 | T30: 1525686.544 | U30: 1938667.066 | V30: 2516839.796 | W30: 3326281.618 | X30: 4829530.717 | Y30: 6783754.544 | Z30: 9324245.521 | AA30: 11458257.94 | AB30: 14019072.84 | AC30: 17092050.73 | AD30: 21657617.87 | AE30: 27592855.16 | AF30: 35308663.63 | AG30: 44760529.01 | AH30: 57993140.54 | AI30: 76518796.68 | AJ30: 110923586.7 | AK30: 155649813.6 | AL30: 213793908.7
A32: COSTS OF GOOD SOLD 1
A34: Cost of goods sold per transaction
B35: =COST_Hypothesis!B3 -> Manufacturing cost | C35: =C$17*COST_Hypothesis!$E3*C$18 -> 1470 | D35: =D$17*COST_Hypothesis!$E3*D$18 -> 1764 | E35: =E$17*COST_Hypothesis!$E3*E$18 -> 2116.8 | F35: =F$17*COST_Hypothesis!$E3*F$18 -> 3144.96 | G35: =G$17*COST_Hypothesis!$E3*G$18 -> 4088.448 | H35: =H$17*COST_Hypothesis!$E3*H$18 -> 5314.9824 | I35: =I$17*COST_Hypothesis!$E3*I$18 -> 6510.85344 | J35: =J$17*COST_Hypothesis!$E3*J$18 -> 9115.194816 | K35: =K$17*COST_Hypothesis!$E3*K$18 -> 12761.27274 | L35: =L$17*COST_Hypothesis!$E3*L$18 -> 23699.50652 | M35: =M$17*COST_Hypothesis!$E3*M$18 -> 30809.35848 | N35: =N$17*COST_Hypothesis!$E3*N$18 -> 40052.16602 | O35: =O$17*COST_Hypothesis!$E3*O$18 -> 33643.81946 | P35: =P$17*COST_Hypothesis!$E3*P$18 -> 40372.58335 | Q35: =Q$17*COST_Hypothesis!$E3*Q$18 -> 48447.10002 | R35: =R$17*COST_Hypothesis!$E3*R$18 -> 71978.5486 | S35: =S$17*COST_Hypothesis!$E3*S$18 -> 93572.11318 | T35: =T$17*COST_Hypothesis!$E3*T$18 -> 121643.7471 | U35: =U$17*COST_Hypothesis!$E3*U$18 -> 149013.5902 | V35: =V$17*COST_Hypothesis!$E3*V$18 -> 208619.0263 | W35: =W$17*COST_Hypothesis!$E3*W$18 -> 292066.6369 | X35: =X$17*COST_Hypothesis!$E3*X$18 -> 542409.4685 | Y35: =Y$17*COST_Hypothesis!$E3*Y$18 -> 705132.309 | Z35: =Z$17*COST_Hypothesis!$E3*Z$18 -> 916672.0017 | AA35: =AA$17*COST_Hypothesis!$E3*AA$18 -> 770004.4814 | AB35: =AB$17*COST_Hypothesis!$E3*AB$18 -> 924005.3777 | AC35: =AC$17*COST_Hypothesis!$E3*AC$18 -> 1108806.453 | AD35: =AD$17*COST_Hypothesis!$E3*AD$18 -> 1647369.588 | AE35: =AE$17*COST_Hypothesis!$E3*AE$18 -> 2141580.464 | AF35: =AF$17*COST_Hypothesis!$E3*AF$18 -> 2784054.603 | AG35: =AG$17*COST_Hypothesis!$E3*AG$18 -> 3410466.889 | AH35: =AH$17*COST_Hypothesis!$E3*AH$18 -> 4774653.645 | AI35: =AI$17*COST_Hypothesis!$E3*AI$18 -> 6684515.102 | AJ35: =AJ$17*COST_Hypothesis!$E3*AJ$18 -> 12414099.48 | AK35: =AK$17*COST_Hypothesis!$E3*AK$18 -> 16138329.32 | AL35: =AL$17*COST_Hypothesis!$E3*AL$18 -> 20979828.11
B36: =COST_Hypothesis!B4 -> Assembly cost | C36: =C$17*COST_Hypothesis!$E4*C$18 -> 210 | D36: =D$17*COST_Hypothesis!$E4*D$18 -> 252 | E36: =E$17*COST_Hypothesis!$E4*E$18 -> 302.4 | F36: =F$17*COST_Hypothesis!$E4*F$18 -> 449.28 | G36: =G$17*COST_Hypothesis!$E4*G$18 -> 584.064 | H36: =H$17*COST_Hypothesis!$E4*H$18 -> 759.2832 | I36: =I$17*COST_Hypothesis!$E4*I$18 -> 930.12192 | J36: =J$17*COST_Hypothesis!$E4*J$18 -> 1302.170688 | K36: =K$17*COST_Hypothesis!$E4*K$18 -> 1823.038963 | L36: =L$17*COST_Hypothesis!$E4*L$18 -> 3385.643789 | M36: =M$17*COST_Hypothesis!$E4*M$18 -> 4401.336925 | N36: =N$17*COST_Hypothesis!$E4*N$18 -> 5721.738003 | O36: =O$17*COST_Hypothesis!$E4*O$18 -> 4806.259923 | P36: =P$17*COST_Hypothesis!$E4*P$18 -> 5767.511907 | Q36: =Q$17*COST_Hypothesis!$E4*Q$18 -> 6921.014289 | R36: =R$17*COST_Hypothesis!$E4*R$18 -> 10282.6498 | S36: =S$17*COST_Hypothesis!$E4*S$18 -> 13367.44474 | T36: =T$17*COST_Hypothesis!$E4*T$18 -> 17377.67816 | U36: =U$17*COST_Hypothesis!$E4*U$18 -> 21287.65575 | V36: =V$17*COST_Hypothesis!$E4*V$18 -> 29802.71805 | W36: =W$17*COST_Hypothesis!$E4*W$18 -> 41723.80527 | X36: =X$17*COST_Hypothesis!$E4*X$18 -> 77487.06692 | Y36: =Y$17*COST_Hypothesis!$E4*Y$18 -> 100733.187 | Z36: =Z$17*COST_Hypothesis!$E4*Z$18 -> 130953.1431 | AA36: =AA$17*COST_Hypothesis!$E4*AA$18 -> 110000.6402 | AB36: =AB$17*COST_Hypothesis!$E4*AB$18 -> 132000.7682 | AC36: =AC$17*COST_Hypothesis!$E4*AC$18 -> 158400.9219 | AD36: =AD$17*COST_Hypothesis!$E4*AD$18 -> 235338.5125 | AE36: =AE$17*COST_Hypothesis!$E4*AE$18 -> 305940.0663 | AF36: =AF$17*COST_Hypothesis!$E4*AF$18 -> 397722.0862 | AG36: =AG$17*COST_Hypothesis!$E4*AG$18 -> 487209.5556 | AH36: =AH$17*COST_Hypothesis!$E4*AH$18 -> 682093.3778 | AI36: =AI$17*COST_Hypothesis!$E4*AI$18 -> 954930.7289 | AJ36: =AJ$17*COST_Hypothesis!$E4*AJ$18 -> 1773442.782 | AK36: =AK$17*COST_Hypothesis!$E4*AK$18 -> 2305475.617 | AL36: =AL$17*COST_Hypothesis!$E4*AL$18 -> 2997118.302
B37: =COST_Hypothesis!B5 -> Packaging cost | C37: =C$17*COST_Hypothesis!$E5*C$18 -> 42 | D37: =D$17*COST_Hypothesis!$E5*D$18 -> 50.4 | E37: =E$17*COST_Hypothesis!$E5*E$18 -> 60.48 | F37: =F$17*COST_Hypothesis!$E5*F$18 -> 89.856 | G37: =G$17*COST_Hypothesis!$E5*G$18 -> 116.8128 | H37: =H$17*COST_Hypothesis!$E5*H$18 -> 151.85664 | I37: =I$17*COST_Hypothesis!$E5*I$18 -> 186.024384 | J37: =J$17*COST_Hypothesis!$E5*J$18 -> 260.4341376 | K37: =K$17*COST_Hypothesis!$E5*K$18 -> 364.6077926 | L37: =L$17*COST_Hypothesis!$E5*L$18 -> 677.1287578 | M37: =M$17*COST_Hypothesis!$E5*M$18 -> 880.2673851 | N37: =N$17*COST_Hypothesis!$E5*N$18 -> 1144.347601 | O37: =O$17*COST_Hypothesis!$E5*O$18 -> 961.2519845 | P37: =P$17*COST_Hypothesis!$E5*P$18 -> 1153.502381 | Q37: =Q$17*COST_Hypothesis!$E5*Q$18 -> 1384.202858 | R37: =R$17*COST_Hypothesis!$E5*R$18 -> 2056.52996 | S37: =S$17*COST_Hypothesis!$E5*S$18 -> 2673.488948 | T37: =T$17*COST_Hypothesis!$E5*T$18 -> 3475.535632 | U37: =U$17*COST_Hypothesis!$E5*U$18 -> 4257.53115 | V37: =V$17*COST_Hypothesis!$E5*V$18 -> 5960.54361 | W37: =W$17*COST_Hypothesis!$E5*W$18 -> 8344.761053 | X37: =X$17*COST_Hypothesis!$E5*X$18 -> 15497.41338 | Y37: =Y$17*COST_Hypothesis!$E5*Y$18 -> 20146.6374 | Z37: =Z$17*COST_Hypothesis!$E5*Z$18 -> 26190.62862 | AA37: =AA$17*COST_Hypothesis!$E5*AA$18 -> 22000.12804 | AB37: =AB$17*COST_Hypothesis!$E5*AB$18 -> 26400.15365 | AC37: =AC$17*COST_Hypothesis!$E5*AC$18 -> 31680.18438 | AD37: =AD$17*COST_Hypothesis!$E5*AD$18 -> 47067.70251 | AE37: =AE$17*COST_Hypothesis!$E5*AE$18 -> 61188.01326 | AF37: =AF$17*COST_Hypothesis!$E5*AF$18 -> 79544.41724 | AG37: =AG$17*COST_Hypothesis!$E5*AG$18 -> 97441.91111 | AH37: =AH$17*COST_Hypothesis!$E5*AH$18 -> 136418.6756 | AI37: =AI$17*COST_Hypothesis!$E5*AI$18 -> 190986.1458 | AJ37: =AJ$17*COST_Hypothesis!$E5*AJ$18 -> 354688.5565 | AK37: =AK$17*COST_Hypothesis!$E5*AK$18 -> 461095.1234 | AL37: =AL$17*COST_Hypothesis!$E5*AL$18 -> 599423.6604
B38: =COST_Hypothesis!B6 -> Warehouse cost | C38: =C$17*COST_Hypothesis!$E6*C$18 -> 126 | D38: =D$17*COST_Hypothesis!$E6*D$18 -> 151.2 | E38: =E$17*COST_Hypothesis!$E6*E$18 -> 181.44 | F38: =F$17*COST_Hypothesis!$E6*F$18 -> 269.568 | G38: =G$17*COST_Hypothesis!$E6*G$18 -> 350.4384 | H38: =H$17*COST_Hypothesis!$E6*H$18 -> 455.56992 | I38: =I$17*COST_Hypothesis!$E6*I$18 -> 558.073152 | J38: =J$17*COST_Hypothesis!$E6*J$18 -> 781.3024128 | K38: =K$17*COST_Hypothesis!$E6*K$18 -> 1093.823378 | L38: =L$17*COST_Hypothesis!$E6*L$18 -> 2031.386273 | M38: =M$17*COST_Hypothesis!$E6*M$18 -> 2640.802155 | N38: =N$17*COST_Hypothesis!$E6*N$18 -> 3433.042802 | O38: =O$17*COST_Hypothesis!$E6*O$18 -> 2883.755954 | P38: =P$17*COST_Hypothesis!$E6*P$18 -> 3460.507144 | Q38: =Q$17*COST_Hypothesis!$E6*Q$18 -> 4152.608573 | R38: =R$17*COST_Hypothesis!$E6*R$18 -> 6169.58988 | S38: =S$17*COST_Hypothesis!$E6*S$18 -> 8020.466844 | T38: =T$17*COST_Hypothesis!$E6*T$18 -> 10426.6069 | U38: =U$17*COST_Hypothesis!$E6*U$18 -> 12772.59345 | V38: =V$17*COST_Hypothesis!$E6*V$18 -> 17881.63083 | W38: =W$17*COST_Hypothesis!$E6*W$18 -> 25034.28316 | X38: =X$17*COST_Hypothesis!$E6*X$18 -> 46492.24015 | Y38: =Y$17*COST_Hypothesis!$E6*Y$18 -> 60439.9122 | Z38: =Z$17*COST_Hypothesis!$E6*Z$18 -> 78571.88586 | AA38: =AA$17*COST_Hypothesis!$E6*AA$18 -> 66000.38412 | AB38: =AB$17*COST_Hypothesis!$E6*AB$18 -> 79200.46095 | AC38: =AC$17*COST_Hypothesis!$E6*AC$18 -> 95040.55314 | AD38: =AD$17*COST_Hypothesis!$E6*AD$18 -> 141203.1075 | AE38: =AE$17*COST_Hypothesis!$E6*AE$18 -> 183564.0398 | AF38: =AF$17*COST_Hypothesis!$E6*AF$18 -> 238633.2517 | AG38: =AG$17*COST_Hypothesis!$E6*AG$18 -> 292325.7333 | AH38: =AH$17*COST_Hypothesis!$E6*AH$18 -> 409256.0267 | AI38: =AI$17*COST_Hypothesis!$E6*AI$18 -> 572958.4374 | AJ38: =AJ$17*COST_Hypothesis!$E6*AJ$18 -> 1064065.669 | AK38: =AK$17*COST_Hypothesis!$E6*AK$18 -> 1383285.37 | AL38: =AL$17*COST_Hypothesis!$E6*AL$18 -> 1798270.981
B39: =COST_Hypothesis!B7 -> Delivery cost | C39: =C$17*COST_Hypothesis!$E7*C$18 -> 42 | D39: =D$17*COST_Hypothesis!$E7*D$18 -> 50.4 | E39: =E$17*COST_Hypothesis!$E7*E$18 -> 60.48 | F39: =F$17*COST_Hypothesis!$E7*F$18 -> 89.856 | G39: =G$17*COST_Hypothesis!$E7*G$18 -> 116.8128 | H39: =H$17*COST_Hypothesis!$E7*H$18 -> 151.85664 | I39: =I$17*COST_Hypothesis!$E7*I$18 -> 186.024384 | J39: =J$17*COST_Hypothesis!$E7*J$18 -> 260.4341376 | K39: =K$17*COST_Hypothesis!$E7*K$18 -> 364.6077926 | L39: =L$17*COST_Hypothesis!$E7*L$18 -> 677.1287578 | M39: =M$17*COST_Hypothesis!$E7*M$18 -> 880.2673851 | N39: =N$17*COST_Hypothesis!$E7*N$18 -> 1144.347601 | O39: =O$17*COST_Hypothesis!$E7*O$18 -> 961.2519845 | P39: =P$17*COST_Hypothesis!$E7*P$18 -> 1153.502381 | Q39: =Q$17*COST_Hypothesis!$E7*Q$18 -> 1384.202858 | R39: =R$17*COST_Hypothesis!$E7*R$18 -> 2056.52996 | S39: =S$17*COST_Hypothesis!$E7*S$18 -> 2673.488948 | T39: =T$17*COST_Hypothesis!$E7*T$18 -> 3475.535632 | U39: =U$17*COST_Hypothesis!$E7*U$18 -> 4257.53115 | V39: =V$17*COST_Hypothesis!$E7*V$18 -> 5960.54361 | W39: =W$17*COST_Hypothesis!$E7*W$18 -> 8344.761053 | X39: =X$17*COST_Hypothesis!$E7*X$18 -> 15497.41338 | Y39: =Y$17*COST_Hypothesis!$E7*Y$18 -> 20146.6374 | Z39: =Z$17*COST_Hypothesis!$E7*Z$18 -> 26190.62862 | AA39: =AA$17*COST_Hypothesis!$E7*AA$18 -> 22000.12804 | AB39: =AB$17*COST_Hypothesis!$E7*AB$18 -> 26400.15365 | AC39: =AC$17*COST_Hypothesis!$E7*AC$18 -> 31680.18438 | AD39: =AD$17*COST_Hypothesis!$E7*AD$18 -> 47067.70251 | AE39: =AE$17*COST_Hypothesis!$E7*AE$18 -> 61188.01326 | AF39: =AF$17*COST_Hypothesis!$E7*AF$18 -> 79544.41724 | AG39: =AG$17*COST_Hypothesis!$E7*AG$18 -> 97441.91111 | AH39: =AH$17*COST_Hypothesis!$E7*AH$18 -> 136418.6756 | AI39: =AI$17*COST_Hypothesis!$E7*AI$18 -> 190986.1458 | AJ39: =AJ$17*COST_Hypothesis!$E7*AJ$18 -> 354688.5565 | AK39: =AK$17*COST_Hypothesis!$E7*AK$18 -> 461095.1234 | AL39: =AL$17*COST_Hypothesis!$E7*AL$18 -> 599423.6604
B40: =COST_Hypothesis!B8 -> Exporting cost | C40: =C$17*COST_Hypothesis!$E8*C$18 -> 84 | D40: =D$17*COST_Hypothesis!$E8*D$18 -> 100.8 | E40: =E$17*COST_Hypothesis!$E8*E$18 -> 120.96 | F40: =F$17*COST_Hypothesis!$E8*F$18 -> 179.712 | G40: =G$17*COST_Hypothesis!$E8*G$18 -> 233.6256 | H40: =H$17*COST_Hypothesis!$E8*H$18 -> 303.71328 | I40: =I$17*COST_Hypothesis!$E8*I$18 -> 372.048768 | J40: =J$17*COST_Hypothesis!$E8*J$18 -> 520.8682752 | K40: =K$17*COST_Hypothesis!$E8*K$18 -> 729.2155853 | L40: =L$17*COST_Hypothesis!$E8*L$18 -> 1354.257516 | M40: =M$17*COST_Hypothesis!$E8*M$18 -> 1760.53477 | N40: =N$17*COST_Hypothesis!$E8*N$18 -> 2288.695201 | O40: =O$17*COST_Hypothesis!$E8*O$18 -> 1922.503969 | P40: =P$17*COST_Hypothesis!$E8*P$18 -> 2307.004763 | Q40: =Q$17*COST_Hypothesis!$E8*Q$18 -> 2768.405715 | R40: =R$17*COST_Hypothesis!$E8*R$18 -> 4113.05992 | S40: =S$17*COST_Hypothesis!$E8*S$18 -> 5346.977896 | T40: =T$17*COST_Hypothesis!$E8*T$18 -> 6951.071265 | U40: =U$17*COST_Hypothesis!$E8*U$18 -> 8515.062299 | V40: =V$17*COST_Hypothesis!$E8*V$18 -> 11921.08722 | W40: =W$17*COST_Hypothesis!$E8*W$18 -> 16689.52211 | X40: =X$17*COST_Hypothesis!$E8*X$18 -> 30994.82677 | Y40: =Y$17*COST_Hypothesis!$E8*Y$18 -> 40293.2748 | Z40: =Z$17*COST_Hypothesis!$E8*Z$18 -> 52381.25724 | AA40: =AA$17*COST_Hypothesis!$E8*AA$18 -> 44000.25608 | AB40: =AB$17*COST_Hypothesis!$E8*AB$18 -> 52800.3073 | AC40: =AC$17*COST_Hypothesis!$E8*AC$18 -> 63360.36876 | AD40: =AD$17*COST_Hypothesis!$E8*AD$18 -> 94135.40501 | AE40: =AE$17*COST_Hypothesis!$E8*AE$18 -> 122376.0265 | AF40: =AF$17*COST_Hypothesis!$E8*AF$18 -> 159088.8345 | AG40: =AG$17*COST_Hypothesis!$E8*AG$18 -> 194883.8222 | AH40: =AH$17*COST_Hypothesis!$E8*AH$18 -> 272837.3511 | AI40: =AI$17*COST_Hypothesis!$E8*AI$18 -> 381972.2916 | AJ40: =AJ$17*COST_Hypothesis!$E8*AJ$18 -> 709377.1129 | AK40: =AK$17*COST_Hypothesis!$E8*AK$18 -> 922190.2468 | AL40: =AL$17*COST_Hypothesis!$E8*AL$18 -> 1198847.321
B41: =COST_Hypothesis!B9 -> Maintenance cost | C41: =C$17*COST_Hypothesis!$E9*C$18 -> 630 | D41: =D$17*COST_Hypothesis!$E9*D$18 -> 756 | E41: =E$17*COST_Hypothesis!$E9*E$18 -> 907.2 | F41: =F$17*COST_Hypothesis!$E9*F$18 -> 1347.84 | G41: =G$17*COST_Hypothesis!$E9*G$18 -> 1752.192 | H41: =H$17*COST_Hypothesis!$E9*H$18 -> 2277.8496 | I41: =I$17*COST_Hypothesis!$E9*I$18 -> 2790.36576 | J41: =J$17*COST_Hypothesis!$E9*J$18 -> 3906.512064 | K41: =K$17*COST_Hypothesis!$E9*K$18 -> 5469.11689 | L41: =L$17*COST_Hypothesis!$E9*L$18 -> 10156.93137 | M41: =M$17*COST_Hypothesis!$E9*M$18 -> 13204.01078 | N41: =N$17*COST_Hypothesis!$E9*N$18 -> 17165.21401 | O41: =O$17*COST_Hypothesis!$E9*O$18 -> 14418.77977 | P41: =P$17*COST_Hypothesis!$E9*P$18 -> 17302.53572 | Q41: =Q$17*COST_Hypothesis!$E9*Q$18 -> 20763.04287 | R41: =R$17*COST_Hypothesis!$E9*R$18 -> 30847.9494 | S41: =S$17*COST_Hypothesis!$E9*S$18 -> 40102.33422 | T41: =T$17*COST_Hypothesis!$E9*T$18 -> 52133.03449 | U41: =U$17*COST_Hypothesis!$E9*U$18 -> 63862.96725 | V41: =V$17*COST_Hypothesis!$E9*V$18 -> 89408.15414 | W41: =W$17*COST_Hypothesis!$E9*W$18 -> 125171.4158 | X41: =X$17*COST_Hypothesis!$E9*X$18 -> 232461.2008 | Y41: =Y$17*COST_Hypothesis!$E9*Y$18 -> 302199.561 | Z41: =Z$17*COST_Hypothesis!$E9*Z$18 -> 392859.4293 | AA41: =AA$17*COST_Hypothesis!$E9*AA$18 -> 330001.9206 | AB41: =AB$17*COST_Hypothesis!$E9*AB$18 -> 396002.3047 | AC41: =AC$17*COST_Hypothesis!$E9*AC$18 -> 475202.7657 | AD41: =AD$17*COST_Hypothesis!$E9*AD$18 -> 706015.5376 | AE41: =AE$17*COST_Hypothesis!$E9*AE$18 -> 917820.1989 | AF41: =AF$17*COST_Hypothesis!$E9*AF$18 -> 1193166.259 | AG41: =AG$17*COST_Hypothesis!$E9*AG$18 -> 1461628.667 | AH41: =AH$17*COST_Hypothesis!$E9*AH$18 -> 2046280.133 | AI41: =AI$17*COST_Hypothesis!$E9*AI$18 -> 2864792.187 | AJ41: =AJ$17*COST_Hypothesis!$E9*AJ$18 -> 5320328.347 | AK41: =AK$17*COST_Hypothesis!$E9*AK$18 -> 6916426.851 | AL41: =AL$17*COST_Hypothesis!$E9*AL$18 -> 8991354.906
B42: =COST_Hypothesis!B10 -> Hosting cost | C42: =C$17*COST_Hypothesis!$E10*C$18 -> 210 | D42: =D$17*COST_Hypothesis!$E10*D$18 -> 252 | E42: =E$17*COST_Hypothesis!$E10*E$18 -> 302.4 | F42: =F$17*COST_Hypothesis!$E10*F$18 -> 449.28 | G42: =G$17*COST_Hypothesis!$E10*G$18 -> 584.064 | H42: =H$17*COST_Hypothesis!$E10*H$18 -> 759.2832 | I42: =I$17*COST_Hypothesis!$E10*I$18 -> 930.12192 | J42: =J$17*COST_Hypothesis!$E10*J$18 -> 1302.170688 | K42: =K$17*COST_Hypothesis!$E10*K$18 -> 1823.038963 | L42: =L$17*COST_Hypothesis!$E10*L$18 -> 3385.643789 | M42: =M$17*COST_Hypothesis!$E10*M$18 -> 4401.336925 | N42: =N$17*COST_Hypothesis!$E10*N$18 -> 5721.738003 | O42: =O$17*COST_Hypothesis!$E10*O$18 -> 4806.259923 | P42: =P$17*COST_Hypothesis!$E10*P$18 -> 5767.511907 | Q42: =Q$17*COST_Hypothesis!$E10*Q$18 -> 6921.014289 | R42: =R$17*COST_Hypothesis!$E10*R$18 -> 10282.6498 | S42: =S$17*COST_Hypothesis!$E10*S$18 -> 13367.44474 | T42: =T$17*COST_Hypothesis!$E10*T$18 -> 17377.67816 | U42: =U$17*COST_Hypothesis!$E10*U$18 -> 21287.65575 | V42: =V$17*COST_Hypothesis!$E10*V$18 -> 29802.71805 | W42: =W$17*COST_Hypothesis!$E10*W$18 -> 41723.80527 | X42: =X$17*COST_Hypothesis!$E10*X$18 -> 77487.06692 | Y42: =Y$17*COST_Hypothesis!$E10*Y$18 -> 100733.187 | Z42: =Z$17*COST_Hypothesis!$E10*Z$18 -> 130953.1431 | AA42: =AA$17*COST_Hypothesis!$E10*AA$18 -> 110000.6402 | AB42: =AB$17*COST_Hypothesis!$E10*AB$18 -> 132000.7682 | AC42: =AC$17*COST_Hypothesis!$E10*AC$18 -> 158400.9219 | AD42: =AD$17*COST_Hypothesis!$E10*AD$18 -> 235338.5125 | AE42: =AE$17*COST_Hypothesis!$E10*AE$18 -> 305940.0663 | AF42: =AF$17*COST_Hypothesis!$E10*AF$18 -> 397722.0862 | AG42: =AG$17*COST_Hypothesis!$E10*AG$18 -> 487209.5556 | AH42: =AH$17*COST_Hypothesis!$E10*AH$18 -> 682093.3778 | AI42: =AI$17*COST_Hypothesis!$E10*AI$18 -> 954930.7289 | AJ42: =AJ$17*COST_Hypothesis!$E10*AJ$18 -> 1773442.782 | AK42: =AK$17*COST_Hypothesis!$E10*AK$18 -> 2305475.617 | AL42: =AL$17*COST_Hypothesis!$E10*AL$18 -> 2997118.302
B43: Total cost of Good Sold | C43: =SUM(C35:C42) -> 2814 | D43: 3376.8 | E43: 4052.16 | F43: 6020.352 | G43: 7826.4576 | H43: 10174.39488 | I43: 12463.63373 | J43: 17449.08722 | K43: 24428.72211 | L43: 45367.62677 | M43: 58977.9148 | N43: 76671.28924 | O43: =SUM(O35:O42) -> 64403.88296 | P43: 77284.65956 | Q43: 92741.59147 | R43: 137787.5073 | S43: 179123.7595 | T43: 232860.8874 | U43: 285254.587 | V43: 399356.4218 | W43: 559098.9906 | X43: 1038326.697 | Y43: 1349824.706 | Z43: 1754772.118 | AA43: 1474008.579 | AB43: 1768810.295 | AC43: 2122572.353 | AD43: 3153536.068 | AE43: 4099596.888 | AF43: 5329475.955 | AG43: 6528608.045 | AH43: 9140051.263 | AI43: 12796071.77 | AJ43: 23764133.28 | AK43: 30893373.27 | AL43: 40161385.25
B45: Accumulated cost of Good Sold | C45: =C43 -> 2814 | D45: =C45+D43 -> 6190.8 | E45: =D45+E43 -> 10242.96 | F45: 16263.312 | G45: 24089.7696 | H45: 34264.16448 | I45: 46727.79821 | J45: 64176.88543 | K45: 88605.60753 | L45: 133973.2343 | M45: 192951.1491 | N45: 269622.4383 | O45: 334026.3213 | P45: 411310.9809 | Q45: 504052.5723 | R45: 641840.0797 | S45: 820963.8392 | T45: 1053824.727 | U45: 1339079.314 | V45: 1738435.735 | W45: 2297534.726 | X45: 3335861.423 | Y45: 4685686.129 | Z45: 6440458.246 | AA45: 7914466.825 | AB45: 9683277.12 | AC45: 11805849.47 | AD45: 14959385.54 | AE45: 19058982.43 | AF45: 24388458.38 | AG45: 30917066.43 | AH45: 40057117.69 | AI45: 52853189.46 | AJ45: 76617322.74 | AK45: 107510696 | AL45: 147672081.3
C47: Year 1 | O47: Year 1 | AA47: Year 1
A48: Month N | C48: 1 | D48: 2 | E48: 3 | F48: 4 | G48: 5 | H48: 6 | I48: 7 | J48: 8 | K48: 9 | L48: 10 | M48: 11 | N48: 12 | O48: 1 | P48: 2 | Q48: 3 | R48: 4 | S48: 5 | T48: 6 | U48: 7 | V48: 8 | W48: 9 | X48: 10 | Y48: 11 | Z48: 12 | AA48: 1 | AB48: 2 | AC48: 3 | AD48: 4 | AE48: 5 | AF48: 6 | AG48: 7 | AH48: 8 | AI48: 9 | AJ48: 10 | AK48: 11 | AL48: 12
A49: REVENUE STREAM 2: ONE OFF
A51: Revenue & customer Growth
B52: =B5 -> Average consumable price | C52: =$C5 -> 100 | D52: =$C5 -> 100 | E52: 100 | F52: =$D5 -> 100 | G52: =$D5 -> 100 | H52: 100 | I52: =$E5 -> 100 | J52: =$E5 -> 100 | K52: 100 | L52: =$F5 -> 100 | M52: =$F5 -> 100 | N52: 100 | O52: =$G5 -> 100 | P52: =$G5 -> 100 | Q52: =$G5 -> 100 | R52: =$H5 -> 100 | S52: =$H5 -> 100 | T52: =$H5 -> 100 | U52: =$I5 -> 100 | V52: =$I5 -> 100 | W52: =$I5 -> 100 | X52: =$J5 -> 100 | Y52: =$J5 -> 100 | Z52: =$J5 -> 100 | AA52: =$K5 -> 100 | AB52: =$K5 -> 100 | AC52: =$K5 -> 100 | AD52: =$L5 -> 100 | AE52: =$L5 -> 100 | AF52: =$L5 -> 100 | AG52: =$M5 -> 100 | AH52: =$M5 -> 100 | AI52: =$M5 -> 100 | AJ52: =$N5 -> 100 | AK52: =$N5 -> 100 | AL52: =$N5 -> 100
B53: Transactions/month | C53: =B10+B10*C6 -> 60 | D53: =C53+C53*$C6 -> 72 | E53: =D53+D53*$C6 -> 86.4 | F53: =E53+E53*$D6 -> 112.32 | G53: =F53+F53*$D6 -> 146.016 | H53: =G53+G53*$D6 -> 189.8208 | I53: =H53+H53*$E6 -> 265.74912 | J53: =I53+I53*$E6 -> 372.048768 | K53: =J53+J53*$E6 -> 520.8682752 | L53: =K53+K53*$F6 -> 677.1287578 | M53: =L53+L53*$F6 -> 880.2673851 | N53: =M53+M53*$F6 -> 1144.347601 | O53: =N53+N53*$G6 -> 1373.217121 | P53: =O53+O53*$G6 -> 1647.860545 | Q53: =P53+P53*$G6 -> 1977.432654 | R53: =Q53+Q53*$H6 -> 2570.66245 | S53: =R53+R53*$H6 -> 3341.861185 | T53: =S53+S53*$H6 -> 4344.419541 | U53: =T53+T53*$I6 -> 6082.187357 | V53: =U53+U53*$I6 -> 8515.062299 | W53: =V53+V53*$I6 -> 11921.08722 | X53: =W53+W53*$J6 -> 15497.41338 | Y53: =X53+X53*$J6 -> 20146.6374 | Z53: =Y53+Y53*$J6 -> 26190.62862 | AA53: =Z53+Z53*$K6 -> 31428.75434 | AB53: =AA53+AA53*$K6 -> 37714.50521 | AC53: =AB53+AB53*$K6 -> 45257.40626 | AD53: =AC53+AC53*$L6 -> 58834.62813 | AE53: =AD53+AD53*$L6 -> 76485.01657 | AF53: =AE53+AE53*$L6 -> 99430.52155 | AG53: =AF53+AF53*$M6 -> 139202.7302 | AH53: =AG53+AG53*$M6 -> 194883.8222 | AI53: =AH53+AH53*$M6 -> 272837.3511 | AJ53: =AI53+AI53*$N6 -> 354688.5565 | AK53: =AJ53+AJ53*$N6 -> 461095.1234 | AL53: =AK53+AK53*$N6 -> 599423.6604
A56: Month One-off Revenue
B57: New MooR | C57: =C53*C52 -> 6000 | D57: 7200 | E57: 8640 | F57: 11232 | G57: 14601.6 | H57: 18982.08 | I57: 26574.912 | J57: 37204.8768 | K57: 52086.82752 | L57: 67712.87578 | M57: 88026.73851 | N57: 114434.7601 | O57: =O53*O52 -> 137321.7121 | P57: 164786.0545 | Q57: 197743.2654 | R57: 257066.245 | S57: 334186.1185 | T57: 434441.9541 | U57: 608218.7357 | V57: 851506.2299 | W57: 1192108.722 | X57: 1549741.338 | Y57: 2014663.74 | Z57: 2619062.862 | AA57: 3142875.434 | AB57: 3771450.521 | AC57: 4525740.626 | AD57: 5883462.813 | AE57: 7648501.657 | AF57: 9943052.155 | AG57: 13920273.02 | AH57: 19488382.22 | AI57: 27283735.11 | AJ57: 35468855.65 | AK57: 46109512.34 | AL57: 59942366.04
B58: Last MooR | C58: =B11 -> 5000 | D58: =C57 -> 6000 | E58: =D57 -> 7200 | F58: =E57 -> 8640 | G58: =F57 -> 11232 | H58: =G57 -> 14601.6 | I58: =H57 -> 18982.08 | J58: =I57 -> 26574.912 | K58: =J57 -> 37204.8768 | L58: =K57 -> 52086.82752 | M58: =L57 -> 67712.87578 | N58: =M57 -> 88026.73851 | O58: 114434.7601 | P58: =O57 -> 137321.7121 | Q58: =P57 -> 164786.0545 | R58: =Q57 -> 197743.2654 | S58: =R57 -> 257066.245 | T58: =S57 -> 334186.1185 | U58: =T57 -> 434441.9541 | V58: =U57 -> 608218.7357 | W58: =V57 -> 851506.2299 | X58: =W57 -> 1192108.722 | Y58: =X57 -> 1549741.338 | Z58: =Y57 -> 2014663.74 | AA58: =Z11 -> 0 | AB58: =AA57 -> 3142875.434 | AC58: =AB57 -> 3771450.521 | AD58: =AC57 -> 4525740.626 | AE58: =AD57 -> 5883462.813 | AF58: =AE57 -> 7648501.657 | AG58: =AF57 -> 9943052.155 | AH58: =AG57 -> 13920273.02 | AI58: =AH57 -> 19488382.22 | AJ58: =AI57 -> 27283735.11 | AK58: =AJ57 -> 35468855.65 | AL58: =AK57 -> 46109512.34
B59: increase of MooR | C59: =C57-C58 -> 1000 | D59: 1200 | E59: 1440 | F59: 2592 | G59: 3369.6 | H59: 4380.48 | I59: 7592.832 | J59: 10629.9648 | K59: 14881.95072 | L59: 15626.04826 | M59: 20313.86273 | N59: 26408.02155 | O59: =O57-O58 -> 22886.95201 | P59: 27464.34241 | Q59: 32957.2109 | R59: 59322.97962 | S59: 77119.8735 | T59: 100255.8356 | U59: 173776.7816 | V59: 243287.4943 | W59: 340602.492 | X59: 357632.6166 | Y59: 464922.4015 | Z59: 604399.122 | AA59: 3142875.434 | AB59: 628575.0869 | AC59: 754290.1043 | AD59: 1357722.188 | AE59: 1765038.844 | AF59: 2294550.497 | AG59: 3977220.862 | AH59: 5568109.207 | AI59: 7795352.889 | AJ59: 8185120.534 | AK59: 10640656.69 | AL59: 13832853.7
B60: Gross MooR | C60: =C57 -> 6000 | D60: 7200 | E60: 8640 | F60: 11232 | G60: 14601.6 | H60: 18982.08 | I60: 26574.912 | J60: 37204.8768 | K60: 52086.82752 | L60: 67712.87578 | M60: 88026.73851 | N60: 114434.7601 | O60: =O57 -> 137321.7121 | P60: 164786.0545 | Q60: 197743.2654 | R60: 257066.245 | S60: 334186.1185 | T60: 434441.9541 | U60: 608218.7357 | V60: 851506.2299 | W60: 1192108.722 | X60: 1549741.338 | Y60: 2014663.74 | Z60: 2619062.862 | AA60: 3142875.434 | AB60: 3771450.521 | AC60: 4525740.626 | AD60: 5883462.813 | AE60: 7648501.657 | AF60: 9943052.155 | AG60: 13920273.02 | AH60: 19488382.22 | AI60: 27283735.11 | AJ60: 35468855.65 | AK60: 46109512.34 | AL60: 59942366.04
B61: MooR Growth rate | C61: =C59/C60 -> 0.1666666667 | D61: 0.1666666667 | E61: 0.1666666667 | F61: 0.2307692308 | G61: 0.2307692308 | H61: 0.2307692308 | I61: 0.2857142857 | J61: 0.2857142857 | K61: 0.2857142857 | L61: 0.2307692308 | M61: 0.2307692308 | N61: 0.2307692308 | O61: =O59/O60 -> 0.1666666667 | P61: 0.1666666667 | Q61: 0.1666666667 | R61: 0.2307692308 | S61: 0.2307692308 | T61: 0.2307692308 | U61: 0.2857142857 | V61: 0.2857142857 | W61: 0.2857142857 | X61: 0.2307692308 | Y61: 0.2307692308 | Z61: 0.2307692308 | AA61: 1 | AB61: 0.1666666667 | AC61: 0.1666666667 | AD61: 0.2307692308 | AE61: 0.2307692308 | AF61: 0.2307692308 | AG61: 0.2857142857 | AH61: 0.2857142857 | AI61: 0.2857142857 | AJ61: 0.2307692308 | AK61: 0.2307692308 | AL61: 0.2307692308
B62: Payment Processing cost | C62: =C60*0.03 -> 180 | D62: 216 | E62: 259.2 | F62: 336.96 | G62: 438.048 | H62: 569.4624 | I62: 797.24736 | J62: 1116.146304 | K62: 1562.604826 | L62: 2031.386273 | M62: 2640.802155 | N62: 3433.042802 | O62: =O60*0.03 -> 4119.651362 | P62: 4943.581635 | Q62: 5932.297962 | R62: 7711.98735 | S62: 10025.58356 | T62: 13033.25862 | U62: 18246.56207 | V62: 25545.1869 | W62: 35763.26166 | X62: 46492.24015 | Y62: 60439.9122 | Z62: 78571.88586 | AA62: 94286.26303 | AB62: 113143.5156 | AC62: 135772.2188 | AD62: 176503.8844 | AE62: 229455.0497 | AF62: 298291.5646 | AG62: 417608.1905 | AH62: 584651.4667 | AI62: 818512.0534 | AJ62: 1064065.669 | AK62: 1383285.37 | AL62: 1798270.981
B63: Net MooR | C63: =C60-C62 -> 5820 | D63: 6984 | E63: 8380.8 | F63: 10895.04 | G63: 14163.552 | H63: 18412.6176 | I63: 25777.66464 | J63: 36088.7305 | K63: 50524.22269 | L63: 65681.4895 | M63: 85385.93635 | N63: 111001.7173 | O63: =O60-O62 -> 133202.0607 | P63: 159842.4729 | Q63: 191810.9674 | R63: 249354.2577 | S63: 324160.5349 | T63: 421408.6954 | U63: 589972.1736 | V63: 825961.043 | W63: 1156345.46 | X63: 1503249.098 | Y63: 1954223.828 | Z63: 2540490.976 | AA63: 3048589.171 | AB63: 3658307.006 | AC63: 4389968.407 | AD63: 5706958.929 | AE63: 7419046.608 | AF63: 9644760.59 | AG63: 13502664.83 | AH63: 18903730.76 | AI63: 26465223.06 | AJ63: 34404789.98 | AK63: 44726226.97 | AL63: 58144095.06
B65: Accumulated net MooR | C65: =C63 -> 5820 | D65: =C65+D63 -> 12804 | E65: =D65+E63 -> 21184.8 | F65: 32079.84 | G65: 46243.392 | H65: 64656.0096 | I65: 90433.67424 | J65: 126522.4047 | K65: 177046.6274 | L65: 242728.1169 | M65: 328114.0533 | N65: 439115.7705 | O65: 572317.8313 | P65: 732160.3041 | Q65: 923971.2715 | R65: 1173325.529 | S65: 1497486.064 | T65: 1918894.76 | U65: 2508866.933 | V65: 3334827.976 | W65: 4491173.436 | X65: 5994422.535 | Y65: 7948646.363 | Z65: 10489137.34 | AA65: 13537726.51 | AB65: 17196033.52 | AC65: 21586001.92 | AD65: 27292960.85 | AE65: 34712007.46 | AF65: 44356768.05 | AG65: 57859432.88 | AH65: 76763163.63 | AI65: 103228386.7 | AJ65: 137633176.7 | AK65: 182359403.6 | AL65: 240503498.7
A67: COSTS OF GOOD SOLD 2
A69: Cost of goods sold per transaction
B70: =B35 -> Manufacturing cost | C70: =C$52*COST_Hypothesis!$F3*C$53 -> 600 | D70: =D$52*COST_Hypothesis!$F3*D$53 -> 720 | E70: =E$52*COST_Hypothesis!$F3*E$53 -> 864 | F70: =F$52*COST_Hypothesis!$F3*F$53 -> 1123.2 | G70: =G$52*COST_Hypothesis!$F3*G$53 -> 1460.16 | H70: =H$52*COST_Hypothesis!$F3*H$53 -> 1898.208 | I70: =I$52*COST_Hypothesis!$F3*I$53 -> 2657.4912 | J70: =J$52*COST_Hypothesis!$F3*J$53 -> 3720.48768 | K70: =K$52*COST_Hypothesis!$F3*K$53 -> 5208.682752 | L70: =L$52*COST_Hypothesis!$F3*L$53 -> 6771.287578 | M70: =M$52*COST_Hypothesis!$F3*M$53 -> 8802.673851 | N70: =N$52*COST_Hypothesis!$F3*N$53 -> 11443.47601 | O70: =O$52*COST_Hypothesis!$F3*O$53 -> 13732.17121 | P70: =P$52*COST_Hypothesis!$F3*P$53 -> 16478.60545 | Q70: =Q$52*COST_Hypothesis!$F3*Q$53 -> 19774.32654 | R70: =R$52*COST_Hypothesis!$F3*R$53 -> 25706.6245 | S70: =S$52*COST_Hypothesis!$F3*S$53 -> 33418.61185 | T70: =T$52*COST_Hypothesis!$F3*T$53 -> 43444.19541 | U70: =U$52*COST_Hypothesis!$F3*U$53 -> 60821.87357 | V70: =V$52*COST_Hypothesis!$F3*V$53 -> 85150.62299 | W70: =W$52*COST_Hypothesis!$F3*W$53 -> 119210.8722 | X70: =X$52*COST_Hypothesis!$F3*X$53 -> 154974.1338 | Y70: =Y$52*COST_Hypothesis!$F3*Y$53 -> 201466.374 | Z70: =Z$52*COST_Hypothesis!$F3*Z$53 -> 261906.2862 | AA70: =AA$52*COST_Hypothesis!$F3*AA$53 -> 314287.5434 | AB70: =AB$52*COST_Hypothesis!$F3*AB$53 -> 377145.0521 | AC70: =AC$52*COST_Hypothesis!$F3*AC$53 -> 452574.0626 | AD70: =AD$52*COST_Hypothesis!$F3*AD$53 -> 588346.2813 | AE70: =AE$52*COST_Hypothesis!$F3*AE$53 -> 764850.1657 | AF70: =AF$52*COST_Hypothesis!$F3*AF$53 -> 994305.2155 | AG70: =AG$52*COST_Hypothesis!$F3*AG$53 -> 1392027.302 | AH70: =AH$52*COST_Hypothesis!$F3*AH$53 -> 1948838.222 | AI70: =AI$52*COST_Hypothesis!$F3*AI$53 -> 2728373.511 | AJ70: =AJ$52*COST_Hypothesis!$F3*AJ$53 -> 3546885.565 | AK70: =AK$52*COST_Hypothesis!$F3*AK$53 -> 4610951.234 | AL70: =AL$52*COST_Hypothesis!$F3*AL$53 -> 5994236.604
B71: Assembly cost | C71: =C$52*COST_Hypothesis!$F4*C$53 -> 300 | D71: =D$52*COST_Hypothesis!$F4*D$53 -> 360 | E71: =E$52*COST_Hypothesis!$F4*E$53 -> 432 | F71: =F$52*COST_Hypothesis!$F4*F$53 -> 561.6 | G71: =G$52*COST_Hypothesis!$F4*G$53 -> 730.08 | H71: =H$52*COST_Hypothesis!$F4*H$53 -> 949.104 | I71: =I$52*COST_Hypothesis!$F4*I$53 -> 1328.7456 | J71: =J$52*COST_Hypothesis!$F4*J$53 -> 1860.24384 | K71: =K$52*COST_Hypothesis!$F4*K$53 -> 2604.341376 | L71: =L$52*COST_Hypothesis!$F4*L$53 -> 3385.643789 | M71: =M$52*COST_Hypothesis!$F4*M$53 -> 4401.336925 | N71: =N$52*COST_Hypothesis!$F4*N$53 -> 5721.738003 | O71: =O$52*COST_Hypothesis!$F4*O$53 -> 6866.085604 | P71: =P$52*COST_Hypothesis!$F4*P$53 -> 8239.302724 | Q71: =Q$52*COST_Hypothesis!$F4*Q$53 -> 9887.163269 | R71: =R$52*COST_Hypothesis!$F4*R$53 -> 12853.31225 | S71: =S$52*COST_Hypothesis!$F4*S$53 -> 16709.30593 | T71: =T$52*COST_Hypothesis!$F4*T$53 -> 21722.0977 | U71: =U$52*COST_Hypothesis!$F4*U$53 -> 30410.93678 | V71: =V$52*COST_Hypothesis!$F4*V$53 -> 42575.3115 | W71: =W$52*COST_Hypothesis!$F4*W$53 -> 59605.4361 | X71: =X$52*COST_Hypothesis!$F4*X$53 -> 77487.06692 | Y71: =Y$52*COST_Hypothesis!$F4*Y$53 -> 100733.187 | Z71: =Z$52*COST_Hypothesis!$F4*Z$53 -> 130953.1431 | AA71: =AA$52*COST_Hypothesis!$F4*AA$53 -> 157143.7717 | AB71: =AB$52*COST_Hypothesis!$F4*AB$53 -> 188572.5261 | AC71: =AC$52*COST_Hypothesis!$F4*AC$53 -> 226287.0313 | AD71: =AD$52*COST_Hypothesis!$F4*AD$53 -> 294173.1407 | AE71: =AE$52*COST_Hypothesis!$F4*AE$53 -> 382425.0829 | AF71: =AF$52*COST_Hypothesis!$F4*AF$53 -> 497152.6077 | AG71: =AG$52*COST_Hypothesis!$F4*AG$53 -> 696013.6508 | AH71: =AH$52*COST_Hypothesis!$F4*AH$53 -> 974419.1111 | AI71: =AI$52*COST_Hypothesis!$F4*AI$53 -> 1364186.756 | AJ71: =AJ$52*COST_Hypothesis!$F4*AJ$53 -> 1773442.782 | AK71: =AK$52*COST_Hypothesis!$F4*AK$53 -> 2305475.617 | AL71: =AL$52*COST_Hypothesis!$F4*AL$53 -> 2997118.302
B72: Packaging cost | C72: =C$52*COST_Hypothesis!$F5*C$53 -> 60 | D72: =D$52*COST_Hypothesis!$F5*D$53 -> 72 | E72: =E$52*COST_Hypothesis!$F5*E$53 -> 86.4 | F72: =F$52*COST_Hypothesis!$F5*F$53 -> 112.32 | G72: =G$52*COST_Hypothesis!$F5*G$53 -> 146.016 | H72: =H$52*COST_Hypothesis!$F5*H$53 -> 189.8208 | I72: =I$52*COST_Hypothesis!$F5*I$53 -> 265.74912 | J72: =J$52*COST_Hypothesis!$F5*J$53 -> 372.048768 | K72: =K$52*COST_Hypothesis!$F5*K$53 -> 520.8682752 | L72: =L$52*COST_Hypothesis!$F5*L$53 -> 677.1287578 | M72: =M$52*COST_Hypothesis!$F5*M$53 -> 880.2673851 | N72: =N$52*COST_Hypothesis!$F5*N$53 -> 1144.347601 | O72: =O$52*COST_Hypothesis!$F5*O$53 -> 1373.217121 | P72: =P$52*COST_Hypothesis!$F5*P$53 -> 1647.860545 | Q72: =Q$52*COST_Hypothesis!$F5*Q$53 -> 1977.432654 | R72: =R$52*COST_Hypothesis!$F5*R$53 -> 2570.66245 | S72: =S$52*COST_Hypothesis!$F5*S$53 -> 3341.861185 | T72: =T$52*COST_Hypothesis!$F5*T$53 -> 4344.419541 | U72: =U$52*COST_Hypothesis!$F5*U$53 -> 6082.187357 | V72: =V$52*COST_Hypothesis!$F5*V$53 -> 8515.062299 | W72: =W$52*COST_Hypothesis!$F5*W$53 -> 11921.08722 | X72: =X$52*COST_Hypothesis!$F5*X$53 -> 15497.41338 | Y72: =Y$52*COST_Hypothesis!$F5*Y$53 -> 20146.6374 | Z72: =Z$52*COST_Hypothesis!$F5*Z$53 -> 26190.62862 | AA72: =AA$52*COST_Hypothesis!$F5*AA$53 -> 31428.75434 | AB72: =AB$52*COST_Hypothesis!$F5*AB$53 -> 37714.50521 | AC72: =AC$52*COST_Hypothesis!$F5*AC$53 -> 45257.40626 | AD72: =AD$52*COST_Hypothesis!$F5*AD$53 -> 58834.62813 | AE72: =AE$52*COST_Hypothesis!$F5*AE$53 -> 76485.01657 | AF72: =AF$52*COST_Hypothesis!$F5*AF$53 -> 99430.52155 | AG72: =AG$52*COST_Hypothesis!$F5*AG$53 -> 139202.7302 | AH72: =AH$52*COST_Hypothesis!$F5*AH$53 -> 194883.8222 | AI72: =AI$52*COST_Hypothesis!$F5*AI$53 -> 272837.3511 | AJ72: =AJ$52*COST_Hypothesis!$F5*AJ$53 -> 354688.5565 | AK72: =AK$52*COST_Hypothesis!$F5*AK$53 -> 461095.1234 | AL72: =AL$52*COST_Hypothesis!$F5*AL$53 -> 599423.6604
B73: Warehouse cost | C73: =C$52*COST_Hypothesis!$F6*C$53 -> 180 | D73: =D$52*COST_Hypothesis!$F6*D$53 -> 216 | E73: =E$52*COST_Hypothesis!$F6*E$53 -> 259.2 | F73: =F$52*COST_Hypothesis!$F6*F$53 -> 336.96 | G73: =G$52*COST_Hypothesis!$F6*G$53 -> 438.048 | H73: =H$52*COST_Hypothesis!$F6*H$53 -> 569.4624 | I73: =I$52*COST_Hypothesis!$F6*I$53 -> 797.24736 | J73: =J$52*COST_Hypothesis!$F6*J$53 -> 1116.146304 | K73: =K$52*COST_Hypothesis!$F6*K$53 -> 1562.604826 | L73: =L$52*COST_Hypothesis!$F6*L$53 -> 2031.386273 | M73: =M$52*COST_Hypothesis!$F6*M$53 -> 2640.802155 | N73: =N$52*COST_Hypothesis!$F6*N$53 -> 3433.042802 | O73: =O$52*COST_Hypothesis!$F6*O$53 -> 4119.651362 | P73: =P$52*COST_Hypothesis!$F6*P$53 -> 4943.581635 | Q73: =Q$52*COST_Hypothesis!$F6*Q$53 -> 5932.297962 | R73: =R$52*COST_Hypothesis!$F6*R$53 -> 7711.98735 | S73: =S$52*COST_Hypothesis!$F6*S$53 -> 10025.58356 | T73: =T$52*COST_Hypothesis!$F6*T$53 -> 13033.25862 | U73: =U$52*COST_Hypothesis!$F6*U$53 -> 18246.56207 | V73: =V$52*COST_Hypothesis!$F6*V$53 -> 25545.1869 | W73: =W$52*COST_Hypothesis!$F6*W$53 -> 35763.26166 | X73: =X$52*COST_Hypothesis!$F6*X$53 -> 46492.24015 | Y73: =Y$52*COST_Hypothesis!$F6*Y$53 -> 60439.9122 | Z73: =Z$52*COST_Hypothesis!$F6*Z$53 -> 78571.88586 | AA73: =AA$52*COST_Hypothesis!$F6*AA$53 -> 94286.26303 | AB73: =AB$52*COST_Hypothesis!$F6*AB$53 -> 113143.5156 | AC73: =AC$52*COST_Hypothesis!$F6*AC$53 -> 135772.2188 | AD73: =AD$52*COST_Hypothesis!$F6*AD$53 -> 176503.8844 | AE73: =AE$52*COST_Hypothesis!$F6*AE$53 -> 229455.0497 | AF73: =AF$52*COST_Hypothesis!$F6*AF$53 -> 298291.5646 | AG73: =AG$52*COST_Hypothesis!$F6*AG$53 -> 417608.1905 | AH73: =AH$52*COST_Hypothesis!$F6*AH$53 -> 584651.4667 | AI73: =AI$52*COST_Hypothesis!$F6*AI$53 -> 818512.0534 | AJ73: =AJ$52*COST_Hypothesis!$F6*AJ$53 -> 1064065.669 | AK73: =AK$52*COST_Hypothesis!$F6*AK$53 -> 1383285.37 | AL73: =AL$52*COST_Hypothesis!$F6*AL$53 -> 1798270.981
B74: Delivery cost | C74: =C$52*COST_Hypothesis!$F7*C$53 -> 60 | D74: =D$52*COST_Hypothesis!$F7*D$53 -> 72 | E74: =E$52*COST_Hypothesis!$F7*E$53 -> 86.4 | F74: =F$52*COST_Hypothesis!$F7*F$53 -> 112.32 | G74: =G$52*COST_Hypothesis!$F7*G$53 -> 146.016 | H74: =H$52*COST_Hypothesis!$F7*H$53 -> 189.8208 | I74: =I$52*COST_Hypothesis!$F7*I$53 -> 265.74912 | J74: =J$52*COST_Hypothesis!$F7*J$53 -> 372.048768 | K74: =K$52*COST_Hypothesis!$F7*K$53 -> 520.8682752 | L74: =L$52*COST_Hypothesis!$F7*L$53 -> 677.1287578 | M74: =M$52*COST_Hypothesis!$F7*M$53 -> 880.2673851 | N74: =N$52*COST_Hypothesis!$F7*N$53 -> 1144.347601 | O74: =O$52*COST_Hypothesis!$F7*O$53 -> 1373.217121 | P74: =P$52*COST_Hypothesis!$F7*P$53 -> 1647.860545 | Q74: =Q$52*COST_Hypothesis!$F7*Q$53 -> 1977.432654 | R74: =R$52*COST_Hypothesis!$F7*R$53 -> 2570.66245 | S74: =S$52*COST_Hypothesis!$F7*S$53 -> 3341.861185 | T74: =T$52*COST_Hypothesis!$F7*T$53 -> 4344.419541 | U74: =U$52*COST_Hypothesis!$F7*U$53 -> 6082.187357 | V74: =V$52*COST_Hypothesis!$F7*V$53 -> 8515.062299 | W74: =W$52*COST_Hypothesis!$F7*W$53 -> 11921.08722 | X74: =X$52*COST_Hypothesis!$F7*X$53 -> 15497.41338 | Y74: =Y$52*COST_Hypothesis!$F7*Y$53 -> 20146.6374 | Z74: =Z$52*COST_Hypothesis!$F7*Z$53 -> 26190.62862 | AA74: =AA$52*COST_Hypothesis!$F7*AA$53 -> 31428.75434 | AB74: =AB$52*COST_Hypothesis!$F7*AB$53 -> 37714.50521 | AC74: =AC$52*COST_Hypothesis!$F7*AC$53 -> 45257.40626 | AD74: =AD$52*COST_Hypothesis!$F7*AD$53 -> 58834.62813 | AE74: =AE$52*COST_Hypothesis!$F7*AE$53 -> 76485.01657 | AF74: =AF$52*COST_Hypothesis!$F7*AF$53 -> 99430.52155 | AG74: =AG$52*COST_Hypothesis!$F7*AG$53 -> 139202.7302 | AH74: =AH$52*COST_Hypothesis!$F7*AH$53 -> 194883.8222 | AI74: =AI$52*COST_Hypothesis!$F7*AI$53 -> 272837.3511 | AJ74: =AJ$52*COST_Hypothesis!$F7*AJ$53 -> 354688.5565 | AK74: =AK$52*COST_Hypothesis!$F7*AK$53 -> 461095.1234 | AL74: =AL$52*COST_Hypothesis!$F7*AL$53 -> 599423.6604
B75: Exporting cost | C75: =C$52*COST_Hypothesis!$F8*C$53 -> 120 | D75: =D$52*COST_Hypothesis!$F8*D$53 -> 144 | E75: =E$52*COST_Hypothesis!$F8*E$53 -> 172.8 | F75: =F$52*COST_Hypothesis!$F8*F$53 -> 224.64 | G75: =G$52*COST_Hypothesis!$F8*G$53 -> 292.032 | H75: =H$52*COST_Hypothesis!$F8*H$53 -> 379.6416 | I75: =I$52*COST_Hypothesis!$F8*I$53 -> 531.49824 | J75: =J$52*COST_Hypothesis!$F8*J$53 -> 744.097536 | K75: =K$52*COST_Hypothesis!$F8*K$53 -> 1041.73655 | L75: =L$52*COST_Hypothesis!$F8*L$53 -> 1354.257516 | M75: =M$52*COST_Hypothesis!$F8*M$53 -> 1760.53477 | N75: =N$52*COST_Hypothesis!$F8*N$53 -> 2288.695201 | O75: =O$52*COST_Hypothesis!$F8*O$53 -> 2746.434241 | P75: =P$52*COST_Hypothesis!$F8*P$53 -> 3295.72109 | Q75: =Q$52*COST_Hypothesis!$F8*Q$53 -> 3954.865308 | R75: =R$52*COST_Hypothesis!$F8*R$53 -> 5141.3249 | S75: =S$52*COST_Hypothesis!$F8*S$53 -> 6683.72237 | T75: =T$52*COST_Hypothesis!$F8*T$53 -> 8688.839081 | U75: =U$52*COST_Hypothesis!$F8*U$53 -> 12164.37471 | V75: =V$52*COST_Hypothesis!$F8*V$53 -> 17030.1246 | W75: =W$52*COST_Hypothesis!$F8*W$53 -> 23842.17444 | X75: =X$52*COST_Hypothesis!$F8*X$53 -> 30994.82677 | Y75: =Y$52*COST_Hypothesis!$F8*Y$53 -> 40293.2748 | Z75: =Z$52*COST_Hypothesis!$F8*Z$53 -> 52381.25724 | AA75: =AA$52*COST_Hypothesis!$F8*AA$53 -> 62857.50869 | AB75: =AB$52*COST_Hypothesis!$F8*AB$53 -> 75429.01043 | AC75: =AC$52*COST_Hypothesis!$F8*AC$53 -> 90514.81251 | AD75: =AD$52*COST_Hypothesis!$F8*AD$53 -> 117669.2563 | AE75: =AE$52*COST_Hypothesis!$F8*AE$53 -> 152970.0331 | AF75: =AF$52*COST_Hypothesis!$F8*AF$53 -> 198861.0431 | AG75: =AG$52*COST_Hypothesis!$F8*AG$53 -> 278405.4603 | AH75: =AH$52*COST_Hypothesis!$F8*AH$53 -> 389767.6445 | AI75: =AI$52*COST_Hypothesis!$F8*AI$53 -> 545674.7022 | AJ75: =AJ$52*COST_Hypothesis!$F8*AJ$53 -> 709377.1129 | AK75: =AK$52*COST_Hypothesis!$F8*AK$53 -> 922190.2468 | AL75: =AL$52*COST_Hypothesis!$F8*AL$53 -> 1198847.321
B76: Maintenance cost | C76: =C$52*COST_Hypothesis!$F9*C$53 -> 300 | D76: =D$52*COST_Hypothesis!$F9*D$53 -> 360 | E76: =E$52*COST_Hypothesis!$F9*E$53 -> 432 | F76: =F$52*COST_Hypothesis!$F9*F$53 -> 561.6 | G76: =G$52*COST_Hypothesis!$F9*G$53 -> 730.08 | H76: =H$52*COST_Hypothesis!$F9*H$53 -> 949.104 | I76: =I$52*COST_Hypothesis!$F9*I$53 -> 1328.7456 | J76: =J$52*COST_Hypothesis!$F9*J$53 -> 1860.24384 | K76: =K$52*COST_Hypothesis!$F9*K$53 -> 2604.341376 | L76: =L$52*COST_Hypothesis!$F9*L$53 -> 3385.643789 | M76: =M$52*COST_Hypothesis!$F9*M$53 -> 4401.336925 | N76: =N$52*COST_Hypothesis!$F9*N$53 -> 5721.738003 | O76: =O$52*COST_Hypothesis!$F9*O$53 -> 6866.085604 | P76: =P$52*COST_Hypothesis!$F9*P$53 -> 8239.302724 | Q76: =Q$52*COST_Hypothesis!$F9*Q$53 -> 9887.163269 | R76: =R$52*COST_Hypothesis!$F9*R$53 -> 12853.31225 | S76: =S$52*COST_Hypothesis!$F9*S$53 -> 16709.30593 | T76: =T$52*COST_Hypothesis!$F9*T$53 -> 21722.0977 | U76: =U$52*COST_Hypothesis!$F9*U$53 -> 30410.93678 | V76: =V$52*COST_Hypothesis!$F9*V$53 -> 42575.3115 | W76: =W$52*COST_Hypothesis!$F9*W$53 -> 59605.4361 | X76: =X$52*COST_Hypothesis!$F9*X$53 -> 77487.06692 | Y76: =Y$52*COST_Hypothesis!$F9*Y$53 -> 100733.187 | Z76: =Z$52*COST_Hypothesis!$F9*Z$53 -> 130953.1431 | AA76: =AA$52*COST_Hypothesis!$F9*AA$53 -> 157143.7717 | AB76: =AB$52*COST_Hypothesis!$F9*AB$53 -> 188572.5261 | AC76: =AC$52*COST_Hypothesis!$F9*AC$53 -> 226287.0313 | AD76: =AD$52*COST_Hypothesis!$F9*AD$53 -> 294173.1407 | AE76: =AE$52*COST_Hypothesis!$F9*AE$53 -> 382425.0829 | AF76: =AF$52*COST_Hypothesis!$F9*AF$53 -> 497152.6077 | AG76: =AG$52*COST_Hypothesis!$F9*AG$53 -> 696013.6508 | AH76: =AH$52*COST_Hypothesis!$F9*AH$53 -> 974419.1111 | AI76: =AI$52*COST_Hypothesis!$F9*AI$53 -> 1364186.756 | AJ76: =AJ$52*COST_Hypothesis!$F9*AJ$53 -> 1773442.782 | AK76: =AK$52*COST_Hypothesis!$F9*AK$53 -> 2305475.617 | AL76: =AL$52*COST_Hypothesis!$F9*AL$53 -> 2997118.302
B77: Hosting cost | C77: =C$52*COST_Hypothesis!$F10*C$53 -> 300 | D77: =D$52*COST_Hypothesis!$F10*D$53 -> 360 | E77: =E$52*COST_Hypothesis!$F10*E$53 -> 432 | F77: =F$52*COST_Hypothesis!$F10*F$53 -> 561.6 | G77: =G$52*COST_Hypothesis!$F10*G$53 -> 730.08 | H77: =H$52*COST_Hypothesis!$F10*H$53 -> 949.104 | I77: =I$52*COST_Hypothesis!$F10*I$53 -> 1328.7456 | J77: =J$52*COST_Hypothesis!$F10*J$53 -> 1860.24384 | K77: =K$52*COST_Hypothesis!$F10*K$53 -> 2604.341376 | L77: =L$52*COST_Hypothesis!$F10*L$53 -> 3385.643789 | M77: =M$52*COST_Hypothesis!$F10*M$53 -> 4401.336925 | N77: =N$52*COST_Hypothesis!$F10*N$53 -> 5721.738003 | O77: =O$52*COST_Hypothesis!$F10*O$53 -> 6866.085604 | P77: =P$52*COST_Hypothesis!$F10*P$53 -> 8239.302724 | Q77: =Q$52*COST_Hypothesis!$F10*Q$53 -> 9887.163269 | R77: =R$52*COST_Hypothesis!$F10*R$53 -> 12853.31225 | S77: =S$52*COST_Hypothesis!$F10*S$53 -> 16709.30593 | T77: =T$52*COST_Hypothesis!$F10*T$53 -> 21722.0977 | U77: =U$52*COST_Hypothesis!$F10*U$53 -> 30410.93678 | V77: =V$52*COST_Hypothesis!$F10*V$53 -> 42575.3115 | W77: =W$52*COST_Hypothesis!$F10*W$53 -> 59605.4361 | X77: =X$52*COST_Hypothesis!$F10*X$53 -> 77487.06692 | Y77: =Y$52*COST_Hypothesis!$F10*Y$53 -> 100733.187 | Z77: =Z$52*COST_Hypothesis!$F10*Z$53 -> 130953.1431 | AA77: =AA$52*COST_Hypothesis!$F10*AA$53 -> 157143.7717 | AB77: =AB$52*COST_Hypothesis!$F10*AB$53 -> 188572.5261 | AC77: =AC$52*COST_Hypothesis!$F10*AC$53 -> 226287.0313 | AD77: =AD$52*COST_Hypothesis!$F10*AD$53 -> 294173.1407 | AE77: =AE$52*COST_Hypothesis!$F10*AE$53 -> 382425.0829 | AF77: =AF$52*COST_Hypothesis!$F10*AF$53 -> 497152.6077 | AG77: =AG$52*COST_Hypothesis!$F10*AG$53 -> 696013.6508 | AH77: =AH$52*COST_Hypothesis!$F10*AH$53 -> 974419.1111 | AI77: =AI$52*COST_Hypothesis!$F10*AI$53 -> 1364186.756 | AJ77: =AJ$52*COST_Hypothesis!$F10*AJ$53 -> 1773442.782 | AK77: =AK$52*COST_Hypothesis!$F10*AK$53 -> 2305475.617 | AL77: =AL$52*COST_Hypothesis!$F10*AL$53 -> 2997118.302
B78: Total cost of Good Sold | C78: =SUM(C70:C77) -> 1920 | D78: 2304 | E78: 2764.8 | F78: 3594.24 | G78: 4672.512 | H78: 6074.2656 | I78: 8503.97184 | J78: 11905.56058 | K78: 16667.78481 | L78: 21668.12025 | M78: 28168.55632 | N78: 36619.12322 | O78: =SUM(O70:O77) -> 43942.94786 | P78: 52731.53744 | Q78: 63277.84492 | R78: 82261.1984 | S78: 106939.5579 | T78: 139021.4253 | U78: 194629.9954 | V78: 272481.9936 | W78: 381474.791 | X78: 495917.2283 | Y78: 644692.3968 | Z78: 838100.1159 | AA78: 1005720.139 | AB78: 1206864.167 | AC78: 1448237 | AD78: 1882708.1 | AE78: 2447520.53 | AF78: 3181776.689 | AG78: 4454487.365 | AH78: 6236282.311 | AI78: 8730795.236 | AJ78: 11350033.81 | AK78: 14755043.95 | AL78: 19181557.13
B80: Accumulated cost of good sold | C80: =C78 -> 1920 | D80: =C80+D78 -> 4224 | E80: =D80+E78 -> 6988.8 | F80: 10583.04 | G80: 15255.552 | H80: 21329.8176 | I80: 29833.78944 | J80: 41739.35002 | K80: 58407.13482 | L80: 80075.25507 | M80: 108243.8114 | N80: 144862.9346 | O80: 188805.8825 | P80: 241537.4199 | Q80: 304815.2648 | R80: 387076.4632 | S80: 494016.0212 | T80: 633037.4465 | U80: 827667.4419 | V80: 1100149.435 | W80: 1481624.226 | X80: 1977541.455 | Y80: 2622233.852 | Z80: 3460333.967 | AA80: 4466054.106 | AB80: 5672918.273 | AC80: 7121155.274 | AD80: 9003863.374 | AE80: 11451383.9 | AF80: 14633160.59 | AG80: 19087647.96 | AH80: 25323930.27 | AI80: 34054725.51 | AJ80: 45404759.31 | AK80: 60159803.26 | AL80: 79341360.39
A82: PROFIT & LOSS
A84: Revenue
B85: Gross MooR 1+2 | C85: =C25+C60 -> 10200 | D85: 12240 | E85: 14688 | F85: 20217.6 | G85: 26282.88 | H85: 34167.744 | I85: 45177.3504 | J85: 63248.29056 | K85: 88547.60678 | L85: 135425.7516 | M85: 176053.477 | N85: 228869.5201 | O85: =O25+O60 -> 233446.9105 | P85: 280136.2926 | Q85: 336163.5512 | R85: 462719.241 | S85: 601535.0133 | T85: 781995.5173 | U85: 1033971.851 | V85: 1447560.591 | W85: 2026584.827 | X85: 3099482.677 | Y85: 4029327.48 | Z85: 5238125.724 | AA85: 5342888.239 | AB85: 6411465.886 | AC85: 7693759.064 | AD85: 10590233.06 | AE85: 13767302.98 | AF85: 17897493.88 | AG85: 23664464.13 | AH85: 33130249.78 | AI85: 46382349.69 | AJ85: 70937711.29 | AK85: 92219024.68 | AL85: 119884732.1
A86: Costs of Good sold
B87: Total costs of Good Sold 1+2 | C87: =C43+C78 -> 4734 | D87: 5680.8 | E87: 6816.96 | F87: 9614.592 | G87: 12498.9696 | H87: 16248.66048 | I87: 20967.60557 | J87: 29354.6478 | K87: 41096.50691 | L87: 67035.74702 | M87: 87146.47112 | N87: 113290.4125 | O87: =O43+O78 -> 108346.8308 | P87: 130016.197 | Q87: 156019.4364 | R87: 220048.7057 | S87: 286063.3174 | T87: 371882.3127 | U87: 479884.5824 | V87: 671838.4154 | W87: 940573.7816 | X87: 1534243.925 | Y87: 1994517.103 | Z87: 2592872.233 | AA87: 2479728.718 | AB87: 2975674.461 | AC87: 3570809.354 | AD87: 5036244.168 | AE87: 6547117.419 | AF87: 8511252.644 | AG87: 10983095.41 | AH87: 15376333.57 | AI87: 21526867 | AJ87: 35114167.09 | AK87: 45648417.22 | AL87: 59342942.38
A88: Gross Profit
B89: Gross Profit | C89: =C85-C87 -> 5466 | D89: =D85-D87 -> 6559.2 | E89: =E85-E87 -> 7871.04 | F89: 10603.008 | G89: 13783.9104 | H89: 17919.08352 | I89: 24209.74483 | J89: 33893.64276 | K89: 47451.09987 | L89: 68390.00453 | M89: 88907.00589 | N89: 115579.1077 | O89: =O85-O87 -> 125100.0797 | P89: =P85-P87 -> 150120.0956 | Q89: =Q85-Q87 -> 180144.1148 | R89: 242670.5353 | S89: 315471.6959 | T89: 410113.2046 | U89: 554087.2682 | V89: 775722.1755 | W89: 1086011.046 | X89: 1565238.752 | Y89: 2034810.377 | Z89: 2645253.491 | AA89: =AA85-AA87 -> 2863159.521 | AB89: =AB85-AB87 -> 3435791.425 | AC89: =AC85-AC87 -> 4122949.71 | AD89: 5553988.896 | AE89: 7220185.565 | AF89: 9386241.234 | AG89: 12681368.72 | AH89: 17753916.21 | AI89: 24855482.69 | AJ89: 35823544.2 | AK89: 46570607.46 | AL89: 60541789.7
B90: % margin | C90: =1-C87/C85 -> 0.5358823529 | D90: =1-D87/D85 -> 0.5358823529 | E90: 0.5358823529 | F90: 0.5244444444 | G90: 0.5244444444 | H90: 0.5244444444 | I90: 0.5358823529 | J90: 0.5358823529 | K90: 0.5358823529 | L90: 0.505 | M90: 0.505 | N90: 0.505 | O90: =1-O87/O85 -> 0.5358823529 | P90: =1-P87/P85 -> 0.5358823529 | Q90: 0.5358823529 | R90: 0.5244444444 | S90: 0.5244444444 | T90: 0.5244444444 | U90: 0.5358823529 | V90: 0.5358823529 | W90: 0.5358823529 | X90: 0.505 | Y90: 0.505 | Z90: 0.505 | AA90: =1-AA87/AA85 -> 0.5358823529 | AB90: =1-AB87/AB85 -> 0.5358823529 | AC90: 0.5358823529 | AD90: 0.5244444444 | AE90: 0.5244444444 | AF90: 0.5244444444 | AG90: 0.5358823529 | AH90: 0.5358823529 | AI90: 0.5358823529 | AJ90: 0.505 | AK90: 0.505 | AL90: 0.505
A91: Operating Expenses
A92: (acquisition cost, intermediation cost) | B92: Sales & Marketing | C92: =COST_Hypothesis!E15+COST_Hypothesis!E16+COST_Hypothesis!F15+COST_Hypothesis!F16 -> 41000 | D92: =C92 -> 41000 | E92: =D92 -> 41000 | F92: 41000 | G92: 41000 | H92: 41000 | I92: 41000 | J92: 41000 | K92: 41000 | L92: 41000 | M92: 41000 | N92: 41000 | O92: 41000 | P92: =O92 -> 41000 | Q92: =P92 -> 41000 | R92: =Q92 -> 41000 | S92: =R92 -> 41000 | T92: =S92 -> 41000 | U92: =T92 -> 41000 | V92: =U92 -> 41000 | W92: =V92 -> 41000 | X92: =W92 -> 41000 | Y92: =X92 -> 41000 | Z92: =Y92 -> 41000 | AA92: 41000 | AB92: =AA92 -> 41000 | AC92: =AB92 -> 41000 | AD92: =AC92 -> 41000 | AE92: =AD92 -> 41000 | AF92: =AE92 -> 41000 | AG92: =AF92 -> 41000 | AH92: =AG92 -> 41000 | AI92: =AH92 -> 41000 | AJ92: =AI92 -> 41000 | AK92: =AJ92 -> 41000 | AL92: =AK92 -> 41000
B93: % of Revenues | C93: =C92/C85 -> 4.019607843 | D93: =D92/D85 -> 3.349673203 | E93: 2.791394336 | F93: 2.027936056 | G93: 1.559950812 | H93: 1.199962163 | I93: 0.9075344091 | J93: 0.6482388636 | K93: 0.4630277597 | L93: 0.3027489198 | M93: 0.2328837845 | N93: 0.1791413727 | O93: =O92/O85 -> 0.1756287967 | P93: =P92/P85 -> 0.1463573306 | Q93: 0.1219644422 | R93: 0.08860664603 | S93: 0.06815895849 | T93: 0.05242996807 | U93: 0.03965291703 | V93: 0.02832351216 | W93: 0.02023108011 | X93: 0.01322801392 | Y93: 0.01017539532 | Z93: 0.007827227172 | AA93: =AA92/AA85 -> 0.00767375213 | AB93: =AB92/AB85 -> 0.006394793441 | AC93: 0.005328994535 | AD93: 0.003871491756 | AE93: 0.002978070581 | AF93: 0.002290823524 | AG93: 0.001732555607 | AH93: 0.001237539719 | AI93: 0.0008839569421 | AJ93: 0.0005779718468 | AK93: 0.0004445937283 | AL93: 0.0003419951756
A95: (updating costs, development cost) | B95: Research & Development | C95: =COST_Hypothesis!E17+COST_Hypothesis!E18+COST_Hypothesis!F17+COST_Hypothesis!F18 -> 41000 | D95: =C95 -> 41000 | E95: =D95 -> 41000 | F95: 41000 | G95: 41000 | H95: 41000 | I95: 41000 | J95: 41000 | K95: 41000 | L95: 41000 | M95: 41000 | N95: 41000 | O95: 41000 | P95: =O95 -> 41000 | Q95: =P95 -> 41000 | R95: =Q95 -> 41000 | S95: =R95 -> 41000 | T95: =S95 -> 41000 | U95: =T95 -> 41000 | V95: =U95 -> 41000 | W95: =V95 -> 41000 | X95: =W95 -> 41000 | Y95: =X95 -> 41000 | Z95: =Y95 -> 41000 | AA95: 41000 | AB95: =AA95 -> 41000 | AC95: =AB95 -> 41000 | AD95: =AC95 -> 41000 | AE95: =AD95 -> 41000 | AF95: =AE95 -> 41000 | AG95: =AF95 -> 41000 | AH95: =AG95 -> 41000 | AI95: =AH95 -> 41000 | AJ95: =AI95 -> 41000 | AK95: =AJ95 -> 41000 | AL95: =AK95 -> 41000
B96: % of Revenues | C96: =C95/C85 -> 4.019607843 | D96: =D95/D85 -> 3.349673203 | E96: 2.791394336 | F96: 2.027936056 | G96: 1.559950812 | H96: 1.199962163 | I96: 0.9075344091 | J96: 0.6482388636 | K96: 0.4630277597 | L96: 0.3027489198 | M96: 0.2328837845 | N96: 0.1791413727 | O96: =O95/O85 -> 0.1756287967 | P96: =P95/P85 -> 0.1463573306 | Q96: 0.1219644422 | R96: 0.08860664603 | S96: 0.06815895849 | T96: 0.05242996807 | U96: 0.03965291703 | V96: 0.02832351216 | W96: 0.02023108011 | X96: 0.01322801392 | Y96: 0.01017539532 | Z96: 0.007827227172 | AA96: =AA95/AA85 -> 0.00767375213 | AB96: =AB95/AB85 -> 0.006394793441 | AC96: 0.005328994535 | AD96: 0.003871491756 | AE96: 0.002978070581 | AF96: 0.002290823524 | AG96: 0.001732555607 | AH96: 0.001237539719 | AI96: 0.0008839569421 | AJ96: 0.0005779718468 | AK96: 0.0004445937283 | AL96: 0.0003419951756
A98: (running cost) | B98: General & Administrative | C98: =COST_Hypothesis!E14+COST_Hypothesis!F14 -> 20500 | D98: =C98 -> 20500 | E98: =D98 -> 20500 | F98: 20500 | G98: 20500 | H98: 20500 | I98: 20500 | J98: 20500 | K98: 20500 | L98: 20500 | M98: 20500 | N98: 20500 | O98: 20500 | P98: =O98 -> 20500 | Q98: =P98 -> 20500 | R98: =Q98 -> 20500 | S98: =R98 -> 20500 | T98: =S98 -> 20500 | U98: =T98 -> 20500 | V98: =U98 -> 20500 | W98: =V98 -> 20500 | X98: =W98 -> 20500 | Y98: =X98 -> 20500 | Z98: =Y98 -> 20500 | AA98: 20500 | AB98: =AA98 -> 20500 | AC98: =AB98 -> 20500 | AD98: =AC98 -> 20500 | AE98: =AD98 -> 20500 | AF98: =AE98 -> 20500 | AG98: =AF98 -> 20500 | AH98: =AG98 -> 20500 | AI98: =AH98 -> 20500 | AJ98: =AI98 -> 20500 | AK98: =AJ98 -> 20500 | AL98: =AK98 -> 20500
B99: % of Revenues | C99: =C98/C85 -> 2.009803922 | D99: =D98/D85 -> 1.674836601 | E99: 1.395697168 | F99: 1.013968028 | G99: 0.779975406 | H99: 0.5999810816 | I99: 0.4537672046 | J99: 0.3241194318 | K99: 0.2315138799 | L99: 0.1513744599 | M99: 0.1164418922 | N99: 0.08957068634 | O99: =O98/O85 -> 0.08781439837 | P99: =P98/P85 -> 0.07317866531 | Q99: 0.06098222109 | R99: 0.04430332302 | S99: 0.03407947924 | T99: 0.02621498403 | U99: 0.01982645851 | V99: 0.01416175608 | W99: 0.01011554006 | X99: 0.006614006961 | Y99: 0.005087697662 | Z99: 0.003913613586 | AA99: =AA98/AA85 -> 0.003836876065 | AB99: =AB98/AB85 -> 0.003197396721 | AC99: 0.002664497267 | AD99: 0.001935745878 | AE99: 0.001489035291 | AF99: 0.001145411762 | AG99: 0.0008662778033 | AH99: 0.0006187698595 | AI99: 0.0004419784711 | AJ99: 0.0002889859234 | AK99: 0.0002222968641 | AL99: 0.0001709975878
A100: (payment process cost) | B100: Payment Processing cost | C100: =C27+C62 -> 306 | D100: 367.2 | E100: 440.64 | F100: 606.528 | G100: 788.4864 | H100: 1025.03232 | I100: 1355.320512 | J100: 1897.448717 | K100: 2656.428204 | L100: 4062.772547 | M100: 5281.604311 | N100: 6866.085604 | O100: =O27+O62 -> 7003.407316 | P100: 8404.088779 | Q100: 10084.90653 | R100: 13881.57723 | S100: 18046.0504 | T100: 23459.86552 | U100: 31019.15552 | V100: 43426.81773 | W100: 60797.54482 | X100: 92984.48031 | Y100: 120879.8244 | Z100: 157143.7717 | AA100: 160286.6472 | AB100: 192343.9766 | AC100: 230812.7719 | AD100: 317706.9919 | AE100: 413019.0895 | AF100: 536924.8163 | AG100: 709933.9238 | AH100: 993907.4934 | AI100: 1391470.491 | AJ100: 2128131.339 | AK100: 2766570.74 | AL100: 3596541.962
B101: % of Revenues | C101: =C100/C85 -> 0.03 | D101: =D100/D85 -> 0.03 | E101: 0.03 | F101: 0.03 | G101: 0.03 | H101: 0.03 | I101: 0.03 | J101: 0.03 | K101: 0.03 | L101: 0.03 | M101: 0.03 | N101: 0.03 | O101: =O100/O85 -> 0.03 | P101: =P100/P85 -> 0.03 | Q101: 0.03 | R101: 0.03 | S101: 0.03 | T101: 0.03 | U101: 0.03 | V101: 0.03 | W101: 0.03 | X101: 0.03 | Y101: 0.03 | Z101: 0.03 | AA101: =AA100/AA85 -> 0.03 | AB101: =AB100/AB85 -> 0.03 | AC101: 0.03 | AD101: 0.03 | AE101: 0.03 | AF101: 0.03 | AG101: 0.03 | AH101: 0.03 | AI101: 0.03 | AJ101: 0.03 | AK101: 0.03 | AL101: 0.03
A102: Total costs | C102: =C87+C92+C95+C98+C100 -> 107540 | D102: =D87+D92+D95+D98+D100 -> 108548 | E102: 109757.6 | F102: 112721.12 | G102: 115787.456 | H102: 119773.6928 | I102: 124822.9261 | J102: 133752.0965 | K102: 146252.9351 | L102: 173598.5196 | M102: 194928.0754 | N102: 222656.4981 | O102: 217850.2381 | P102: 240920.2858 | Q102: 268604.3429 | R102: 336430.283 | S102: 406609.3678 | T102: 497842.1782 | U102: 613403.738 | V102: 817765.2332 | W102: 1103871.326 | X102: 1729728.405 | Y102: 2217896.927 | Z102: 2852516.005 | AA102: 2742515.365 | AB102: 3270518.438 | AC102: 3904122.126 | AD102: 5456451.16 | AE102: 7062636.508 | AF102: 9150677.461 | AG102: 11795529.33 | AH102: 16472741.07 | AI102: 23020837.49 | AJ102: 37344798.43 | AK102: 48517487.96 | AL102: 63041984.34
B103: Earning Before Interest & Tax | C103: =C89-C92-C95-C98-C100 -> -97340 | D103: =D89-D92-D95-D98-D100 -> -96308 | E103: -95069.6 | F103: -92503.52 | G103: -89504.576 | H103: -85605.9488 | I103: -79645.57568 | J103: -70503.80595 | K103: -57705.32833 | L103: -38172.76801 | M103: -18874.59842 | N103: 6213.022058 | O103: =O89-O92-O95-O98-O100 -> 15596.67238 | P103: =P89-P92-P95-P98-P100 -> 39216.00686 | Q103: 67559.20823 | R103: 126288.9581 | S103: 194925.6455 | T103: 284153.3391 | U103: 420568.1127 | V103: 629795.3578 | W103: 922713.5009 | X103: 1369754.272 | Y103: 1811430.553 | Z103: 2385609.719 | AA103: =AA89-AA92-AA95-AA98-AA100 -> 2600372.874 | AB103: =AB89-AB92-AB95-AB98-AB100 -> 3140947.448 | AC103: 3789636.938 | AD103: 5133781.904 | AE103: 6704666.475 | AF103: 8746816.418 | AG103: 11868934.79 | AH103: 16657508.71 | AI103: 23361512.2 | AJ103: 33592912.86 | AK103: 43701536.72 | AL103: 56842747.74

Sheet Financial Model RECURRENT
A1: Select your revenue model | B1: KPI definition | C1: Time evolution (Year 1) | G1: Time evolution (Year 2) | K1: Time evolution (Year 3)
A2: Subscription | B2: KPI linked to the revenue model | C2: Q1 | D2: Q2 | E2: Q3 | F2: Q4 | G2: Q1 | H2: Q2 | I2: Q3 | J2: Q4 | K2: Q1 | L2: Q2 | M2: Q3 | N2: Q4
A3: KPI 1 | B3: =VLOOKUP(A$2,GROWTH_Hypothesis!B$1:O$25,9,0) -> Average fee | C3: 70 | D3: 70 | E3: 70 | F3: 70 | G3: 75 | H3: 75 | I3: 75 | J3: 75 | K3: 80 | L3: 80 | M3: 80 | N3: 80
A4: KPI 2 | B4: =VLOOKUP(A$2,GROWTH_Hypothesis!B$1:O$25,10,0) -> % Increase of new customers | C4: 0.2 | D4: 0.3 | E4: 0.3 | F4: 0.3 | G4: 0.2 | H4: 0.2 | I4: 0.2 | J4: 0.2 | K4: 0.2 | L4: 0.3 | M4: 0.4 | N4: 0.3
A5: KPI 3 | B5: =VLOOKUP(A$2,GROWTH_Hypothesis!B$1:O$25,11,0) -> % stops subscriptions | C5: 0.04 | D5: 0.03 | E5: 0.03 | F5: 0.02 | G5: 0.04 | H5: 0.03 | I5: 0.03 | J5: 0.02 | K5: 0.04 | L5: 0.03 | M5: 0.03 | N5: 0.02
A6: KPI 4 | B6: =VLOOKUP(A$2,GROWTH_Hypothesis!B$1:O$25,12,0) -> 0
A7: KPI 5 | B7: =VLOOKUP(A$2,GROWTH_Hypothesis!B$1:O$25,13,0) -> 0
A8: Starting customers | B8: 10
A9: Starting revenue | B9: =B8*C3 -> 700
C10: Year 1 | O10: Year 2 | AA10: Year 3
A11: Month N | C11: 1 | D11: =C11+1 -> 2 | E11: =D11+1 -> 3 | F11: 4 | G11: 5 | H11: 6 | I11: 7 | J11: 8 | K11: 9 | L11: 10 | M11: 11 | N11: 12 | O11: 13 | P11: 14 | Q11: 15 | R11: 16 | S11: 17 | T11: 18 | U11: 19 | V11: 20 | W11: 21 | X11: 22 | Y11: 23 | Z11: 24 | AA11: 25 | AB11: 26 | AC11: 27 | AD11: 28 | AE11: 29 | AF11: 30 | AG11: 31 | AH11: 32 | AI11: 33 | AJ11: 34 | AK11: 35 | AL11: 36
A12: REVENUE STREAM RECURRENT
A14: Revenue & customer Growth
B15: Average revenue per new customer | C15: =$C3 -> 70 | D15: =$C3 -> 70 | E15: 70 | F15: =$D3 -> 70 | G15: =$D3 -> 70 | H15: 70 | I15: =$E3 -> 70 | J15: =$E3 -> 70 | K15: =$E3 -> 70 | L15: =$F3 -> 70 | M15: =$F3 -> 70 | N15: =$F3 -> 70 | O15: =$G3 -> 75 | P15: =$G3 -> 75 | Q15: =$G3 -> 75 | R15: =$H3 -> 75 | S15: =$H3 -> 75 | T15: =$H3 -> 75 | U15: =$I3 -> 75 | V15: =$I3 -> 75 | W15: =$I3 -> 75 | X15: =$J3 -> 75 | Y15: =$J3 -> 75 | Z15: =$J3 -> 75 | AA15: =$K3 -> 80 | AB15: =$K3 -> 80 | AC15: =$K3 -> 80 | AD15: =$L3 -> 80 | AE15: =$L3 -> 80 | AF15: =$L3 -> 80 | AG15: =$M3 -> 80 | AH15: =$M3 -> 80 | AI15: =$M3 -> 80 | AJ15: =$N3 -> 80 | AK15: =$N3 -> 80 | AL15: =$N3 -> 80
B16: New customers | C16: =B8+(B8*$C4) -> 12 | D16: =C16+C16*$C4 -> 14.4 | E16: =D16+D16*$C4 -> 17.28 | F16: =E16+E16*$D4 -> 22.464 | G16: =F16+F16*$D4 -> 29.2032 | H16: 37.96416 | I16: =H16+H16*$E4 -> 49.353408 | J16: =I16+I16*$E4 -> 64.1594304 | K16: =J16+J16*$E4 -> 83.40725952 | L16: =K16+K16*$F4 -> 108.4294374 | M16: =L16+L16*$F4 -> 140.9582686 | N16: =M16+M16*$F4 -> 183.2457492 | O16: =N16+N16*$G4 -> 219.894899 | P16: =O16+O16*$G4 -> 263.8738788 | Q16: =P16+P16*$G4 -> 316.6486546 | R16: =Q16+Q16*$H4 -> 379.9783855 | S16: =R16+R16*$H4 -> 455.9740626 | T16: =S16+S16*$H4 -> 547.1688751 | U16: =T16+T16*$I4 -> 656.6026501 | V16: =U16+U16*$I4 -> 787.9231801 | W16: =V16+V16*$I4 -> 945.5078161 | X16: =W16+W16*$J4 -> 1134.609379 | Y16: =X16+X16*$J4 -> 1361.531255 | Z16: =Y16+Y16*$J4 -> 1633.837506 | AA16: =Z16+Z16*$K4 -> 1960.605008 | AB16: =AA16+AA16*$K4 -> 2352.726009 | AC16: =AB16+AB16*$K4 -> 2823.271211 | AD16: =AC16+AC16*$L4 -> 3670.252574 | AE16: =AD16+AD16*$L4 -> 4771.328346 | AF16: =AE16+AE16*$L4 -> 6202.72685 | AG16: =AF16+AF16*$M4 -> 8683.81759 | AH16: =AG16+AG16*$M4 -> 12157.34463 | AI16: =AH16+AH16*$M4 -> 17020.28248 | AJ16: =AI16+AI16*$N4 -> 22126.36722 | AK16: =AJ16+AJ16*$N4 -> 28764.27739 | AL16: =AK16+AK16*$N4 -> 37393.5606
B17: Churn Rate | C17: =$C5 -> 0.04 | D17: =$C5 -> 0.04 | E17: 0.04 | F17: =$D5 -> 0.03 | G17: =$D5 -> 0.03 | H17: 0.03 | I17: =$E5 -> 0.03 | J17: =$E5 -> 0.03 | K17: =$E5 -> 0.03 | L17: =$F5 -> 0.02 | M17: =$F5 -> 0.02 | N17: =$F5 -> 0.02 | O17: =$G5 -> 0.04 | P17: =$G5 -> 0.04 | Q17: =$G5 -> 0.04 | R17: =$H5 -> 0.03 | S17: =$H5 -> 0.03 | T17: =$H5 -> 0.03 | U17: =$I5 -> 0.03 | V17: =$I5 -> 0.03 | W17: =$I5 -> 0.03 | X17: =$J5 -> 0.02 | Y17: =$J5 -> 0.02 | Z17: =$J5 -> 0.02 | AA17: =$K5 -> 0.04 | AB17: =$K5 -> 0.04 | AC17: =$K5 -> 0.04 | AD17: =$L5 -> 0.03 | AE17: =$L5 -> 0.03 | AF17: =$L5 -> 0.03 | AG17: =$M5 -> 0.03 | AH17: =$M5 -> 0.03 | AI17: =$M5 -> 0.03 | AJ17: =$N5 -> 0.02 | AK17: =$N5 -> 0.02 | AL17: =$N5 -> 0.02
A18: Month Recurring Revenue
B19: New MRR | C19: =C16*C15 -> 840 | D19: 1008 | E19: 1209.6 | F19: 1572.48 | G19: 2044.224 | H19: 2657.4912 | I19: =I16*I15 -> 3454.73856 | J19: 4491.160128 | K19: 5838.508166 | L19: =L16*L15 -> 7590.060616 | M19: 9867.078801 | N19: 12827.20244 | O19: 16492.11742 | P19: 19790.54091 | Q19: 23748.64909 | R19: 28498.37891 | S19: 34198.05469 | T19: 41037.66563 | U19: 49245.19876 | V19: 59094.23851 | W19: 70913.08621 | X19: =X16*X15 -> 85095.70345 | Y19: 102114.8441 | Z19: 122537.813 | AA19: 156848.4006 | AB19: 188218.0807 | AC19: 225861.6969 | AD19: 293620.2059 | AE19: 381706.2677 | AF19: 496218.148 | AG19: 694705.4072 | AH19: 972587.5701 | AI19: 1361622.598 | AJ19: 1770109.378 | AK19: 2301142.191 | AL19: 2991484.848
B20: Lost MRR | C20: =C21*C17 -> 28 | D20: 60.48 | E20: 98.3808 | F20: 107.122176 | G20: 151.0829107 | H20: 207.8771434 | I20: =I21*I17 -> 281.3655651 | J20: 376.5667549 | K20: 500.0045561 | L20: =L21*L17 -> 440.106443 | M20: 583.1055264 | N20: 768.7849919 | O20: 2019.906682 | P20: 2598.795112 | Q20: 3286.464943 | R20: 3078.714232 | S20: 3841.304172 | T20: 4752.006688 | U20: 5840.576456 | V20: 7142.715125 | W20: 8701.260827 | X20: =X21*X17 -> 7045.077059 | Y20: 8606.089587 | Z20: 10476.26468 | AA20: 25434.99129 | AB20: 30691.52766 | AC20: 36992.58978 | AD20: 33410.51555 | AE20: 41216.80626 | AF20: 51431.4901 | AG20: 64775.08984 | AH20: 83672.99936 | AI20: 110340.4365 | AJ20: 98585.93422 | AK20: 132016.4031 | AL20: 175398.9188
B21: MRR from last month | C21: =B9 -> 700 | D21: =C22 -> 1512 | E21: =D22 -> 2459.52 | F21: =E22 -> 3570.7392 | G21: 5036.097024 | H21: 6929.238113 | I21: 9378.85217 | J21: 12552.22516 | K21: 16666.81854 | L21: 22005.32215 | M21: 29155.27632 | N21: 38439.2496 | O21: 50497.66705 | P21: =O22 -> 64969.87779 | Q21: =P22 -> 82161.62359 | R21: =Q22 -> 102623.8077 | S21: =R22 -> 128043.4724 | T21: =S22 -> 158400.2229 | U21: =T22 -> 194685.8819 | V21: =U22 -> 238090.5042 | W21: =V22 -> 290042.0276 | X21: =W22 -> 352253.8529 | Y21: =X22 -> 430304.4793 | Z21: =Y22 -> 523813.2339 | AA21: 635874.7822 | AB21: =AA22 -> 767288.1915 | AC21: =AB22 -> 924814.7446 | AD21: =AC22 -> 1113683.852 | AE21: =AD22 -> 1373893.542 | AF21: =AE22 -> 1714383.003 | AG21: =AF22 -> 2159169.661 | AH21: =AG22 -> 2789099.979 | AI21: =AH22 -> 3678014.55 | AJ21: =AI22 -> 4929296.711 | AK21: =AJ22 -> 6600820.155 | AL21: =AK22 -> 8769945.942
B22: Gross MRR | C22: =C21+C19-C20 -> 1512 | D22: 2459.52 | E22: 3570.7392 | F22: 5036.097024 | G22: 6929.238113 | H22: 9378.85217 | I22: =I21+I19-I20 -> 12552.22516 | J22: 16666.81854 | K22: 22005.32215 | L22: =L21+L19-L20 -> 29155.27632 | M22: 38439.2496 | N22: 50497.66705 | O22: 64969.87779 | P22: 82161.62359 | Q22: 102623.8077 | R22: 128043.4724 | S22: 158400.2229 | T22: 194685.8819 | U22: 238090.5042 | V22: 290042.0276 | W22: 352253.8529 | X22: =X21+X19-X20 -> 430304.4793 | Y22: 523813.2339 | Z22: 635874.7822 | AA22: 767288.1915 | AB22: 924814.7446 | AC22: 1113683.852 | AD22: 1373893.542 | AE22: 1714383.003 | AF22: 2159169.661 | AG22: 2789099.979 | AH22: 3678014.55 | AI22: 4929296.711 | AJ22: 6600820.155 | AK22: 8769945.942 | AL22: 11586031.87
B23: MRR Growth rate
B24: Payment Processing | C24: =C22*COST_Hypothesis!$D11 -> 45.36 | D24: =D22*COST_Hypothesis!$D11 -> 73.7856 | E24: =E22*COST_Hypothesis!$D11 -> 107.122176 | F24: =F22*COST_Hypothesis!$D11 -> 151.0829107 | G24: =G22*COST_Hypothesis!$D11 -> 207.8771434 | H24: =H22*COST_Hypothesis!$D11 -> 281.3655651 | I24: =I22*COST_Hypothesis!$D11 -> 376.5667549 | J24: =J22*COST_Hypothesis!$D11 -> 500.0045561 | K24: =K22*COST_Hypothesis!$D11 -> 660.1596644 | L24: =L22*COST_Hypothesis!$D11 -> 874.6582896 | M24: =M22*COST_Hypothesis!$D11 -> 1153.177488 | N24: =N22*COST_Hypothesis!$D11 -> 1514.930011 | O24: =O22*COST_Hypothesis!$D11 -> 1949.096334 | P24: =P22*COST_Hypothesis!$D11 -> 2464.848708 | Q24: =Q22*COST_Hypothesis!$D11 -> 3078.714232 | R24: =R22*COST_Hypothesis!$D11 -> 3841.304172 | S24: =S22*COST_Hypothesis!$D11 -> 4752.006688 | T24: =T22*COST_Hypothesis!$D11 -> 5840.576456 | U24: =U22*COST_Hypothesis!$D11 -> 7142.715125 | V24: =V22*COST_Hypothesis!$D11 -> 8701.260827 | W24: =W22*COST_Hypothesis!$D11 -> 10567.61559 | X24: =X22*COST_Hypothesis!$D11 -> 12909.13438 | Y24: =Y22*COST_Hypothesis!$D11 -> 15714.39702 | Z24: =Z22*COST_Hypothesis!$D11 -> 19076.24347 | AA24: =AA22*COST_Hypothesis!$D11 -> 23018.64574 | AB24: =AB22*COST_Hypothesis!$D11 -> 27744.44234 | AC24: =AC22*COST_Hypothesis!$D11 -> 33410.51555 | AD24: =AD22*COST_Hypothesis!$D11 -> 41216.80626 | AE24: =AE22*COST_Hypothesis!$D11 -> 51431.4901 | AF24: =AF22*COST_Hypothesis!$D11 -> 64775.08984 | AG24: =AG22*COST_Hypothesis!$D11 -> 83672.99936 | AH24: =AH22*COST_Hypothesis!$D11 -> 110340.4365 | AI24: =AI22*COST_Hypothesis!$D11 -> 147878.9013 | AJ24: =AJ22*COST_Hypothesis!$D11 -> 198024.6046 | AK24: =AK22*COST_Hypothesis!$D11 -> 263098.3783 | AL24: =AL22*COST_Hypothesis!$D11 -> 347580.9562
B25: Net MRR | C25: =C22-C24 -> 1466.64 | D25: 2385.7344 | E25: =E22-E24 -> 3463.617024 | F25: 4885.014113 | G25: 6721.36097 | H25: 9097.486605 | I25: =I22-I24 -> 12175.65841 | J25: 16166.81398 | K25: 21345.16248 | L25: =L22-L24 -> 28280.61803 | M25: 37286.07211 | N25: 48982.73703 | O25: 63020.78146 | P25: 79696.77488 | Q25: 99545.0935 | R25: 124202.1682 | S25: 153648.2162 | T25: 188845.3054 | U25: 230947.7891 | V25: 281340.7667 | W25: 341686.2374 | X25: =X22-X24 -> 417395.345 | Y25: 508098.8369 | Z25: 616798.5387 | AA25: 744269.5458 | AB25: 897070.3022 | AC25: 1080273.336 | AD25: 1332676.736 | AE25: 1662951.513 | AF25: 2094394.572 | AG25: 2705426.979 | AH25: 3567674.113 | AI25: 4781417.81 | AJ25: 6402795.55 | AK25: 8506847.564 | AL25: 11238450.92
B27: Accumulated net MRR | C27: =C25 -> 1466.64 | D27: =C27+D25 -> 3852.3744 | E27: =D27+E25 -> 7315.991424 | F27: 12201.00554 | G27: 18922.36651 | H27: 28019.85311 | I27: 40195.51152 | J27: 56362.3255 | K27: 77707.48799 | L27: 105988.106 | M27: 143274.1781 | N27: 192256.9152 | O27: 255277.6966 | P27: 334974.4715 | Q27: 434519.565 | R27: 558721.7332 | S27: 712369.9495 | T27: 901215.2549 | U27: 1132163.044 | V27: 1413503.811 | W27: 1755190.048 | X27: 2172585.393 | Y27: 2680684.23 | Z27: 3297482.769 | AA27: 4041752.314 | AB27: 4938822.617 | AC27: 6019095.953 | AD27: 7351772.688 | AE27: 9014724.202 | AF27: 11109118.77 | AG27: 13814545.75 | AH27: 17382219.87 | AI27: 22163637.68 | AJ27: 28566433.23 | AK27: 37073280.79 | AL27: 48311731.71
A29: COSTS OF GOOD SOLD
A31: Cost of goods sold per transaction
B32: =COST_Hypothesis!$B3 -> Manufacturing cost | C32: =C$15*COST_Hypothesis!$D3*C$16 -> 0 | D32: =D$15*COST_Hypothesis!$D3*D$16 -> 0 | E32: =E$15*COST_Hypothesis!$D3*E$16 -> 0 | F32: =F$15*COST_Hypothesis!$D3*F$16 -> 0 | G32: =G$15*COST_Hypothesis!$D3*G$16 -> 0 | H32: =H$15*COST_Hypothesis!$D3*H$16 -> 0 | I32: =I$15*COST_Hypothesis!$D3*I$16 -> 0 | J32: =J$15*COST_Hypothesis!$D3*J$16 -> 0 | K32: =K$15*COST_Hypothesis!$D3*K$16 -> 0 | L32: =L$15*COST_Hypothesis!$D3*L$16 -> 0 | M32: =M$15*COST_Hypothesis!$D3*M$16 -> 0 | N32: =N$15*COST_Hypothesis!$D3*N$16 -> 0 | O32: =O$15*COST_Hypothesis!$D3*O$16 -> 0 | P32: =P$15*COST_Hypothesis!$D3*P$16 -> 0 | Q32: =Q$15*COST_Hypothesis!$D3*Q$16 -> 0 | R32: =R$15*COST_Hypothesis!$D3*R$16 -> 0 | S32: =S$15*COST_Hypothesis!$D3*S$16 -> 0 | T32: =T$15*COST_Hypothesis!$D3*T$16 -> 0 | U32: =U$15*COST_Hypothesis!$D3*U$16 -> 0 | V32: =V$15*COST_Hypothesis!$D3*V$16 -> 0 | W32: =W$15*COST_Hypothesis!$D3*W$16 -> 0 | X32: =X$15*COST_Hypothesis!$D3*X$16 -> 0 | Y32: =Y$15*COST_Hypothesis!$D3*Y$16 -> 0 | Z32: =Z$15*COST_Hypothesis!$D3*Z$16 -> 0 | AA32: =AA$15*COST_Hypothesis!$D3*AA$16 -> 0 | AB32: =AB$15*COST_Hypothesis!$D3*AB$16 -> 0 | AC32: =AC$15*COST_Hypothesis!$D3*AC$16 -> 0 | AD32: =AD$15*COST_Hypothesis!$D3*AD$16 -> 0 | AE32: =AE$15*COST_Hypothesis!$D3*AE$16 -> 0 | AF32: =AF$15*COST_Hypothesis!$D3*AF$16 -> 0 | AG32: =AG$15*COST_Hypothesis!$D3*AG$16 -> 0 | AH32: =AH$15*COST_Hypothesis!$D3*AH$16 -> 0 | AI32: =AI$15*COST_Hypothesis!$D3*AI$16 -> 0 | AJ32: =AJ$15*COST_Hypothesis!$D3*AJ$16 -> 0 | AK32: =AK$15*COST_Hypothesis!$D3*AK$16 -> 0 | AL32: =AL$15*COST_Hypothesis!$D3*AL$16 -> 0
B33: =COST_Hypothesis!$B4 -> Assembly cost | C33: =C$15*COST_Hypothesis!$D4*C$16 -> 0 | D33: =D$15*COST_Hypothesis!$D4*D$16 -> 0 | E33: =E$15*COST_Hypothesis!$D4*E$16 -> 0 | F33: =F$15*COST_Hypothesis!$D4*F$16 -> 0 | G33: =G$15*COST_Hypothesis!$D4*G$16 -> 0 | H33: =H$15*COST_Hypothesis!$D4*H$16 -> 0 | I33: =I$15*COST_Hypothesis!$D4*I$16 -> 0 | J33: =J$15*COST_Hypothesis!$D4*J$16 -> 0 | K33: =K$15*COST_Hypothesis!$D4*K$16 -> 0 | L33: =L$15*COST_Hypothesis!$D4*L$16 -> 0 | M33: =M$15*COST_Hypothesis!$D4*M$16 -> 0 | N33: =N$15*COST_Hypothesis!$D4*N$16 -> 0 | O33: =O$15*COST_Hypothesis!$D4*O$16 -> 0 | P33: =P$15*COST_Hypothesis!$D4*P$16 -> 0 | Q33: =Q$15*COST_Hypothesis!$D4*Q$16 -> 0 | R33: =R$15*COST_Hypothesis!$D4*R$16 -> 0 | S33: =S$15*COST_Hypothesis!$D4*S$16 -> 0 | T33: =T$15*COST_Hypothesis!$D4*T$16 -> 0 | U33: =U$15*COST_Hypothesis!$D4*U$16 -> 0 | V33: =V$15*COST_Hypothesis!$D4*V$16 -> 0 | W33: =W$15*COST_Hypothesis!$D4*W$16 -> 0 | X33: =X$15*COST_Hypothesis!$D4*X$16 -> 0 | Y33: =Y$15*COST_Hypothesis!$D4*Y$16 -> 0 | Z33: =Z$15*COST_Hypothesis!$D4*Z$16 -> 0 | AA33: =AA$15*COST_Hypothesis!$D4*AA$16 -> 0 | AB33: =AB$15*COST_Hypothesis!$D4*AB$16 -> 0 | AC33: =AC$15*COST_Hypothesis!$D4*AC$16 -> 0 | AD33: =AD$15*COST_Hypothesis!$D4*AD$16 -> 0 | AE33: =AE$15*COST_Hypothesis!$D4*AE$16 -> 0 | AF33: =AF$15*COST_Hypothesis!$D4*AF$16 -> 0 | AG33: =AG$15*COST_Hypothesis!$D4*AG$16 -> 0 | AH33: =AH$15*COST_Hypothesis!$D4*AH$16 -> 0 | AI33: =AI$15*COST_Hypothesis!$D4*AI$16 -> 0 | AJ33: =AJ$15*COST_Hypothesis!$D4*AJ$16 -> 0 | AK33: =AK$15*COST_Hypothesis!$D4*AK$16 -> 0 | AL33: =AL$15*COST_Hypothesis!$D4*AL$16 -> 0
B34: =COST_Hypothesis!$B5 -> Packaging cost | C34: =C$15*COST_Hypothesis!$D5*C$16 -> 0 | D34: =D$15*COST_Hypothesis!$D5*D$16 -> 0 | E34: =E$15*COST_Hypothesis!$D5*E$16 -> 0 | F34: =F$15*COST_Hypothesis!$D5*F$16 -> 0 | G34: =G$15*COST_Hypothesis!$D5*G$16 -> 0 | H34: =H$15*COST_Hypothesis!$D5*H$16 -> 0 | I34: =I$15*COST_Hypothesis!$D5*I$16 -> 0 | J34: =J$15*COST_Hypothesis!$D5*J$16 -> 0 | K34: =K$15*COST_Hypothesis!$D5*K$16 -> 0 | L34: =L$15*COST_Hypothesis!$D5*L$16 -> 0 | M34: =M$15*COST_Hypothesis!$D5*M$16 -> 0 | N34: =N$15*COST_Hypothesis!$D5*N$16 -> 0 | O34: =O$15*COST_Hypothesis!$D5*O$16 -> 0 | P34: =P$15*COST_Hypothesis!$D5*P$16 -> 0 | Q34: =Q$15*COST_Hypothesis!$D5*Q$16 -> 0 | R34: =R$15*COST_Hypothesis!$D5*R$16 -> 0 | S34: =S$15*COST_Hypothesis!$D5*S$16 -> 0 | T34: =T$15*COST_Hypothesis!$D5*T$16 -> 0 | U34: =U$15*COST_Hypothesis!$D5*U$16 -> 0 | V34: =V$15*COST_Hypothesis!$D5*V$16 -> 0 | W34: =W$15*COST_Hypothesis!$D5*W$16 -> 0 | X34: =X$15*COST_Hypothesis!$D5*X$16 -> 0 | Y34: =Y$15*COST_Hypothesis!$D5*Y$16 -> 0 | Z34: =Z$15*COST_Hypothesis!$D5*Z$16 -> 0 | AA34: =AA$15*COST_Hypothesis!$D5*AA$16 -> 0 | AB34: =AB$15*COST_Hypothesis!$D5*AB$16 -> 0 | AC34: =AC$15*COST_Hypothesis!$D5*AC$16 -> 0 | AD34: =AD$15*COST_Hypothesis!$D5*AD$16 -> 0 | AE34: =AE$15*COST_Hypothesis!$D5*AE$16 -> 0 | AF34: =AF$15*COST_Hypothesis!$D5*AF$16 -> 0 | AG34: =AG$15*COST_Hypothesis!$D5*AG$16 -> 0 | AH34: =AH$15*COST_Hypothesis!$D5*AH$16 -> 0 | AI34: =AI$15*COST_Hypothesis!$D5*AI$16 -> 0 | AJ34: =AJ$15*COST_Hypothesis!$D5*AJ$16 -> 0 | AK34: =AK$15*COST_Hypothesis!$D5*AK$16 -> 0 | AL34: =AL$15*COST_Hypothesis!$D5*AL$16 -> 0
B35: =COST_Hypothesis!$B6 -> Warehouse cost | C35: =C$15*COST_Hypothesis!$D6*C$16 -> 0 | D35: =D$15*COST_Hypothesis!$D6*D$16 -> 0 | E35: =E$15*COST_Hypothesis!$D6*E$16 -> 0 | F35: =F$15*COST_Hypothesis!$D6*F$16 -> 0 | G35: =G$15*COST_Hypothesis!$D6*G$16 -> 0 | H35: =H$15*COST_Hypothesis!$D6*H$16 -> 0 | I35: =I$15*COST_Hypothesis!$D6*I$16 -> 0 | J35: =J$15*COST_Hypothesis!$D6*J$16 -> 0 | K35: =K$15*COST_Hypothesis!$D6*K$16 -> 0 | L35: =L$15*COST_Hypothesis!$D6*L$16 -> 0 | M35: =M$15*COST_Hypothesis!$D6*M$16 -> 0 | N35: =N$15*COST_Hypothesis!$D6*N$16 -> 0 | O35: =O$15*COST_Hypothesis!$D6*O$16 -> 0 | P35: =P$15*COST_Hypothesis!$D6*P$16 -> 0 | Q35: =Q$15*COST_Hypothesis!$D6*Q$16 -> 0 | R35: =R$15*COST_Hypothesis!$D6*R$16 -> 0 | S35: =S$15*COST_Hypothesis!$D6*S$16 -> 0 | T35: =T$15*COST_Hypothesis!$D6*T$16 -> 0 | U35: =U$15*COST_Hypothesis!$D6*U$16 -> 0 | V35: =V$15*COST_Hypothesis!$D6*V$16 -> 0 | W35: =W$15*COST_Hypothesis!$D6*W$16 -> 0 | X35: =X$15*COST_Hypothesis!$D6*X$16 -> 0 | Y35: =Y$15*COST_Hypothesis!$D6*Y$16 -> 0 | Z35: =Z$15*COST_Hypothesis!$D6*Z$16 -> 0 | AA35: =AA$15*COST_Hypothesis!$D6*AA$16 -> 0 | AB35: =AB$15*COST_Hypothesis!$D6*AB$16 -> 0 | AC35: =AC$15*COST_Hypothesis!$D6*AC$16 -> 0 | AD35: =AD$15*COST_Hypothesis!$D6*AD$16 -> 0 | AE35: =AE$15*COST_Hypothesis!$D6*AE$16 -> 0 | AF35: =AF$15*COST_Hypothesis!$D6*AF$16 -> 0 | AG35: =AG$15*COST_Hypothesis!$D6*AG$16 -> 0 | AH35: =AH$15*COST_Hypothesis!$D6*AH$16 -> 0 | AI35: =AI$15*COST_Hypothesis!$D6*AI$16 -> 0 | AJ35: =AJ$15*COST_Hypothesis!$D6*AJ$16 -> 0 | AK35: =AK$15*COST_Hypothesis!$D6*AK$16 -> 0 | AL35: =AL$15*COST_Hypothesis!$D6*AL$16 -> 0
B36: =COST_Hypothesis!$B7 -> Delivery cost | C36: =C$15*COST_Hypothesis!$D7*C$16 -> 126 | D36: =D$15*COST_Hypothesis!$D7*D$16 -> 151.2 | E36: =E$15*COST_Hypothesis!$D7*E$16 -> 181.44 | F36: =F$15*COST_Hypothesis!$D7*F$16 -> 235.872 | G36: =G$15*COST_Hypothesis!$D7*G$16 -> 306.6336 | H36: =H$15*COST_Hypothesis!$D7*H$16 -> 398.62368 | I36: =I$15*COST_Hypothesis!$D7*I$16 -> 518.210784 | J36: =J$15*COST_Hypothesis!$D7*J$16 -> 673.6740192 | K36: =K$15*COST_Hypothesis!$D7*K$16 -> 875.776225 | L36: =L$15*COST_Hypothesis!$D7*L$16 -> 1138.509092 | M36: =M$15*COST_Hypothesis!$D7*M$16 -> 1480.06182 | N36: =N$15*COST_Hypothesis!$D7*N$16 -> 1924.080366 | O36: =O$15*COST_Hypothesis!$D7*O$16 -> 2473.817614 | P36: =P$15*COST_Hypothesis!$D7*P$16 -> 2968.581136 | Q36: =Q$15*COST_Hypothesis!$D7*Q$16 -> 3562.297364 | R36: =R$15*COST_Hypothesis!$D7*R$16 -> 4274.756837 | S36: =S$15*COST_Hypothesis!$D7*S$16 -> 5129.708204 | T36: =T$15*COST_Hypothesis!$D7*T$16 -> 6155.649845 | U36: =U$15*COST_Hypothesis!$D7*U$16 -> 7386.779814 | V36: =V$15*COST_Hypothesis!$D7*V$16 -> 8864.135776 | W36: =W$15*COST_Hypothesis!$D7*W$16 -> 10636.96293 | X36: =X$15*COST_Hypothesis!$D7*X$16 -> 12764.35552 | Y36: =Y$15*COST_Hypothesis!$D7*Y$16 -> 15317.22662 | Z36: =Z$15*COST_Hypothesis!$D7*Z$16 -> 18380.67195 | AA36: =AA$15*COST_Hypothesis!$D7*AA$16 -> 23527.26009 | AB36: =AB$15*COST_Hypothesis!$D7*AB$16 -> 28232.71211 | AC36: =AC$15*COST_Hypothesis!$D7*AC$16 -> 33879.25453 | AD36: =AD$15*COST_Hypothesis!$D7*AD$16 -> 44043.03089 | AE36: =AE$15*COST_Hypothesis!$D7*AE$16 -> 57255.94016 | AF36: =AF$15*COST_Hypothesis!$D7*AF$16 -> 74432.7222 | AG36: =AG$15*COST_Hypothesis!$D7*AG$16 -> 104205.8111 | AH36: =AH$15*COST_Hypothesis!$D7*AH$16 -> 145888.1355 | AI36: =AI$15*COST_Hypothesis!$D7*AI$16 -> 204243.3897 | AJ36: =AJ$15*COST_Hypothesis!$D7*AJ$16 -> 265516.4066 | AK36: =AK$15*COST_Hypothesis!$D7*AK$16 -> 345171.3286 | AL36: =AL$15*COST_Hypothesis!$D7*AL$16 -> 448722.7272
B37: =COST_Hypothesis!$B8 -> Exporting cost | C37: =C$15*COST_Hypothesis!$D8*C$16 -> 0 | D37: =D$15*COST_Hypothesis!$D8*D$16 -> 0 | E37: =E$15*COST_Hypothesis!$D8*E$16 -> 0 | F37: =F$15*COST_Hypothesis!$D8*F$16 -> 0 | G37: =G$15*COST_Hypothesis!$D8*G$16 -> 0 | H37: =H$15*COST_Hypothesis!$D8*H$16 -> 0 | I37: =I$15*COST_Hypothesis!$D8*I$16 -> 0 | J37: =J$15*COST_Hypothesis!$D8*J$16 -> 0 | K37: =K$15*COST_Hypothesis!$D8*K$16 -> 0 | L37: =L$15*COST_Hypothesis!$D8*L$16 -> 0 | M37: =M$15*COST_Hypothesis!$D8*M$16 -> 0 | N37: =N$15*COST_Hypothesis!$D8*N$16 -> 0 | O37: =O$15*COST_Hypothesis!$D8*O$16 -> 0 | P37: =P$15*COST_Hypothesis!$D8*P$16 -> 0 | Q37: =Q$15*COST_Hypothesis!$D8*Q$16 -> 0 | R37: =R$15*COST_Hypothesis!$D8*R$16 -> 0 | S37: =S$15*COST_Hypothesis!$D8*S$16 -> 0 | T37: =T$15*COST_Hypothesis!$D8*T$16 -> 0 | U37: =U$15*COST_Hypothesis!$D8*U$16 -> 0 | V37: =V$15*COST_Hypothesis!$D8*V$16 -> 0 | W37: =W$15*COST_Hypothesis!$D8*W$16 -> 0 | X37: =X$15*COST_Hypothesis!$D8*X$16 -> 0 | Y37: =Y$15*COST_Hypothesis!$D8*Y$16 -> 0 | Z37: =Z$15*COST_Hypothesis!$D8*Z$16 -> 0 | AA37: =AA$15*COST_Hypothesis!$D8*AA$16 -> 0 | AB37: =AB$15*COST_Hypothesis!$D8*AB$16 -> 0 | AC37: =AC$15*COST_Hypothesis!$D8*AC$16 -> 0 | AD37: =AD$15*COST_Hypothesis!$D8*AD$16 -> 0 | AE37: =AE$15*COST_Hypothesis!$D8*AE$16 -> 0 | AF37: =AF$15*COST_Hypothesis!$D8*AF$16 -> 0 | AG37: =AG$15*COST_Hypothesis!$D8*AG$16 -> 0 | AH37: =AH$15*COST_Hypothesis!$D8*AH$16 -> 0 | AI37: =AI$15*COST_Hypothesis!$D8*AI$16 -> 0 | AJ37: =AJ$15*COST_Hypothesis!$D8*AJ$16 -> 0 | AK37: =AK$15*COST_Hypothesis!$D8*AK$16 -> 0 | AL37: =AL$15*COST_Hypothesis!$D8*AL$16 -> 0
B38: =COST_Hypothesis!$B9 -> Maintenance cost | C38: =C$15*COST_Hypothesis!$D9*C$16 -> 126 | D38: =D$15*COST_Hypothesis!$D9*D$16 -> 151.2 | E38: =E$15*COST_Hypothesis!$D9*E$16 -> 181.44 | F38: =F$15*COST_Hypothesis!$D9*F$16 -> 235.872 | G38: =G$15*COST_Hypothesis!$D9*G$16 -> 306.6336 | H38: =H$15*COST_Hypothesis!$D9*H$16 -> 398.62368 | I38: =I$15*COST_Hypothesis!$D9*I$16 -> 518.210784 | J38: =J$15*COST_Hypothesis!$D9*J$16 -> 673.6740192 | K38: =K$15*COST_Hypothesis!$D9*K$16 -> 875.776225 | L38: =L$15*COST_Hypothesis!$D9*L$16 -> 1138.509092 | M38: =M$15*COST_Hypothesis!$D9*M$16 -> 1480.06182 | N38: =N$15*COST_Hypothesis!$D9*N$16 -> 1924.080366 | O38: =O$15*COST_Hypothesis!$D9*O$16 -> 2473.817614 | P38: =P$15*COST_Hypothesis!$D9*P$16 -> 2968.581136 | Q38: =Q$15*COST_Hypothesis!$D9*Q$16 -> 3562.297364 | R38: =R$15*COST_Hypothesis!$D9*R$16 -> 4274.756837 | S38: =S$15*COST_Hypothesis!$D9*S$16 -> 5129.708204 | T38: =T$15*COST_Hypothesis!$D9*T$16 -> 6155.649845 | U38: =U$15*COST_Hypothesis!$D9*U$16 -> 7386.779814 | V38: =V$15*COST_Hypothesis!$D9*V$16 -> 8864.135776 | W38: =W$15*COST_Hypothesis!$D9*W$16 -> 10636.96293 | X38: =X$15*COST_Hypothesis!$D9*X$16 -> 12764.35552 | Y38: =Y$15*COST_Hypothesis!$D9*Y$16 -> 15317.22662 | Z38: =Z$15*COST_Hypothesis!$D9*Z$16 -> 18380.67195 | AA38: =AA$15*COST_Hypothesis!$D9*AA$16 -> 23527.26009 | AB38: =AB$15*COST_Hypothesis!$D9*AB$16 -> 28232.71211 | AC38: =AC$15*COST_Hypothesis!$D9*AC$16 -> 33879.25453 | AD38: =AD$15*COST_Hypothesis!$D9*AD$16 -> 44043.03089 | AE38: =AE$15*COST_Hypothesis!$D9*AE$16 -> 57255.94016 | AF38: =AF$15*COST_Hypothesis!$D9*AF$16 -> 74432.7222 | AG38: =AG$15*COST_Hypothesis!$D9*AG$16 -> 104205.8111 | AH38: =AH$15*COST_Hypothesis!$D9*AH$16 -> 145888.1355 | AI38: =AI$15*COST_Hypothesis!$D9*AI$16 -> 204243.3897 | AJ38: =AJ$15*COST_Hypothesis!$D9*AJ$16 -> 265516.4066 | AK38: =AK$15*COST_Hypothesis!$D9*AK$16 -> 345171.3286 | AL38: =AL$15*COST_Hypothesis!$D9*AL$16 -> 448722.7272
B39: =COST_Hypothesis!$B10 -> Hosting cost | C39: =C$15*COST_Hypothesis!$D10*C$16 -> 168 | D39: =D$15*COST_Hypothesis!$D10*D$16 -> 201.6 | E39: =E$15*COST_Hypothesis!$D10*E$16 -> 241.92 | F39: =F$15*COST_Hypothesis!$D10*F$16 -> 314.496 | G39: =G$15*COST_Hypothesis!$D10*G$16 -> 408.8448 | H39: =H$15*COST_Hypothesis!$D10*H$16 -> 531.49824 | I39: =I$15*COST_Hypothesis!$D10*I$16 -> 690.947712 | J39: =J$15*COST_Hypothesis!$D10*J$16 -> 898.2320256 | K39: =K$15*COST_Hypothesis!$D10*K$16 -> 1167.701633 | L39: =L$15*COST_Hypothesis!$D10*L$16 -> 1518.012123 | M39: =M$15*COST_Hypothesis!$D10*M$16 -> 1973.41576 | N39: =N$15*COST_Hypothesis!$D10*N$16 -> 2565.440488 | O39: =O$15*COST_Hypothesis!$D10*O$16 -> 3298.423485 | P39: =P$15*COST_Hypothesis!$D10*P$16 -> 3958.108182 | Q39: =Q$15*COST_Hypothesis!$D10*Q$16 -> 4749.729818 | R39: =R$15*COST_Hypothesis!$D10*R$16 -> 5699.675782 | S39: =S$15*COST_Hypothesis!$D10*S$16 -> 6839.610938 | T39: =T$15*COST_Hypothesis!$D10*T$16 -> 8207.533126 | U39: =U$15*COST_Hypothesis!$D10*U$16 -> 9849.039751 | V39: =V$15*COST_Hypothesis!$D10*V$16 -> 11818.8477 | W39: =W$15*COST_Hypothesis!$D10*W$16 -> 14182.61724 | X39: =X$15*COST_Hypothesis!$D10*X$16 -> 17019.14069 | Y39: =Y$15*COST_Hypothesis!$D10*Y$16 -> 20422.96883 | Z39: =Z$15*COST_Hypothesis!$D10*Z$16 -> 24507.56259 | AA39: =AA$15*COST_Hypothesis!$D10*AA$16 -> 31369.68012 | AB39: =AB$15*COST_Hypothesis!$D10*AB$16 -> 37643.61614 | AC39: =AC$15*COST_Hypothesis!$D10*AC$16 -> 45172.33937 | AD39: =AD$15*COST_Hypothesis!$D10*AD$16 -> 58724.04119 | AE39: =AE$15*COST_Hypothesis!$D10*AE$16 -> 76341.25354 | AF39: =AF$15*COST_Hypothesis!$D10*AF$16 -> 99243.6296 | AG39: =AG$15*COST_Hypothesis!$D10*AG$16 -> 138941.0814 | AH39: =AH$15*COST_Hypothesis!$D10*AH$16 -> 194517.514 | AI39: =AI$15*COST_Hypothesis!$D10*AI$16 -> 272324.5196 | AJ39: =AJ$15*COST_Hypothesis!$D10*AJ$16 -> 354021.8755 | AK39: =AK$15*COST_Hypothesis!$D10*AK$16 -> 460228.4382 | AL39: =AL$15*COST_Hypothesis!$D10*AL$16 -> 598296.9696
B40: Total cost of Good Sold | C40: =SUM(C32:C39) -> 420 | D40: 504 | E40: 604.8 | F40: 786.24 | G40: 1022.112 | H40: 1328.7456 | I40: 1727.36928 | J40: 2245.580064 | K40: 2919.254083 | L40: 3795.030308 | M40: 4933.539401 | N40: 6413.601221 | O40: =SUM(O32:O39) -> 8246.058712 | P40: 9895.270455 | Q40: 11874.32455 | R40: 14249.18946 | S40: 17099.02735 | T40: 20518.83282 | U40: 24622.59938 | V40: 29547.11925 | W40: 35456.5431 | X40: 42547.85173 | Y40: 51057.42207 | Z40: 61268.90649 | AA40: 78424.2003 | AB40: 94109.04036 | AC40: 112930.8484 | AD40: 146810.103 | AE40: 190853.1339 | AF40: 248109.074 | AG40: 347352.7036 | AH40: 486293.7851 | AI40: 680811.2991 | AJ40: 885054.6888 | AK40: 1150571.095 | AL40: 1495742.424
B42: Accumulated cost of Good sold | C42: =C40 -> 420 | D42: =C42+D40 -> 924 | E42: =D42+E40 -> 1528.8 | F42: 2315.04 | G42: 3337.152 | H42: 4665.8976 | I42: 6393.26688 | J42: 8638.846944 | K42: 11558.10103 | L42: 15353.13134 | M42: 20286.67074 | N42: 26700.27196 | O42: 34946.33067 | P42: 44841.60112 | Q42: 56715.92567 | R42: 70965.11513 | S42: 88064.14247 | T42: 108582.9753 | U42: 133205.5747 | V42: 162752.6939 | W42: 198209.237 | X42: 240757.0888 | Y42: 291814.5108 | Z42: 353083.4173 | AA42: 431507.6176 | AB42: 525616.658 | AC42: 638547.5064 | AD42: 785357.6094 | AE42: 976210.7432 | AF42: 1224319.817 | AG42: 1571672.521 | AH42: 2057966.306 | AI42: 2738777.605 | AJ42: 3623832.294 | AK42: 4774403.389 | AL42: 6270145.813
A44: PROFIT & LOSS
A46: Revenue
B47: Gross MRR | C47: =C22 -> 1512 | D47: =D22 -> 2459.52 | E47: 3570.7392 | F47: 5036.097024 | G47: 6929.238113 | H47: 9378.85217 | I47: 12552.22516 | J47: 16666.81854 | K47: 22005.32215 | L47: 29155.27632 | M47: 38439.2496 | N47: 50497.66705 | O47: =O22 -> 64969.87779 | P47: =P22 -> 82161.62359 | Q47: 102623.8077 | R47: 128043.4724 | S47: 158400.2229 | T47: 194685.8819 | U47: 238090.5042 | V47: 290042.0276 | W47: 352253.8529 | X47: 430304.4793 | Y47: 523813.2339 | Z47: 635874.7822 | AA47: =AA22 -> 767288.1915 | AB47: =AB22 -> 924814.7446 | AC47: 1113683.852 | AD47: 1373893.542 | AE47: 1714383.003 | AF47: 2159169.661 | AG47: 2789099.979 | AH47: 3678014.55 | AI47: 4929296.711 | AJ47: 6600820.155 | AK47: 8769945.942 | AL47: 11586031.87
A48: Costs of Good sold
B49: Total costs of Good Sold | C49: =C40 -> 420 | D49: =D40 -> 504 | E49: =E40 -> 604.8 | F49: 786.24 | G49: 1022.112 | H49: 1328.7456 | I49: 1727.36928 | J49: 2245.580064 | K49: 2919.254083 | L49: 3795.030308 | M49: 4933.539401 | N49: 6413.601221 | O49: =O40 -> 8246.058712 | P49: =P40 -> 9895.270455 | Q49: =Q40 -> 11874.32455 | R49: 14249.18946 | S49: 17099.02735 | T49: 20518.83282 | U49: 24622.59938 | V49: 29547.11925 | W49: 35456.5431 | X49: 42547.85173 | Y49: 51057.42207 | Z49: 61268.90649 | AA49: =AA40 -> 78424.2003 | AB49: =AB40 -> 94109.04036 | AC49: =AC40 -> 112930.8484 | AD49: 146810.103 | AE49: 190853.1339 | AF49: 248109.074 | AG49: 347352.7036 | AH49: 486293.7851 | AI49: 680811.2991 | AJ49: 885054.6888 | AK49: 1150571.095 | AL49: 1495742.424
A50: Gross Profit
B51: Gross Profit | C51: =C47-C49 -> 1092 | D51: =D47-D49 -> 1955.52 | E51: =E47-E49 -> 2965.9392 | F51: 4249.857024 | G51: 5907.126113 | H51: 8050.10657 | I51: 10824.85588 | J51: 14421.23847 | K51: 19086.06806 | L51: 25360.24601 | M51: 33505.7102 | N51: 44084.06583 | O51: =O47-O49 -> 56723.81908 | P51: =P47-P49 -> 72266.35313 | Q51: =Q47-Q49 -> 90749.48319 | R51: 113794.283 | S51: 141301.1956 | T51: 174167.0491 | U51: 213467.9048 | V51: 260494.9083 | W51: 316797.3098 | X51: 387756.6276 | Y51: 472755.8118 | Z51: 574605.8757 | AA51: =AA47-AA49 -> 688863.9912 | AB51: =AB47-AB49 -> 830705.7042 | AC51: =AC47-AC49 -> 1000753.003 | AD51: 1227083.439 | AE51: 1523529.87 | AF51: 1911060.587 | AG51: 2441747.275 | AH51: 3191720.764 | AI51: 4248485.412 | AJ51: 5715765.466 | AK51: 7619374.847 | AL51: 10090289.45
B52: % margin | C52: =1-C49/C47 -> 0.7222222222 | D52: =1-D49/D47 -> 0.7950819672 | E52: 0.8306233062 | F52: 0.8438791 | G52: 0.8524928739 | H52: 0.8583253498 | I52: 0.8623854132 | J52: 0.8652664239 | K52: 0.8673387254 | L52: 0.8698338419 | M52: 0.8716535975 | N52: 0.8729921282 | O52: =1-O49/O47 -> 0.8730787406 | P52: =1-P49/P47 -> 0.879563353 | Q52: 0.8842926918 | R52: 0.8887160026 | S52: 0.892051747 | T52: 0.8946054402 | U52: 0.8965830264 | V52: 0.8981281454 | W52: 0.8993437749 | X52: 0.9011215226 | Y52: 0.9025274301 | Z52: 0.9036462709 | AA52: =1-AA49/AA47 -> 0.8977904245 | AB52: =1-AB49/AB47 -> 0.8982401168 | AC52: 0.8985970316 | AD52: 0.8931430286 | AE52: 0.8886753232 | AF52: 0.8850905149 | AG52: 0.8754606481 | AH52: 0.8677836157 | AI52: 0.861884699 | AJ52: 0.8659174666 | AK52: 0.8688052238 | AL52: 0.8709012334
A53: Operating Expenses
A54: (acquisition cost, intermediation cost) | B54: Sales & Marketing | C54: =COST_Hypothesis!$C$15+COST_Hypothesis!$C$16 -> 20000 | D54: =COST_Hypothesis!$C$15+COST_Hypothesis!$C$16 -> 20000 | E54: =COST_Hypothesis!$C$15+COST_Hypothesis!$C$16 -> 20000 | F54: =COST_Hypothesis!$C$15+COST_Hypothesis!$C$16 -> 20000 | G54: =COST_Hypothesis!$C$15+COST_Hypothesis!$C$16 -> 20000 | H54: =COST_Hypothesis!$C$15+COST_Hypothesis!$C$16 -> 20000 | I54: =COST_Hypothesis!$C$15+COST_Hypothesis!$C$16 -> 20000 | J54: =COST_Hypothesis!$C$15+COST_Hypothesis!$C$16 -> 20000 | K54: =COST_Hypothesis!$C$15+COST_Hypothesis!$C$16 -> 20000 | L54: =COST_Hypothesis!$C$15+COST_Hypothesis!$C$16 -> 20000 | M54: =COST_Hypothesis!$C$15+COST_Hypothesis!$C$16 -> 20000 | N54: =COST_Hypothesis!$C$15+COST_Hypothesis!$C$16 -> 20000 | O54: =COST_Hypothesis!$C$15+COST_Hypothesis!$C$16 -> 20000 | P54: =COST_Hypothesis!$C$15+COST_Hypothesis!$C$16 -> 20000 | Q54: =COST_Hypothesis!$C$15+COST_Hypothesis!$C$16 -> 20000 | R54: =COST_Hypothesis!$C$15+COST_Hypothesis!$C$16 -> 20000 | S54: =COST_Hypothesis!$C$15+COST_Hypothesis!$C$16 -> 20000 | T54: =COST_Hypothesis!$C$15+COST_Hypothesis!$C$16 -> 20000 | U54: =COST_Hypothesis!$C$15+COST_Hypothesis!$C$16 -> 20000 | V54: =COST_Hypothesis!$C$15+COST_Hypothesis!$C$16 -> 20000 | W54: =COST_Hypothesis!$C$15+COST_Hypothesis!$C$16 -> 20000 | X54: =COST_Hypothesis!$C$15+COST_Hypothesis!$C$16 -> 20000 | Y54: =COST_Hypothesis!$C$15+COST_Hypothesis!$C$16 -> 20000 | Z54: =COST_Hypothesis!$C$15+COST_Hypothesis!$C$16 -> 20000 | AA54: =COST_Hypothesis!$C$15+COST_Hypothesis!$C$16 -> 20000 | AB54: =COST_Hypothesis!$C$15+COST_Hypothesis!$C$16 -> 20000 | AC54: =COST_Hypothesis!$C$15+COST_Hypothesis!$C$16 -> 20000 | AD54: =COST_Hypothesis!$C$15+COST_Hypothesis!$C$16 -> 20000 | AE54: =COST_Hypothesis!$C$15+COST_Hypothesis!$C$16 -> 20000 | AF54: =COST_Hypothesis!$C$15+COST_Hypothesis!$C$16 -> 20000 | AG54: =COST_Hypothesis!$C$15+COST_Hypothesis!$C$16 -> 20000 | AH54: =COST_Hypothesis!$C$15+COST_Hypothesis!$C$16 -> 20000 | AI54: =COST_Hypothesis!$C$15+COST_Hypothesis!$C$16 -> 20000 | AJ54: =COST_Hypothesis!$C$15+COST_Hypothesis!$C$16 -> 20000 | AK54: =COST_Hypothesis!$C$15+COST_Hypothesis!$C$16 -> 20000 | AL54: =COST_Hypothesis!$C$15+COST_Hypothesis!$C$16 -> 20000
B55: % of Revenues | C55: =C54/C47 -> 13.22751323 | D55: =D54/D47 -> 8.131667968 | E55: 5.601081143 | F55: 3.971329366 | G55: 2.886320209 | H55: 2.132457111 | I55: 1.593342992 | J55: 1.199989065 | K55: 0.9088710388 | L55: 0.6859821797 | M55: 0.5203015202 | N55: 0.3960579007 | O55: =O54/O47 -> 0.3078349642 | P55: =P54/P47 -> 0.2434226483 | Q55: 0.1948865516 | R55: 0.1561969511 | S55: 0.1262624486 | T55: 0.1027295858 | U55: 0.08400167016 | V55: 0.06895552403 | W55: 0.0567772356 | X55: 0.04647871672 | Y55: 0.03818154775 | Z55: 0.0314527334 | AA55: =AA54/AA47 -> 0.02606582536 | AB55: =AB54/AB47 -> 0.02162595278 | AC55: 0.01795841789 | AD55: 0.01455716865 | AE55: 0.0116660046 | AF55: 0.009262820036 | AG55: 0.007170771988 | AH55: 0.00543771639 | AI55: 0.004057373936 | AJ55: 0.003029926514 | AK55: 0.002280515767 | AL55: 0.001726216553
A57: (updating costs, development cost) | B57: Research & Development | C57: =COST_Hypothesis!$C$17+COST_Hypothesis!$C$18 -> 20000 | D57: =COST_Hypothesis!$C$17+COST_Hypothesis!$C$18 -> 20000 | E57: =COST_Hypothesis!$C$17+COST_Hypothesis!$C$18 -> 20000 | F57: =COST_Hypothesis!$C$17+COST_Hypothesis!$C$18 -> 20000 | G57: =COST_Hypothesis!$C$17+COST_Hypothesis!$C$18 -> 20000 | H57: =COST_Hypothesis!$C$17+COST_Hypothesis!$C$18 -> 20000 | I57: =COST_Hypothesis!$C$17+COST_Hypothesis!$C$18 -> 20000 | J57: =COST_Hypothesis!$C$17+COST_Hypothesis!$C$18 -> 20000 | K57: =COST_Hypothesis!$C$17+COST_Hypothesis!$C$18 -> 20000 | L57: =COST_Hypothesis!$C$17+COST_Hypothesis!$C$18 -> 20000 | M57: =COST_Hypothesis!$C$17+COST_Hypothesis!$C$18 -> 20000 | N57: =COST_Hypothesis!$C$17+COST_Hypothesis!$C$18 -> 20000 | O57: =COST_Hypothesis!$C$17+COST_Hypothesis!$C$18 -> 20000 | P57: =COST_Hypothesis!$C$17+COST_Hypothesis!$C$18 -> 20000 | Q57: =COST_Hypothesis!$C$17+COST_Hypothesis!$C$18 -> 20000 | R57: =COST_Hypothesis!$C$17+COST_Hypothesis!$C$18 -> 20000 | S57: =COST_Hypothesis!$C$17+COST_Hypothesis!$C$18 -> 20000 | T57: =COST_Hypothesis!$C$17+COST_Hypothesis!$C$18 -> 20000 | U57: =COST_Hypothesis!$C$17+COST_Hypothesis!$C$18 -> 20000 | V57: =COST_Hypothesis!$C$17+COST_Hypothesis!$C$18 -> 20000 | W57: =COST_Hypothesis!$C$17+COST_Hypothesis!$C$18 -> 20000 | X57: =COST_Hypothesis!$C$17+COST_Hypothesis!$C$18 -> 20000 | Y57: =COST_Hypothesis!$C$17+COST_Hypothesis!$C$18 -> 20000 | Z57: =COST_Hypothesis!$C$17+COST_Hypothesis!$C$18 -> 20000 | AA57: =COST_Hypothesis!$C$17+COST_Hypothesis!$C$18 -> 20000 | AB57: =COST_Hypothesis!$C$17+COST_Hypothesis!$C$18 -> 20000 | AC57: =COST_Hypothesis!$C$17+COST_Hypothesis!$C$18 -> 20000 | AD57: =COST_Hypothesis!$C$17+COST_Hypothesis!$C$18 -> 20000 | AE57: =COST_Hypothesis!$C$17+COST_Hypothesis!$C$18 -> 20000 | AF57: =COST_Hypothesis!$C$17+COST_Hypothesis!$C$18 -> 20000 | AG57: =COST_Hypothesis!$C$17+COST_Hypothesis!$C$18 -> 20000 | AH57: =COST_Hypothesis!$C$17+COST_Hypothesis!$C$18 -> 20000 | AI57: =COST_Hypothesis!$C$17+COST_Hypothesis!$C$18 -> 20000 | AJ57: =COST_Hypothesis!$C$17+COST_Hypothesis!$C$18 -> 20000 | AK57: =COST_Hypothesis!$C$17+COST_Hypothesis!$C$18 -> 20000 | AL57: =COST_Hypothesis!$C$17+COST_Hypothesis!$C$18 -> 20000
B58: % of Revenues | C58: =C57/C47 -> 13.22751323 | D58: =D57/D47 -> 8.131667968 | E58: 5.601081143 | F58: 3.971329366 | G58: 2.886320209 | H58: 2.132457111 | I58: 1.593342992 | J58: 1.199989065 | K58: 0.9088710388 | L58: 0.6859821797 | M58: 0.5203015202 | N58: 0.3960579007 | O58: =O57/O47 -> 0.3078349642 | P58: =P57/P47 -> 0.2434226483 | Q58: 0.1948865516 | R58: 0.1561969511 | S58: 0.1262624486 | T58: 0.1027295858 | U58: 0.08400167016 | V58: 0.06895552403 | W58: 0.0567772356 | X58: 0.04647871672 | Y58: 0.03818154775 | Z58: 0.0314527334 | AA58: =AA57/AA47 -> 0.02606582536 | AB58: =AB57/AB47 -> 0.02162595278 | AC58: 0.01795841789 | AD58: 0.01455716865 | AE58: 0.0116660046 | AF58: 0.009262820036 | AG58: 0.007170771988 | AH58: 0.00543771639 | AI58: 0.004057373936 | AJ58: 0.003029926514 | AK58: 0.002280515767 | AL58: 0.001726216553
A60: (running cost) | B60: General & Administrative | C60: =COST_Hypothesis!$C$14 -> 10000 | D60: =COST_Hypothesis!$C$14 -> 10000 | E60: =COST_Hypothesis!$C$14 -> 10000 | F60: =COST_Hypothesis!$C$14 -> 10000 | G60: =COST_Hypothesis!$C$14 -> 10000 | H60: =COST_Hypothesis!$C$14 -> 10000 | I60: =COST_Hypothesis!$C$14 -> 10000 | J60: =COST_Hypothesis!$C$14 -> 10000 | K60: =COST_Hypothesis!$C$14 -> 10000 | L60: =COST_Hypothesis!$C$14 -> 10000 | M60: =COST_Hypothesis!$C$14 -> 10000 | N60: =COST_Hypothesis!$C$14 -> 10000 | O60: =COST_Hypothesis!$C$14 -> 10000 | P60: =COST_Hypothesis!$C$14 -> 10000 | Q60: =COST_Hypothesis!$C$14 -> 10000 | R60: =COST_Hypothesis!$C$14 -> 10000 | S60: =COST_Hypothesis!$C$14 -> 10000 | T60: =COST_Hypothesis!$C$14 -> 10000 | U60: =COST_Hypothesis!$C$14 -> 10000 | V60: =COST_Hypothesis!$C$14 -> 10000 | W60: =COST_Hypothesis!$C$14 -> 10000 | X60: =COST_Hypothesis!$C$14 -> 10000 | Y60: =COST_Hypothesis!$C$14 -> 10000 | Z60: =COST_Hypothesis!$C$14 -> 10000 | AA60: =COST_Hypothesis!$C$14 -> 10000 | AB60: =COST_Hypothesis!$C$14 -> 10000 | AC60: =COST_Hypothesis!$C$14 -> 10000 | AD60: =COST_Hypothesis!$C$14 -> 10000 | AE60: =COST_Hypothesis!$C$14 -> 10000 | AF60: =COST_Hypothesis!$C$14 -> 10000 | AG60: =COST_Hypothesis!$C$14 -> 10000 | AH60: =COST_Hypothesis!$C$14 -> 10000 | AI60: =COST_Hypothesis!$C$14 -> 10000 | AJ60: =COST_Hypothesis!$C$14 -> 10000 | AK60: =COST_Hypothesis!$C$14 -> 10000 | AL60: =COST_Hypothesis!$C$14 -> 10000
B61: % of Revenues | C61: =C60/C47 -> 6.613756614 | D61: =D60/D47 -> 4.065833984 | E61: 2.800540572 | F61: 1.985664683 | G61: 1.443160105 | H61: 1.066228555 | I61: 0.796671496 | J61: 0.5999945327 | K61: 0.4544355194 | L61: 0.3429910898 | M61: 0.2601507601 | N61: 0.1980289503 | O61: =O60/O47 -> 0.1539174821 | P61: =P60/P47 -> 0.1217113241 | Q61: 0.09744327579 | R61: 0.07809847555 | S61: 0.06313122428 | T61: 0.05136479288 | U61: 0.04200083508 | V61: 0.03447776201 | W61: 0.0283886178 | X61: 0.02323935836 | Y61: 0.01909077387 | Z61: 0.0157263667 | AA61: =AA60/AA47 -> 0.01303291268 | AB61: =AB60/AB47 -> 0.01081297639 | AC61: 0.008979208943 | AD61: 0.007278584326 | AE61: 0.005833002299 | AF61: 0.004631410018 | AG61: 0.003585385994 | AH61: 0.002718858195 | AI61: 0.002028686968 | AJ61: 0.001514963257 | AK61: 0.001140257884 | AL61: 0.0008631082765
A62: (payment process cost) | B62: Payment Processing cost | C62: =C24 -> 45.36 | D62: =D24 -> 73.7856 | E62: 107.122176 | F62: 151.0829107 | G62: 207.8771434 | H62: 281.3655651 | I62: 376.5667549 | J62: 500.0045561 | K62: 660.1596644 | L62: 874.6582896 | M62: 1153.177488 | N62: 1514.930011 | O62: =O24 -> 1949.096334 | P62: =P24 -> 2464.848708 | Q62: 3078.714232 | R62: 3841.304172 | S62: 4752.006688 | T62: 5840.576456 | U62: 7142.715125 | V62: 8701.260827 | W62: 10567.61559 | X62: 12909.13438 | Y62: 15714.39702 | Z62: 19076.24347 | AA62: =AA24 -> 23018.64574 | AB62: =AB24 -> 27744.44234 | AC62: 33410.51555 | AD62: 41216.80626 | AE62: 51431.4901 | AF62: 64775.08984 | AG62: 83672.99936 | AH62: 110340.4365 | AI62: 147878.9013 | AJ62: 198024.6046 | AK62: 263098.3783 | AL62: 347580.9562
B63: % of Revenues | C63: =C62/C47 -> 0.03 | D63: =D62/D47 -> 0.03 | E63: 0.03 | F63: 0.03 | G63: 0.03 | H63: 0.03 | I63: 0.03 | J63: 0.03 | K63: 0.03 | L63: 0.03 | M63: 0.03 | N63: 0.03 | O63: =O62/O47 -> 0.03 | P63: =P62/P47 -> 0.03 | Q63: 0.03 | R63: 0.03 | S63: 0.03 | T63: 0.03 | U63: 0.03 | V63: 0.03 | W63: 0.03 | X63: 0.03 | Y63: 0.03 | Z63: 0.03 | AA63: =AA62/AA47 -> 0.03 | AB63: =AB62/AB47 -> 0.03 | AC63: 0.03 | AD63: 0.03 | AE63: 0.03 | AF63: 0.03 | AG63: 0.03 | AH63: 0.03 | AI63: 0.03 | AJ63: 0.03 | AK63: 0.03 | AL63: 0.03
A64: Total costs | C64: =C49+C54+C57+C60+C62 -> 50465.36 | D64: =D49+D54+D57+D60+D62 -> 50577.7856 | E64: 50711.92218 | F64: 50937.32291 | G64: 51229.98914 | H64: 51610.11117 | I64: 52103.93603 | J64: 52745.58462 | K64: 53579.41375 | L64: 54669.6886 | M64: 56086.71689 | N64: 57928.53123 | O64: 60195.15505 | P64: 62360.11916 | Q64: 64953.03878 | R64: 68090.49363 | S64: 71851.03403 | T64: 76359.40927 | U64: 81765.3145 | V64: 88248.38008 | W64: 96024.15869 | X64: 105456.9861 | Y64: 116771.8191 | Z64: 130345.15 | AA64: 151442.846 | AB64: 171853.4827 | AC64: 196341.364 | AD64: 238026.9092 | AE64: 292284.624 | AF64: 362884.1639 | AG64: 481025.703 | AH64: 646634.2215 | AI64: 878690.2004 | AJ64: 1133079.293 | AK64: 1463669.474 | AL64: 1893323.38
B65: Earning Before Interest & Tax | C65: =C51-C54-C57-C60-C62 -> -48953.36 | D65: =D51-D54-D57-D60-D62 -> -48118.2656 | E65: -47141.18298 | F65: -45901.22589 | G65: -44300.75103 | H65: -42231.259 | I65: -39551.71087 | J65: -36078.76608 | K65: -31574.0916 | L65: -25514.41228 | M65: -17647.46729 | N65: -7430.864186 | O65: =O51-O54-O57-O60-O62 -> 4774.722743 | P65: =P51-P54-P57-P60-P62 -> 19801.50442 | Q65: 37670.76896 | R65: 59952.97879 | S65: 86549.1889 | T65: 118326.4726 | U65: 156325.1897 | V65: 201793.6475 | W65: 256229.6942 | X65: 324847.4932 | Y65: 407041.4148 | Z65: 505529.6322 | AA65: =AA51-AA54-AA57-AA60-AA62 -> 615845.3455 | AB65: =AB51-AB54-AB57-AB60-AB62 -> 752961.2619 | AC65: 917342.4877 | AD65: 1135866.633 | AE65: 1422098.38 | AF65: 1796285.498 | AG65: 2308074.276 | AH65: 3031380.328 | AI65: 4050606.511 | AJ65: 5467740.861 | AK65: 7306276.469 | AL65: 9692708.491

Sheet Financial Model COMBINED
A1: Select your revenue model | B1: KPI definition | C1: Time evolution (Year 1) | G1: Time evolution (Year 2) | K1: Time evolution (Year 3)
A2: Free combination | B2: KPI linked to the revenue model | C2: Q1 | D2: Q2 | E2: Q3 | F2: Q4 | G2: Q1 | H2: Q2 | I2: Q3 | J2: Q4 | K2: Q1 | L2: Q2 | M2: Q3 | N2: Q4
A3: KPI 1 | B3: =VLOOKUP(A$2,GROWTH_Hypothesis!B$1:O$26,9,0) -> Average fee | C3: 70 | D3: 80 | E3: 70 | F3: 100 | G3: 70 | H3: 80 | I3: 70 | J3: 100 | K3: 70 | L3: 80 | M3: 70 | N3: 100
A4: KPI 2 | B4: =VLOOKUP(A$2,GROWTH_Hypothesis!B$1:O$26,10,0) -> % Increase of new customers | C4: 0.2 | D4: 0.3 | E4: 0.4 | F4: 0.3 | G4: 0.2 | H4: 0.3 | I4: 0.4 | J4: 0.3 | K4: 0.2 | L4: 0.3 | M4: 0.4 | N4: 0.3
A5: KPI 3 | B5: =VLOOKUP(A$2,GROWTH_Hypothesis!B$1:O$26,11,0) -> % stops subscriptions | C5: 0.04 | D5: 0.03 | E5: 0.03 | F5: 0.02 | G5: 0.04 | H5: 0.03 | I5: 0.03 | J5: 0.02 | K5: 0.04 | L5: 0.03 | M5: 0.03 | N5: 0.02
A6: KPI 4 | B6: =VLOOKUP(A$2,GROWTH_Hypothesis!B$1:O$26,12,0) -> Average transaction price | C6: 70 | D6: 80 | E6: 70 | F6: 100 | G6: 70 | H6: 80 | I6: 70 | J6: 100 | K6: 70 | L6: 80 | M6: 70 | N6: 100
A7: KPI 5 | B7: =VLOOKUP(A$2,GROWTH_Hypothesis!B$1:O$26,13,0) -> % Increase of new transactions | C7: 0.2 | D7: 0.3 | E7: 0.4 | F7: 0.3 | G7: 0.2 | H7: 0.3 | I7: 0.4 | J7: 0.3 | K7: 0.2 | L7: 0.3 | M7: 0.4 | N7: 0.3
A8: Starting customers | B8: 50
A9: Starting revenue | B9: =B8*C3 -> 3500
A10: Starting transactions 2 | B10: 50
A11: Starting revenue 2 | B11: =B10*C6 -> 3500
C12: Year 1 | O12: Year 2 | AA12: Year 3
C13: 1 | D13: =C13+1 -> 2 | E13: =D13+1 -> 3 | F13: 4 | G13: 5 | H13: 6 | I13: 7 | J13: 8 | K13: 9 | L13: 10 | M13: 11 | N13: 12 | O13: 13 | P13: 14 | Q13: 15 | R13: 16 | S13: 17 | T13: 18 | U13: 19 | V13: 20 | W13: 21 | X13: 22 | Y13: 23 | Z13: 24 | AA13: 25 | AB13: 26 | AC13: 27 | AD13: 28 | AE13: 29 | AF13: 30 | AG13: 31 | AH13: 32 | AI13: 33 | AJ13: 34 | AK13: 35 | AL13: 36
A14: REVENUE STREAM 1: RECURRING
A16: Revenue & customer Growth
B17: Average revenue per new customer | C17: =$C3 -> 70 | D17: =$C3 -> 70 | E17: =$C3 -> 70 | F17: =$D3 -> 80 | G17: =$D3 -> 80 | H17: =$D3 -> 80 | I17: =$E3 -> 70 | J17: =$E3 -> 70 | K17: =$E3 -> 70 | L17: =$F3 -> 100 | M17: =$F3 -> 100 | N17: =$F3 -> 100 | O17: =$G3 -> 70 | P17: =$G3 -> 70 | Q17: =$G3 -> 70 | R17: =$H3 -> 80 | S17: =$H3 -> 80 | T17: =$H3 -> 80 | U17: =$I3 -> 70 | V17: =$I3 -> 70 | W17: 70 | X17: =$J3 -> 100 | Y17: =$J3 -> 100 | Z17: 100 | AA17: =$K3 -> 70 | AB17: =$K3 -> 70 | AC17: 70 | AD17: =$L3 -> 80 | AE17: =$L3 -> 80 | AF17: 80 | AG17: =$M3 -> 70 | AH17: =$M3 -> 70 | AI17: 70 | AJ17: =$N3 -> 100 | AK17: =$N3 -> 100 | AL17: 100
B18: New customers | C18: =B8+B8*$C4 -> 60 | D18: =C18+C18*$C4 -> 72 | E18: =D18+D18*$C4 -> 86.4 | F18: =E18+E18*$D4 -> 112.32 | G18: =F18+F18*$D4 -> 146.016 | H18: =G18+G18*$D4 -> 189.8208 | I18: =H18+H18*$E4 -> 265.74912 | J18: =I18+I18*$E4 -> 372.048768 | K18: =J18+J18*$E4 -> 520.8682752 | L18: =K18+K18*$F4 -> 677.1287578 | M18: =L18+L18*$F4 -> 880.2673851 | N18: =M18+M18*$F4 -> 1144.347601 | O18: =N18+N18*$G4 -> 1373.217121 | P18: =O18+O18*$G4 -> 1647.860545 | Q18: =P18+P18*$G4 -> 1977.432654 | R18: =Q18+Q18*$H4 -> 2570.66245 | S18: =R18+R18*$H4 -> 3341.861185 | T18: =S18+S18*$H4 -> 4344.419541 | U18: =T18+T18*$I4 -> 6082.187357 | V18: =U18+U18*$I4 -> 8515.062299 | W18: =V18+V18*$I4 -> 11921.08722 | X18: =W18+W18*$J4 -> 15497.41338 | Y18: =X18+X18*$J4 -> 20146.6374 | Z18: =Y18+Y18*$J4 -> 26190.62862 | AA18: =Z18+Z18*$K4 -> 31428.75434 | AB18: =AA18+AA18*$K4 -> 37714.50521 | AC18: =AB18+AB18*$K4 -> 45257.40626 | AD18: =AC18+AC18*$L4 -> 58834.62813 | AE18: =AD18+AD18*$L4 -> 76485.01657 | AF18: =AE18+AE18*$L4 -> 99430.52155 | AG18: =AF18+AF18*$M4 -> 139202.7302 | AH18: =AG18+AG18*$M4 -> 194883.8222 | AI18: =AH18+AH18*$M4 -> 272837.3511 | AJ18: =AI18+AI18*$N4 -> 354688.5565 | AK18: =AJ18+AJ18*$N4 -> 461095.1234 | AL18: =AK18+AK18*$N4 -> 599423.6604
B19: Churn Rate | C19: =$C5 -> 0.04 | D19: =$C5 -> 0.04 | E19: =$C5 -> 0.04 | F19: =$D5 -> 0.03 | G19: =$D5 -> 0.03 | H19: =$D5 -> 0.03 | I19: =$E5 -> 0.03 | J19: =$E5 -> 0.03 | K19: =$E5 -> 0.03 | L19: =$F5 -> 0.02 | M19: =$F5 -> 0.02 | N19: =$F5 -> 0.02 | O19: =$G5 -> 0.04 | P19: =$G5 -> 0.04 | Q19: =$G5 -> 0.04 | R19: =$H5 -> 0.03 | S19: =$H5 -> 0.03 | T19: =$H5 -> 0.03 | U19: =$I5 -> 0.03 | V19: =$I5 -> 0.03 | W19: =$I5 -> 0.03 | X19: =$J5 -> 0.02 | Y19: =$J5 -> 0.02 | Z19: =$J5 -> 0.02 | AA19: =$K5 -> 0.04 | AB19: =$K5 -> 0.04 | AC19: =$K5 -> 0.04 | AD19: =$L5 -> 0.03 | AE19: =$L5 -> 0.03 | AF19: =$L5 -> 0.03 | AG19: =$M5 -> 0.03 | AH19: =$M5 -> 0.03 | AI19: =$M5 -> 0.03 | AJ19: =$N5 -> 0.02 | AK19: =$N5 -> 0.02 | AL19: =$N5 -> 0.02
A20: Month Recurring Revenue
B21: New MRR | C21: =C18*C17 -> 4200 | D21: 5040 | E21: 6048 | F21: 8985.6 | G21: 11681.28 | H21: 15185.664 | I21: 18602.4384 | J21: 26043.41376 | K21: 36460.77926 | L21: 67712.87578 | M21: 88026.73851 | N21: 114434.7601 | O21: =O18*O17 -> 96125.19845 | P21: 115350.2381 | Q21: 138420.2858 | R21: 205652.996 | S21: 267348.8948 | T21: 347553.5632 | U21: 425753.115 | V21: 596054.361 | W21: 834476.1053 | X21: 1549741.338 | Y21: 2014663.74 | Z21: 2619062.862 | AA21: 2200012.804 | AB21: 2640015.365 | AC21: 3168018.438 | AD21: 4706770.251 | AE21: 6118801.326 | AF21: 7954441.724 | AG21: 9744191.111 | AH21: 13641867.56 | AI21: 19098614.58 | AJ21: 35468855.65 | AK21: 46109512.34 | AL21: 59942366.04
B22: Lost MRR | C22: =C23*C19 -> 140 | D22: 302.4 | E22: 491.904 | F22: 535.61088 | G22: 789.1105536 | H22: 1115.875637 | I22: 1537.969288 | J22: 2049.903361 | K22: 2769.708673 | L22: 2520.293861 | M22: 3824.145499 | N22: 5508.197359 | O22: =O23*O19 -> 15373.45723 | P22: 18603.52688 | Q22: 22473.39533 | R22: 20333.45321 | S22: 25893.03949 | T22: 33136.71515 | U22: 42569.22059 | V22: 54064.73743 | W22: 70324.42613 | X22: 62165.98434 | Y22: 91917.49142 | Z22: 130372.4164 | AA22: 360292.4506 | AB22: 433881.2648 | AC22: 522126.6288 | AD22: 470971.7258 | AE22: 598045.6816 | AF22: 763668.3509 | AG22: 979391.5521 | AH22: 1242335.539 | AI22: 1614321.499 | AJ22: 1425900.195 | AK22: 2106759.304 | AL22: 2986814.364
B23: MRR from last month | C23: =B9 -> 3500 | D23: =C24 -> 7560 | E23: =D24 -> 12297.6 | F23: =E24 -> 17853.696 | G23: 26303.68512 | H23: 37195.85457 | I23: 51265.64293 | J23: 68330.11204 | K23: 92323.62244 | L23: 126014.693 | M23: 191207.2749 | N23: 275409.868 | O23: 384336.4307 | P23: =O24 -> 465088.1719 | Q23: =P24 -> 561834.8832 | R23: =Q24 -> 677781.7736 | S23: =R24 -> 863101.3164 | T23: =S24 -> 1104557.172 | U23: =T24 -> 1418974.02 | V23: =U24 -> 1802157.914 | W23: =V24 -> 2344147.538 | X23: =W24 -> 3108299.217 | Y23: =X24 -> 4595874.571 | Z23: =Y24 -> 6518620.82 | AA23: 9007311.265 | AB23: =AA24 -> 10847031.62 | AC23: =AB24 -> 13053165.72 | AD23: =AC24 -> 15699057.53 | AE23: =AD24 -> 19934856.05 | AF23: =AE24 -> 25455611.7 | AG23: =AF24 -> 32646385.07 | AH23: =AG24 -> 41411184.63 | AI23: =AH24 -> 53810716.65 | AJ23: =AI24 -> 71295009.73 | AK23: =AJ24 -> 105337965.2 | AL23: =AK24 -> 149340718.2
B24: Gross MRR | C24: =C23+C21-C22 -> 7560 | D24: 12297.6 | E24: 17853.696 | F24: 26303.68512 | G24: 37195.85457 | H24: 51265.64293 | I24: 68330.11204 | J24: 92323.62244 | K24: 126014.693 | L24: 191207.2749 | M24: 275409.868 | N24: 384336.4307 | O24: =O23+O21-O22 -> 465088.1719 | P24: 561834.8832 | Q24: 677781.7736 | R24: 863101.3164 | S24: 1104557.172 | T24: 1418974.02 | U24: 1802157.914 | V24: 2344147.538 | W24: 3108299.217 | X24: 4595874.571 | Y24: 6518620.82 | Z24: 9007311.265 | AA24: 10847031.62 | AB24: 13053165.72 | AC24: 15699057.53 | AD24: 19934856.05 | AE24: 25455611.7 | AF24: 32646385.07 | AG24: 41411184.63 | AH24: 53810716.65 | AI24: 71295009.73 | AJ24: 105337965.2 | AK24: 149340718.2 | AL24: 206296269.9
B25: MRR Growth rate
B26: Payment Processing | C26: =C24*COST_Hypothesis!$D11 -> 226.8 | D26: =D24*COST_Hypothesis!$D11 -> 368.928 | E26: =E24*COST_Hypothesis!$D11 -> 535.61088 | F26: =F24*COST_Hypothesis!$D11 -> 789.1105536 | G26: =G24*COST_Hypothesis!$D11 -> 1115.875637 | H26: =H24*COST_Hypothesis!$D11 -> 1537.969288 | I26: =I24*COST_Hypothesis!$D11 -> 2049.903361 | J26: =J24*COST_Hypothesis!$D11 -> 2769.708673 | K26: =K24*COST_Hypothesis!$D11 -> 3780.440791 | L26: =L24*COST_Hypothesis!$D11 -> 5736.218248 | M26: =M24*COST_Hypothesis!$D11 -> 8262.296039 | N26: =N24*COST_Hypothesis!$D11 -> 11530.09292 | O26: =O24*COST_Hypothesis!$D11 -> 13952.64516 | P26: =P24*COST_Hypothesis!$D11 -> 16855.04649 | Q26: =Q24*COST_Hypothesis!$D11 -> 20333.45321 | R26: =R24*COST_Hypothesis!$D11 -> 25893.03949 | S26: =S24*COST_Hypothesis!$D11 -> 33136.71515 | T26: =T24*COST_Hypothesis!$D11 -> 42569.22059 | U26: =U24*COST_Hypothesis!$D11 -> 54064.73743 | V26: =V24*COST_Hypothesis!$D11 -> 70324.42613 | W26: =W24*COST_Hypothesis!$D11 -> 93248.97651 | X26: =X24*COST_Hypothesis!$D11 -> 137876.2371 | Y26: =Y24*COST_Hypothesis!$D11 -> 195558.6246 | Z26: =Z24*COST_Hypothesis!$D11 -> 270219.338 | AA26: =AA24*COST_Hypothesis!$D11 -> 325410.9486 | AB26: =AB24*COST_Hypothesis!$D11 -> 391594.9716 | AC26: =AC24*COST_Hypothesis!$D11 -> 470971.7258 | AD26: =AD24*COST_Hypothesis!$D11 -> 598045.6816 | AE26: =AE24*COST_Hypothesis!$D11 -> 763668.3509 | AF26: =AF24*COST_Hypothesis!$D11 -> 979391.5521 | AG26: =AG24*COST_Hypothesis!$D11 -> 1242335.539 | AH26: =AH24*COST_Hypothesis!$D11 -> 1614321.499 | AI26: =AI24*COST_Hypothesis!$D11 -> 2138850.292 | AJ26: =AJ24*COST_Hypothesis!$D11 -> 3160138.955 | AK26: =AK24*COST_Hypothesis!$D11 -> 4480221.546 | AL26: =AL24*COST_Hypothesis!$D11 -> 6188888.097
B27: Net MRR | C27: =C24-C26 -> 7333.2 | D27: 11928.672 | E27: 17318.08512 | F27: 25514.57457 | G27: 36079.97893 | H27: 49727.67364 | I27: 66280.20868 | J27: 89553.91377 | K27: 122234.2522 | L27: 185471.0567 | M27: 267147.5719 | N27: 372806.3377 | O27: =O24-O26 -> 451135.5267 | P27: 544979.8367 | Q27: 657448.3204 | R27: 837208.2769 | S27: 1071420.457 | T27: 1376404.799 | U27: 1748093.177 | V27: 2273823.112 | W27: 3015050.24 | X27: 4457998.334 | Y27: 6323062.195 | Z27: 8737091.927 | AA27: 10521620.67 | AB27: 12661570.75 | AC27: 15228085.8 | AD27: 19336810.37 | AE27: 24691943.35 | AF27: 31666993.52 | AG27: 40168849.09 | AH27: 52196395.15 | AI27: 69156159.43 | AJ27: 102177826.2 | AK27: 144860496.7 | AL27: 200107381.8
B29: Accumulated net MRR | C29: =C27 -> 7333.2 | D29: =C29+D27 -> 19261.872 | E29: =D29+E27 -> 36579.95712 | F29: 62094.53169 | G29: 98174.51062 | H29: 147902.1843 | I29: 214182.3929 | J29: 303736.3067 | K29: 425970.5589 | L29: 611441.6156 | M29: 878589.1876 | N29: 1251395.525 | O29: 1702531.052 | P29: 2247510.889 | Q29: 2904959.209 | R29: 3742167.486 | S29: 4813587.943 | T29: 6189992.742 | U29: 7938085.918 | V29: 10211909.03 | W29: 13226959.27 | X29: 17684957.6 | Y29: 24008019.8 | Z29: 32745111.73 | AA29: 43266732.4 | AB29: 55928303.14 | AC29: 71156388.95 | AD29: 90493199.32 | AE29: 115185142.7 | AF29: 146852136.2 | AG29: 187020985.3 | AH29: 239217380.4 | AI29: 308373539.9 | AJ29: 410551366.1 | AK29: 555411862.7 | AL29: 755519244.5
A31: COSTS OF GOOD SOLD
A33: Cost of goods sold per transaction
B34: =COST_Hypothesis!B3 -> Manufacturing cost | C34: =C$17*COST_Hypothesis!$G3*C$18 -> 0 | D34: =D$17*COST_Hypothesis!$G3*D$18 -> 0 | E34: =E$17*COST_Hypothesis!$G3*E$18 -> 0 | F34: =F$17*COST_Hypothesis!$G3*F$18 -> 0 | G34: =G$17*COST_Hypothesis!$G3*G$18 -> 0 | H34: =H$17*COST_Hypothesis!$G3*H$18 -> 0 | I34: =I$17*COST_Hypothesis!$G3*I$18 -> 0 | J34: =J$17*COST_Hypothesis!$G3*J$18 -> 0 | K34: =K$17*COST_Hypothesis!$G3*K$18 -> 0 | L34: =L$17*COST_Hypothesis!$G3*L$18 -> 0 | M34: =M$17*COST_Hypothesis!$G3*M$18 -> 0 | N34: =N$17*COST_Hypothesis!$G3*N$18 -> 0 | O34: =O$17*COST_Hypothesis!$G3*O$18 -> 0 | P34: =P$17*COST_Hypothesis!$G3*P$18 -> 0 | Q34: =Q$17*COST_Hypothesis!$G3*Q$18 -> 0 | R34: =R$17*COST_Hypothesis!$G3*R$18 -> 0 | S34: =S$17*COST_Hypothesis!$G3*S$18 -> 0 | T34: =T$17*COST_Hypothesis!$G3*T$18 -> 0 | U34: =U$17*COST_Hypothesis!$G3*U$18 -> 0 | V34: =V$17*COST_Hypothesis!$G3*V$18 -> 0 | W34: =W$17*COST_Hypothesis!$G3*W$18 -> 0 | X34: =X$17*COST_Hypothesis!$G3*X$18 -> 0 | Y34: =Y$17*COST_Hypothesis!$G3*Y$18 -> 0 | Z34: =Z$17*COST_Hypothesis!$G3*Z$18 -> 0 | AA34: =AA$17*COST_Hypothesis!$G3*AA$18 -> 0 | AB34: =AB$17*COST_Hypothesis!$G3*AB$18 -> 0 | AC34: =AC$17*COST_Hypothesis!$G3*AC$18 -> 0 | AD34: =AD$17*COST_Hypothesis!$G3*AD$18 -> 0 | AE34: =AE$17*COST_Hypothesis!$G3*AE$18 -> 0 | AF34: =AF$17*COST_Hypothesis!$G3*AF$18 -> 0 | AG34: =AG$17*COST_Hypothesis!$G3*AG$18 -> 0 | AH34: =AH$17*COST_Hypothesis!$G3*AH$18 -> 0 | AI34: =AI$17*COST_Hypothesis!$G3*AI$18 -> 0 | AJ34: =AJ$17*COST_Hypothesis!$G3*AJ$18 -> 0 | AK34: =AK$17*COST_Hypothesis!$G3*AK$18 -> 0 | AL34: =AL$17*COST_Hypothesis!$G3*AL$18 -> 0
B35: =COST_Hypothesis!B4 -> Assembly cost | C35: =C$17*COST_Hypothesis!$G4*C$18 -> 210 | D35: =D$17*COST_Hypothesis!$G4*D$18 -> 252 | E35: =E$17*COST_Hypothesis!$G4*E$18 -> 302.4 | F35: =F$17*COST_Hypothesis!$G4*F$18 -> 449.28 | G35: =G$17*COST_Hypothesis!$G4*G$18 -> 584.064 | H35: =H$17*COST_Hypothesis!$G4*H$18 -> 759.2832 | I35: =I$17*COST_Hypothesis!$G4*I$18 -> 930.12192 | J35: =J$17*COST_Hypothesis!$G4*J$18 -> 1302.170688 | K35: =K$17*COST_Hypothesis!$G4*K$18 -> 1823.038963 | L35: =L$17*COST_Hypothesis!$G4*L$18 -> 3385.643789 | M35: =M$17*COST_Hypothesis!$G4*M$18 -> 4401.336925 | N35: =N$17*COST_Hypothesis!$G4*N$18 -> 5721.738003 | O35: =O$17*COST_Hypothesis!$G4*O$18 -> 4806.259923 | P35: =P$17*COST_Hypothesis!$G4*P$18 -> 5767.511907 | Q35: =Q$17*COST_Hypothesis!$G4*Q$18 -> 6921.014289 | R35: =R$17*COST_Hypothesis!$G4*R$18 -> 10282.6498 | S35: =S$17*COST_Hypothesis!$G4*S$18 -> 13367.44474 | T35: =T$17*COST_Hypothesis!$G4*T$18 -> 17377.67816 | U35: =U$17*COST_Hypothesis!$G4*U$18 -> 21287.65575 | V35: =V$17*COST_Hypothesis!$G4*V$18 -> 29802.71805 | W35: =W$17*COST_Hypothesis!$G4*W$18 -> 41723.80527 | X35: =X$17*COST_Hypothesis!$G4*X$18 -> 77487.06692 | Y35: =Y$17*COST_Hypothesis!$G4*Y$18 -> 100733.187 | Z35: =Z$17*COST_Hypothesis!$G4*Z$18 -> 130953.1431 | AA35: =AA$17*COST_Hypothesis!$G4*AA$18 -> 110000.6402 | AB35: =AB$17*COST_Hypothesis!$G4*AB$18 -> 132000.7682 | AC35: =AC$17*COST_Hypothesis!$G4*AC$18 -> 158400.9219 | AD35: =AD$17*COST_Hypothesis!$G4*AD$18 -> 235338.5125 | AE35: =AE$17*COST_Hypothesis!$G4*AE$18 -> 305940.0663 | AF35: =AF$17*COST_Hypothesis!$G4*AF$18 -> 397722.0862 | AG35: =AG$17*COST_Hypothesis!$G4*AG$18 -> 487209.5556 | AH35: =AH$17*COST_Hypothesis!$G4*AH$18 -> 682093.3778 | AI35: =AI$17*COST_Hypothesis!$G4*AI$18 -> 954930.7289 | AJ35: =AJ$17*COST_Hypothesis!$G4*AJ$18 -> 1773442.782 | AK35: =AK$17*COST_Hypothesis!$G4*AK$18 -> 2305475.617 | AL35: =AL$17*COST_Hypothesis!$G4*AL$18 -> 2997118.302
B36: =COST_Hypothesis!B5 -> Packaging cost | C36: =C$17*COST_Hypothesis!$G5*C$18 -> 42 | D36: =D$17*COST_Hypothesis!$G5*D$18 -> 50.4 | E36: =E$17*COST_Hypothesis!$G5*E$18 -> 60.48 | F36: =F$17*COST_Hypothesis!$G5*F$18 -> 89.856 | G36: =G$17*COST_Hypothesis!$G5*G$18 -> 116.8128 | H36: =H$17*COST_Hypothesis!$G5*H$18 -> 151.85664 | I36: =I$17*COST_Hypothesis!$G5*I$18 -> 186.024384 | J36: =J$17*COST_Hypothesis!$G5*J$18 -> 260.4341376 | K36: =K$17*COST_Hypothesis!$G5*K$18 -> 364.6077926 | L36: =L$17*COST_Hypothesis!$G5*L$18 -> 677.1287578 | M36: =M$17*COST_Hypothesis!$G5*M$18 -> 880.2673851 | N36: =N$17*COST_Hypothesis!$G5*N$18 -> 1144.347601 | O36: =O$17*COST_Hypothesis!$G5*O$18 -> 961.2519845 | P36: =P$17*COST_Hypothesis!$G5*P$18 -> 1153.502381 | Q36: =Q$17*COST_Hypothesis!$G5*Q$18 -> 1384.202858 | R36: =R$17*COST_Hypothesis!$G5*R$18 -> 2056.52996 | S36: =S$17*COST_Hypothesis!$G5*S$18 -> 2673.488948 | T36: =T$17*COST_Hypothesis!$G5*T$18 -> 3475.535632 | U36: =U$17*COST_Hypothesis!$G5*U$18 -> 4257.53115 | V36: =V$17*COST_Hypothesis!$G5*V$18 -> 5960.54361 | W36: =W$17*COST_Hypothesis!$G5*W$18 -> 8344.761053 | X36: =X$17*COST_Hypothesis!$G5*X$18 -> 15497.41338 | Y36: =Y$17*COST_Hypothesis!$G5*Y$18 -> 20146.6374 | Z36: =Z$17*COST_Hypothesis!$G5*Z$18 -> 26190.62862 | AA36: =AA$17*COST_Hypothesis!$G5*AA$18 -> 22000.12804 | AB36: =AB$17*COST_Hypothesis!$G5*AB$18 -> 26400.15365 | AC36: =AC$17*COST_Hypothesis!$G5*AC$18 -> 31680.18438 | AD36: =AD$17*COST_Hypothesis!$G5*AD$18 -> 47067.70251 | AE36: =AE$17*COST_Hypothesis!$G5*AE$18 -> 61188.01326 | AF36: =AF$17*COST_Hypothesis!$G5*AF$18 -> 79544.41724 | AG36: =AG$17*COST_Hypothesis!$G5*AG$18 -> 97441.91111 | AH36: =AH$17*COST_Hypothesis!$G5*AH$18 -> 136418.6756 | AI36: =AI$17*COST_Hypothesis!$G5*AI$18 -> 190986.1458 | AJ36: =AJ$17*COST_Hypothesis!$G5*AJ$18 -> 354688.5565 | AK36: =AK$17*COST_Hypothesis!$G5*AK$18 -> 461095.1234 | AL36: =AL$17*COST_Hypothesis!$G5*AL$18 -> 599423.6604
B37: =COST_Hypothesis!B6 -> Warehouse cost | C37: =C$17*COST_Hypothesis!$G6*C$18 -> 126 | D37: =D$17*COST_Hypothesis!$G6*D$18 -> 151.2 | E37: =E$17*COST_Hypothesis!$G6*E$18 -> 181.44 | F37: =F$17*COST_Hypothesis!$G6*F$18 -> 269.568 | G37: =G$17*COST_Hypothesis!$G6*G$18 -> 350.4384 | H37: =H$17*COST_Hypothesis!$G6*H$18 -> 455.56992 | I37: =I$17*COST_Hypothesis!$G6*I$18 -> 558.073152 | J37: =J$17*COST_Hypothesis!$G6*J$18 -> 781.3024128 | K37: =K$17*COST_Hypothesis!$G6*K$18 -> 1093.823378 | L37: =L$17*COST_Hypothesis!$G6*L$18 -> 2031.386273 | M37: =M$17*COST_Hypothesis!$G6*M$18 -> 2640.802155 | N37: =N$17*COST_Hypothesis!$G6*N$18 -> 3433.042802 | O37: =O$17*COST_Hypothesis!$G6*O$18 -> 2883.755954 | P37: =P$17*COST_Hypothesis!$G6*P$18 -> 3460.507144 | Q37: =Q$17*COST_Hypothesis!$G6*Q$18 -> 4152.608573 | R37: =R$17*COST_Hypothesis!$G6*R$18 -> 6169.58988 | S37: =S$17*COST_Hypothesis!$G6*S$18 -> 8020.466844 | T37: =T$17*COST_Hypothesis!$G6*T$18 -> 10426.6069 | U37: =U$17*COST_Hypothesis!$G6*U$18 -> 12772.59345 | V37: =V$17*COST_Hypothesis!$G6*V$18 -> 17881.63083 | W37: =W$17*COST_Hypothesis!$G6*W$18 -> 25034.28316 | X37: =X$17*COST_Hypothesis!$G6*X$18 -> 46492.24015 | Y37: =Y$17*COST_Hypothesis!$G6*Y$18 -> 60439.9122 | Z37: =Z$17*COST_Hypothesis!$G6*Z$18 -> 78571.88586 | AA37: =AA$17*COST_Hypothesis!$G6*AA$18 -> 66000.38412 | AB37: =AB$17*COST_Hypothesis!$G6*AB$18 -> 79200.46095 | AC37: =AC$17*COST_Hypothesis!$G6*AC$18 -> 95040.55314 | AD37: =AD$17*COST_Hypothesis!$G6*AD$18 -> 141203.1075 | AE37: =AE$17*COST_Hypothesis!$G6*AE$18 -> 183564.0398 | AF37: =AF$17*COST_Hypothesis!$G6*AF$18 -> 238633.2517 | AG37: =AG$17*COST_Hypothesis!$G6*AG$18 -> 292325.7333 | AH37: =AH$17*COST_Hypothesis!$G6*AH$18 -> 409256.0267 | AI37: =AI$17*COST_Hypothesis!$G6*AI$18 -> 572958.4374 | AJ37: =AJ$17*COST_Hypothesis!$G6*AJ$18 -> 1064065.669 | AK37: =AK$17*COST_Hypothesis!$G6*AK$18 -> 1383285.37 | AL37: =AL$17*COST_Hypothesis!$G6*AL$18 -> 1798270.981
B38: =COST_Hypothesis!B7 -> Delivery cost | C38: =C$17*COST_Hypothesis!$G7*C$18 -> 840 | D38: =D$17*COST_Hypothesis!$G7*D$18 -> 1008 | E38: =E$17*COST_Hypothesis!$G7*E$18 -> 1209.6 | F38: =F$17*COST_Hypothesis!$G7*F$18 -> 1797.12 | G38: =G$17*COST_Hypothesis!$G7*G$18 -> 2336.256 | H38: =H$17*COST_Hypothesis!$G7*H$18 -> 3037.1328 | I38: =I$17*COST_Hypothesis!$G7*I$18 -> 3720.48768 | J38: =J$17*COST_Hypothesis!$G7*J$18 -> 5208.682752 | K38: =K$17*COST_Hypothesis!$G7*K$18 -> 7292.155853 | L38: =L$17*COST_Hypothesis!$G7*L$18 -> 13542.57516 | M38: =M$17*COST_Hypothesis!$G7*M$18 -> 17605.3477 | N38: =N$17*COST_Hypothesis!$G7*N$18 -> 22886.95201 | O38: =O$17*COST_Hypothesis!$G7*O$18 -> 19225.03969 | P38: =P$17*COST_Hypothesis!$G7*P$18 -> 23070.04763 | Q38: =Q$17*COST_Hypothesis!$G7*Q$18 -> 27684.05715 | R38: =R$17*COST_Hypothesis!$G7*R$18 -> 41130.5992 | S38: =S$17*COST_Hypothesis!$G7*S$18 -> 53469.77896 | T38: =T$17*COST_Hypothesis!$G7*T$18 -> 69510.71265 | U38: =U$17*COST_Hypothesis!$G7*U$18 -> 85150.62299 | V38: =V$17*COST_Hypothesis!$G7*V$18 -> 119210.8722 | W38: =W$17*COST_Hypothesis!$G7*W$18 -> 166895.2211 | X38: =X$17*COST_Hypothesis!$G7*X$18 -> 309948.2677 | Y38: =Y$17*COST_Hypothesis!$G7*Y$18 -> 402932.748 | Z38: =Z$17*COST_Hypothesis!$G7*Z$18 -> 523812.5724 | AA38: =AA$17*COST_Hypothesis!$G7*AA$18 -> 440002.5608 | AB38: =AB$17*COST_Hypothesis!$G7*AB$18 -> 528003.073 | AC38: =AC$17*COST_Hypothesis!$G7*AC$18 -> 633603.6876 | AD38: =AD$17*COST_Hypothesis!$G7*AD$18 -> 941354.0501 | AE38: =AE$17*COST_Hypothesis!$G7*AE$18 -> 1223760.265 | AF38: =AF$17*COST_Hypothesis!$G7*AF$18 -> 1590888.345 | AG38: =AG$17*COST_Hypothesis!$G7*AG$18 -> 1948838.222 | AH38: =AH$17*COST_Hypothesis!$G7*AH$18 -> 2728373.511 | AI38: =AI$17*COST_Hypothesis!$G7*AI$18 -> 3819722.916 | AJ38: =AJ$17*COST_Hypothesis!$G7*AJ$18 -> 7093771.129 | AK38: =AK$17*COST_Hypothesis!$G7*AK$18 -> 9221902.468 | AL38: =AL$17*COST_Hypothesis!$G7*AL$18 -> 11988473.21
B39: =COST_Hypothesis!B8 -> Exporting cost | C39: =C$17*COST_Hypothesis!$G8*C$18 -> 84 | D39: =D$17*COST_Hypothesis!$G8*D$18 -> 100.8 | E39: =E$17*COST_Hypothesis!$G8*E$18 -> 120.96 | F39: =F$17*COST_Hypothesis!$G8*F$18 -> 179.712 | G39: =G$17*COST_Hypothesis!$G8*G$18 -> 233.6256 | H39: =H$17*COST_Hypothesis!$G8*H$18 -> 303.71328 | I39: =I$17*COST_Hypothesis!$G8*I$18 -> 372.048768 | J39: =J$17*COST_Hypothesis!$G8*J$18 -> 520.8682752 | K39: =K$17*COST_Hypothesis!$G8*K$18 -> 729.2155853 | L39: =L$17*COST_Hypothesis!$G8*L$18 -> 1354.257516 | M39: =M$17*COST_Hypothesis!$G8*M$18 -> 1760.53477 | N39: =N$17*COST_Hypothesis!$G8*N$18 -> 2288.695201 | O39: =O$17*COST_Hypothesis!$G8*O$18 -> 1922.503969 | P39: =P$17*COST_Hypothesis!$G8*P$18 -> 2307.004763 | Q39: =Q$17*COST_Hypothesis!$G8*Q$18 -> 2768.405715 | R39: =R$17*COST_Hypothesis!$G8*R$18 -> 4113.05992 | S39: =S$17*COST_Hypothesis!$G8*S$18 -> 5346.977896 | T39: =T$17*COST_Hypothesis!$G8*T$18 -> 6951.071265 | U39: =U$17*COST_Hypothesis!$G8*U$18 -> 8515.062299 | V39: =V$17*COST_Hypothesis!$G8*V$18 -> 11921.08722 | W39: =W$17*COST_Hypothesis!$G8*W$18 -> 16689.52211 | X39: =X$17*COST_Hypothesis!$G8*X$18 -> 30994.82677 | Y39: =Y$17*COST_Hypothesis!$G8*Y$18 -> 40293.2748 | Z39: =Z$17*COST_Hypothesis!$G8*Z$18 -> 52381.25724 | AA39: =AA$17*COST_Hypothesis!$G8*AA$18 -> 44000.25608 | AB39: =AB$17*COST_Hypothesis!$G8*AB$18 -> 52800.3073 | AC39: =AC$17*COST_Hypothesis!$G8*AC$18 -> 63360.36876 | AD39: =AD$17*COST_Hypothesis!$G8*AD$18 -> 94135.40501 | AE39: =AE$17*COST_Hypothesis!$G8*AE$18 -> 122376.0265 | AF39: =AF$17*COST_Hypothesis!$G8*AF$18 -> 159088.8345 | AG39: =AG$17*COST_Hypothesis!$G8*AG$18 -> 194883.8222 | AH39: =AH$17*COST_Hypothesis!$G8*AH$18 -> 272837.3511 | AI39: =AI$17*COST_Hypothesis!$G8*AI$18 -> 381972.2916 | AJ39: =AJ$17*COST_Hypothesis!$G8*AJ$18 -> 709377.1129 | AK39: =AK$17*COST_Hypothesis!$G8*AK$18 -> 922190.2468 | AL39: =AL$17*COST_Hypothesis!$G8*AL$18 -> 1198847.321
B40: =COST_Hypothesis!B9 -> Maintenance cost | C40: =C$17*COST_Hypothesis!$G9*C$18 -> 630 | D40: =D$17*COST_Hypothesis!$G9*D$18 -> 756 | E40: =E$17*COST_Hypothesis!$G9*E$18 -> 907.2 | F40: =F$17*COST_Hypothesis!$G9*F$18 -> 1347.84 | G40: =G$17*COST_Hypothesis!$G9*G$18 -> 1752.192 | H40: =H$17*COST_Hypothesis!$G9*H$18 -> 2277.8496 | I40: =I$17*COST_Hypothesis!$G9*I$18 -> 2790.36576 | J40: =J$17*COST_Hypothesis!$G9*J$18 -> 3906.512064 | K40: =K$17*COST_Hypothesis!$G9*K$18 -> 5469.11689 | L40: =L$17*COST_Hypothesis!$G9*L$18 -> 10156.93137 | M40: =M$17*COST_Hypothesis!$G9*M$18 -> 13204.01078 | N40: =N$17*COST_Hypothesis!$G9*N$18 -> 17165.21401 | O40: =O$17*COST_Hypothesis!$G9*O$18 -> 14418.77977 | P40: =P$17*COST_Hypothesis!$G9*P$18 -> 17302.53572 | Q40: =Q$17*COST_Hypothesis!$G9*Q$18 -> 20763.04287 | R40: =R$17*COST_Hypothesis!$G9*R$18 -> 30847.9494 | S40: =S$17*COST_Hypothesis!$G9*S$18 -> 40102.33422 | T40: =T$17*COST_Hypothesis!$G9*T$18 -> 52133.03449 | U40: =U$17*COST_Hypothesis!$G9*U$18 -> 63862.96725 | V40: =V$17*COST_Hypothesis!$G9*V$18 -> 89408.15414 | W40: =W$17*COST_Hypothesis!$G9*W$18 -> 125171.4158 | X40: =X$17*COST_Hypothesis!$G9*X$18 -> 232461.2008 | Y40: =Y$17*COST_Hypothesis!$G9*Y$18 -> 302199.561 | Z40: =Z$17*COST_Hypothesis!$G9*Z$18 -> 392859.4293 | AA40: =AA$17*COST_Hypothesis!$G9*AA$18 -> 330001.9206 | AB40: =AB$17*COST_Hypothesis!$G9*AB$18 -> 396002.3047 | AC40: =AC$17*COST_Hypothesis!$G9*AC$18 -> 475202.7657 | AD40: =AD$17*COST_Hypothesis!$G9*AD$18 -> 706015.5376 | AE40: =AE$17*COST_Hypothesis!$G9*AE$18 -> 917820.1989 | AF40: =AF$17*COST_Hypothesis!$G9*AF$18 -> 1193166.259 | AG40: =AG$17*COST_Hypothesis!$G9*AG$18 -> 1461628.667 | AH40: =AH$17*COST_Hypothesis!$G9*AH$18 -> 2046280.133 | AI40: =AI$17*COST_Hypothesis!$G9*AI$18 -> 2864792.187 | AJ40: =AJ$17*COST_Hypothesis!$G9*AJ$18 -> 5320328.347 | AK40: =AK$17*COST_Hypothesis!$G9*AK$18 -> 6916426.851 | AL40: =AL$17*COST_Hypothesis!$G9*AL$18 -> 8991354.906
B41: =COST_Hypothesis!B10 -> Hosting cost | C41: =C$17*COST_Hypothesis!$G10*C$18 -> 840 | D41: =D$17*COST_Hypothesis!$G10*D$18 -> 1008 | E41: =E$17*COST_Hypothesis!$G10*E$18 -> 1209.6 | F41: =F$17*COST_Hypothesis!$G10*F$18 -> 1797.12 | G41: =G$17*COST_Hypothesis!$G10*G$18 -> 2336.256 | H41: =H$17*COST_Hypothesis!$G10*H$18 -> 3037.1328 | I41: =I$17*COST_Hypothesis!$G10*I$18 -> 3720.48768 | J41: =J$17*COST_Hypothesis!$G10*J$18 -> 5208.682752 | K41: =K$17*COST_Hypothesis!$G10*K$18 -> 7292.155853 | L41: =L$17*COST_Hypothesis!$G10*L$18 -> 13542.57516 | M41: =M$17*COST_Hypothesis!$G10*M$18 -> 17605.3477 | N41: =N$17*COST_Hypothesis!$G10*N$18 -> 22886.95201 | O41: =O$17*COST_Hypothesis!$G10*O$18 -> 19225.03969 | P41: =P$17*COST_Hypothesis!$G10*P$18 -> 23070.04763 | Q41: =Q$17*COST_Hypothesis!$G10*Q$18 -> 27684.05715 | R41: =R$17*COST_Hypothesis!$G10*R$18 -> 41130.5992 | S41: =S$17*COST_Hypothesis!$G10*S$18 -> 53469.77896 | T41: =T$17*COST_Hypothesis!$G10*T$18 -> 69510.71265 | U41: =U$17*COST_Hypothesis!$G10*U$18 -> 85150.62299 | V41: =V$17*COST_Hypothesis!$G10*V$18 -> 119210.8722 | W41: =W$17*COST_Hypothesis!$G10*W$18 -> 166895.2211 | X41: =X$17*COST_Hypothesis!$G10*X$18 -> 309948.2677 | Y41: =Y$17*COST_Hypothesis!$G10*Y$18 -> 402932.748 | Z41: =Z$17*COST_Hypothesis!$G10*Z$18 -> 523812.5724 | AA41: =AA$17*COST_Hypothesis!$G10*AA$18 -> 440002.5608 | AB41: =AB$17*COST_Hypothesis!$G10*AB$18 -> 528003.073 | AC41: =AC$17*COST_Hypothesis!$G10*AC$18 -> 633603.6876 | AD41: =AD$17*COST_Hypothesis!$G10*AD$18 -> 941354.0501 | AE41: =AE$17*COST_Hypothesis!$G10*AE$18 -> 1223760.265 | AF41: =AF$17*COST_Hypothesis!$G10*AF$18 -> 1590888.345 | AG41: =AG$17*COST_Hypothesis!$G10*AG$18 -> 1948838.222 | AH41: =AH$17*COST_Hypothesis!$G10*AH$18 -> 2728373.511 | AI41: =AI$17*COST_Hypothesis!$G10*AI$18 -> 3819722.916 | AJ41: =AJ$17*COST_Hypothesis!$G10*AJ$18 -> 7093771.129 | AK41: =AK$17*COST_Hypothesis!$G10*AK$18 -> 9221902.468 | AL41: =AL$17*COST_Hypothesis!$G10*AL$18 -> 11988473.21
B42: Total Cost of Good Sold 1 | C42: =SUM(C34:C41) -> 2772 | D42: 3326.4 | E42: 3991.68 | F42: 5930.496 | G42: 7709.6448 | H42: 10022.53824 | I42: 12277.60934 | J42: 17188.65308 | K42: 24064.11431 | L42: 44690.49801 | M42: 58097.64742 | N42: 75526.94164 | O42: =SUM(O34:O41) -> 63442.63098 | P42: 76131.15717 | Q42: 91357.38861 | R42: 135730.9774 | S42: 176450.2706 | T42: 229385.3517 | U42: 280997.0559 | V42: 393395.8782 | W42: 550754.2295 | X42: 1022829.283 | Y42: 1329678.068 | Z42: 1728581.489 | AA42: 1452008.451 | AB42: 1742410.141 | AC42: 2090892.169 | AD42: 3106468.365 | AE42: 4038408.875 | AF42: 5249931.538 | AG42: 6431166.134 | AH42: 9003632.587 | AI42: 12605085.62 | AJ42: 23409444.73 | AK42: 30432278.14 | AL42: 39561961.59
B44: Accumulated Cost of Good Sold 1 | C44: =C42 -> 2772 | D44: =C44+D42 -> 6098.4 | E44: =D44+E42 -> 10090.08 | F44: 16020.576 | G44: 23730.2208 | H44: 33752.75904 | I44: 46030.36838 | J44: 63219.02147 | K44: 87283.13578 | L44: 131973.6338 | M44: 190071.2812 | N44: 265598.2228 | O44: 329040.8538 | P44: 405172.011 | Q44: 496529.3996 | R44: 632260.377 | S44: 808710.6475 | T44: 1038095.999 | U44: 1319093.055 | V44: 1712488.933 | W44: 2263243.163 | X44: 3286072.446 | Y44: 4615750.515 | Z44: 6344332.004 | AA44: 7796340.454 | AB44: 9538750.595 | AC44: 11629642.76 | AD44: 14736111.13 | AE44: 18774520 | AF44: 24024451.54 | AG44: 30455617.68 | AH44: 39459250.26 | AI44: 52064335.88 | AJ44: 75473780.61 | AK44: 105906058.8 | AL44: 145468020.3
A46: REVENUE STREAM 2: ONE OFF
A48: Revenue & customer Growth
B49: =B6 -> Average transaction price | C49: =$C6 -> 70 | D49: =$C6 -> 70 | E49: =$C6 -> 70 | F49: =$D6 -> 80 | G49: =$D6 -> 80 | H49: =$D6 -> 80 | I49: =$E6 -> 70 | J49: =$E6 -> 70 | K49: =$E6 -> 70 | L49: =$F6 -> 100 | M49: =$F6 -> 100 | N49: =$F6 -> 100 | O49: =$G6 -> 70 | P49: =$G6 -> 70 | Q49: =$G6 -> 70 | R49: =$H6 -> 80 | S49: =$H6 -> 80 | T49: =$H6 -> 80 | U49: =$I6 -> 70 | V49: =$I6 -> 70 | W49: =$I6 -> 70 | X49: =$J6 -> 100 | Y49: =$J6 -> 100 | Z49: =$J6 -> 100 | AA49: =$K6 -> 70 | AB49: =$K6 -> 70 | AC49: =$K6 -> 70 | AD49: =$L6 -> 80 | AE49: =$L6 -> 80 | AF49: =$L6 -> 80 | AG49: =$M6 -> 70 | AH49: =$M6 -> 70 | AI49: =$M6 -> 70 | AJ49: =$N6 -> 100 | AK49: =$N6 -> 100 | AL49: =$N6 -> 100
B50: Transactions/month | C50: =B10+B10*C7 -> 60 | D50: =C50+C50*$C7 -> 72 | E50: =D50+D50*$C7 -> 86.4 | F50: =E50+E50*$D7 -> 112.32 | G50: =F50+F50*$D7 -> 146.016 | H50: =G50+G50*$D7 -> 189.8208 | I50: =H50+H50*$E7 -> 265.74912 | J50: =I50+I50*$E7 -> 372.048768 | K50: =J50+J50*$E7 -> 520.8682752 | L50: =K50+K50*$F7 -> 677.1287578 | M50: =L50+L50*$F7 -> 880.2673851 | N50: =M50+M50*$F7 -> 1144.347601 | O50: =N50+N50*$G7 -> 1373.217121 | P50: =O50+O50*$G7 -> 1647.860545 | Q50: =P50+P50*$G7 -> 1977.432654 | R50: =Q50+Q50*$H7 -> 2570.66245 | S50: =R50+R50*$H7 -> 3341.861185 | T50: =S50+S50*$H7 -> 4344.419541 | U50: =T50+T50*$I7 -> 6082.187357 | V50: =U50+U50*$I7 -> 8515.062299 | W50: =V50+V50*$I7 -> 11921.08722 | X50: =W50+W50*$J7 -> 15497.41338 | Y50: =X50+X50*$J7 -> 20146.6374 | Z50: =Y50+Y50*$J7 -> 26190.62862 | AA50: =Z50+Z50*$K7 -> 31428.75434 | AB50: =AA50+AA50*$K7 -> 37714.50521 | AC50: =AB50+AB50*$K7 -> 45257.40626 | AD50: =AC50+AC50*$L7 -> 58834.62813 | AE50: =AD50+AD50*$L7 -> 76485.01657 | AF50: =AE50+AE50*$L7 -> 99430.52155 | AG50: =AF50+AF50*$M7 -> 139202.7302 | AH50: =AG50+AG50*$M7 -> 194883.8222 | AI50: =AH50+AH50*$M7 -> 272837.3511 | AJ50: =AI50+AI50*$N7 -> 354688.5565 | AK50: =AJ50+AJ50*$N7 -> 461095.1234 | AL50: =AK50+AK50*$N7 -> 599423.6604
A53: Month One-off Revenue
B54: New MooR | C54: =C50*C49 -> 4200 | D54: 5040 | E54: 6048 | F54: 8985.6 | G54: 11681.28 | H54: 15185.664 | I54: 18602.4384 | J54: 26043.41376 | K54: 36460.77926 | L54: 67712.87578 | M54: 88026.73851 | N54: 114434.7601 | O54: =O50*O49 -> 96125.19845 | P54: 115350.2381 | Q54: 138420.2858 | R54: 205652.996 | S54: 267348.8948 | T54: 347553.5632 | U54: 425753.115 | V54: 596054.361 | W54: 834476.1053 | X54: 1549741.338 | Y54: 2014663.74 | Z54: 2619062.862 | AA54: 2200012.804 | AB54: 2640015.365 | AC54: 3168018.438 | AD54: 4706770.251 | AE54: 6118801.326 | AF54: 7954441.724 | AG54: 9744191.111 | AH54: 13641867.56 | AI54: 19098614.58 | AJ54: 35468855.65 | AK54: 46109512.34 | AL54: 59942366.04
B55: Last MooR | C55: =B11 -> 3500 | D55: =C54 -> 4200 | E55: 5040 | F55: 6048 | G55: 8985.6 | H55: 11681.28 | I55: 15185.664 | J55: 18602.4384 | K55: 26043.41376 | L55: 36460.77926 | M55: 67712.87578 | N55: 88026.73851 | O55: 114434.7601 | P55: =O54 -> 96125.19845 | Q55: =P54 -> 115350.2381 | R55: =Q54 -> 138420.2858 | S55: =R54 -> 205652.996 | T55: =S54 -> 267348.8948 | U55: =T54 -> 347553.5632 | V55: =U54 -> 425753.115 | W55: =V54 -> 596054.361 | X55: =W54 -> 834476.1053 | Y55: =X54 -> 1549741.338 | Z55: =Y54 -> 2014663.74 | AA55: 2619062.862 | AB55: =AA54 -> 2200012.804 | AC55: =AB54 -> 2640015.365 | AD55: =AC54 -> 3168018.438 | AE55: =AD54 -> 4706770.251 | AF55: =AE54 -> 6118801.326 | AG55: =AF54 -> 7954441.724 | AH55: =AG54 -> 9744191.111 | AI55: =AH54 -> 13641867.56 | AJ55: =AI54 -> 19098614.58 | AK55: =AJ54 -> 35468855.65 | AL55: =AK54 -> 46109512.34
B56: increase of MooR | C56: =C54-C55 -> 700 | D56: 840 | E56: 1008 | F56: 2937.6 | G56: 2695.68 | H56: 3504.384 | I56: 3416.7744 | J56: 7440.97536 | K56: 10417.3655 | L56: 31252.09651 | M56: 20313.86273 | N56: 26408.02155 | O56: =O54-O55 -> -18309.56161 | P56: 19225.03969 | Q56: 23070.04763 | R56: 67232.71023 | S56: 61695.8988 | T56: 80204.66844 | U56: 78199.55173 | V56: 170301.246 | W56: 238421.7444 | X56: 715265.2332 | Y56: 464922.4015 | Z56: 604399.122 | AA56: -419050.0579 | AB56: 440002.5608 | AC56: 528003.073 | AD56: 1538751.813 | AE56: 1412031.075 | AF56: 1835640.398 | AG56: 1789749.388 | AH56: 3897676.445 | AI56: 5456747.022 | AJ56: 16370241.07 | AK56: 10640656.69 | AL56: 13832853.7
B57: Gross MooR | C57: =C54 -> 4200 | D57: 5040 | E57: 6048 | F57: 8985.6 | G57: 11681.28 | H57: 15185.664 | I57: 18602.4384 | J57: 26043.41376 | K57: 36460.77926 | L57: 67712.87578 | M57: 88026.73851 | N57: 114434.7601 | O57: =O54 -> 96125.19845 | P57: 115350.2381 | Q57: 138420.2858 | R57: 205652.996 | S57: 267348.8948 | T57: 347553.5632 | U57: 425753.115 | V57: 596054.361 | W57: 834476.1053 | X57: 1549741.338 | Y57: 2014663.74 | Z57: 2619062.862 | AA57: 2200012.804 | AB57: 2640015.365 | AC57: 3168018.438 | AD57: 4706770.251 | AE57: 6118801.326 | AF57: 7954441.724 | AG57: 9744191.111 | AH57: 13641867.56 | AI57: 19098614.58 | AJ57: 35468855.65 | AK57: 46109512.34 | AL57: 59942366.04
B58: MooR Growth rate | C58: =C56/C57 -> 0.1666666667 | D58: 0.1666666667 | E58: 0.1666666667 | F58: 0.3269230769 | G58: 0.2307692308 | H58: 0.2307692308 | I58: 0.1836734694 | J58: 0.2857142857 | K58: 0.2857142857 | L58: 0.4615384615 | M58: 0.2307692308 | N58: 0.2307692308 | O58: =O56/O57 -> -0.1904761905 | P58: 0.1666666667 | Q58: 0.1666666667 | R58: 0.3269230769 | S58: 0.2307692308 | T58: 0.2307692308 | U58: 0.1836734694 | V58: 0.2857142857 | W58: 0.2857142857 | X58: 0.4615384615 | Y58: 0.2307692308 | Z58: 0.2307692308 | AA58: -0.1904761905 | AB58: 0.1666666667 | AC58: 0.1666666667 | AD58: 0.3269230769 | AE58: 0.2307692308 | AF58: 0.2307692308 | AG58: 0.1836734694 | AH58: 0.2857142857 | AI58: 0.2857142857 | AJ58: 0.4615384615 | AK58: 0.2307692308 | AL58: 0.2307692308
B59: Payment Processing cost | C59: =C57*0.03 -> 126 | D59: 151.2 | E59: 181.44 | F59: 269.568 | G59: 350.4384 | H59: 455.56992 | I59: 558.073152 | J59: 781.3024128 | K59: 1093.823378 | L59: 2031.386273 | M59: 2640.802155 | N59: 3433.042802 | O59: =O57*0.03 -> 2883.755954 | P59: 3460.507144 | Q59: 4152.608573 | R59: 6169.58988 | S59: 8020.466844 | T59: 10426.6069 | U59: 12772.59345 | V59: 17881.63083 | W59: 25034.28316 | X59: 46492.24015 | Y59: 60439.9122 | Z59: 78571.88586 | AA59: 66000.38412 | AB59: 79200.46095 | AC59: 95040.55314 | AD59: 141203.1075 | AE59: 183564.0398 | AF59: 238633.2517 | AG59: 292325.7333 | AH59: 409256.0267 | AI59: 572958.4374 | AJ59: 1064065.669 | AK59: 1383285.37 | AL59: 1798270.981
B60: Net MooR | C60: =C57-C59 -> 4074 | D60: 4888.8 | E60: 5866.56 | F60: 8716.032 | G60: 11330.8416 | H60: 14730.09408 | I60: 18044.36525 | J60: 25262.11135 | K60: 35366.95589 | L60: 65681.4895 | M60: 85385.93635 | N60: 111001.7173 | O60: =O57-O59 -> 93241.4425 | P60: 111889.731 | Q60: 134267.6772 | R60: 199483.4061 | S60: 259328.428 | T60: 337126.9563 | U60: 412980.5215 | V60: 578172.7301 | W60: 809441.8222 | X60: 1503249.098 | Y60: 1954223.828 | Z60: 2540490.976 | AA60: 2134012.42 | AB60: 2560814.904 | AC60: 3072977.885 | AD60: 4565567.143 | AE60: 5935237.286 | AF60: 7715808.472 | AG60: 9451865.378 | AH60: 13232611.53 | AI60: 18525656.14 | AJ60: 34404789.98 | AK60: 44726226.97 | AL60: 58144095.06
B62: Accumulated Net MooR | C62: =C60 -> 4074 | D62: =D60+C62 -> 8962.8 | E62: =E60+D62 -> 14829.36 | F62: 23545.392 | G62: 34876.2336 | H62: 49606.32768 | I62: 67650.69293 | J62: 92912.80428 | K62: 128279.7602 | L62: 193961.2497 | M62: 279347.186 | N62: 390348.9033 | O62: 483590.3458 | P62: 595480.0768 | Q62: 729747.754 | R62: 929231.1601 | S62: 1188559.588 | T62: 1525686.544 | U62: 1938667.066 | V62: 2516839.796 | W62: 3326281.618 | X62: 4829530.717 | Y62: 6783754.544 | Z62: 9324245.521 | AA62: 11458257.94 | AB62: 14019072.84 | AC62: 17092050.73 | AD62: 21657617.87 | AE62: 27592855.16 | AF62: 35308663.63 | AG62: 44760529.01 | AH62: 57993140.54 | AI62: 76518796.68 | AJ62: 110923586.7 | AK62: 155649813.6 | AL62: 213793908.7
A64: COSTS OF GOOD SOLD
A66: Cost of goods sold per transaction
B67: =COST_Hypothesis!B3 -> Manufacturing cost | C67: =C$17*COST_Hypothesis!$H3*C$18 -> 420 | D67: =D$17*COST_Hypothesis!$H3*D$18 -> 504 | E67: =E$17*COST_Hypothesis!$H3*E$18 -> 604.8 | F67: =F$17*COST_Hypothesis!$H3*F$18 -> 898.56 | G67: =G$17*COST_Hypothesis!$H3*G$18 -> 1168.128 | H67: =H$17*COST_Hypothesis!$H3*H$18 -> 1518.5664 | I67: =I$17*COST_Hypothesis!$H3*I$18 -> 1860.24384 | J67: =J$17*COST_Hypothesis!$H3*J$18 -> 2604.341376 | K67: =K$17*COST_Hypothesis!$H3*K$18 -> 3646.077926 | L67: =L$17*COST_Hypothesis!$H3*L$18 -> 6771.287578 | M67: =M$17*COST_Hypothesis!$H3*M$18 -> 8802.673851 | N67: =N$17*COST_Hypothesis!$H3*N$18 -> 11443.47601 | O67: =O$17*COST_Hypothesis!$H3*O$18 -> 9612.519845 | P67: =P$17*COST_Hypothesis!$H3*P$18 -> 11535.02381 | Q67: =Q$17*COST_Hypothesis!$H3*Q$18 -> 13842.02858 | R67: =R$17*COST_Hypothesis!$H3*R$18 -> 20565.2996 | S67: =S$17*COST_Hypothesis!$H3*S$18 -> 26734.88948 | T67: =T$17*COST_Hypothesis!$H3*T$18 -> 34755.35632 | U67: =U$17*COST_Hypothesis!$H3*U$18 -> 42575.3115 | V67: =V$17*COST_Hypothesis!$H3*V$18 -> 59605.4361 | W67: =W$17*COST_Hypothesis!$H3*W$18 -> 83447.61053 | X67: =X$17*COST_Hypothesis!$H3*X$18 -> 154974.1338 | Y67: =Y$17*COST_Hypothesis!$H3*Y$18 -> 201466.374 | Z67: =Z$17*COST_Hypothesis!$H3*Z$18 -> 261906.2862 | AA67: =AA$17*COST_Hypothesis!$H3*AA$18 -> 220001.2804 | AB67: =AB$17*COST_Hypothesis!$H3*AB$18 -> 264001.5365 | AC67: =AC$17*COST_Hypothesis!$H3*AC$18 -> 316801.8438 | AD67: =AD$17*COST_Hypothesis!$H3*AD$18 -> 470677.0251 | AE67: =AE$17*COST_Hypothesis!$H3*AE$18 -> 611880.1326 | AF67: =AF$17*COST_Hypothesis!$H3*AF$18 -> 795444.1724 | AG67: =AG$17*COST_Hypothesis!$H3*AG$18 -> 974419.1111 | AH67: =AH$17*COST_Hypothesis!$H3*AH$18 -> 1364186.756 | AI67: =AI$17*COST_Hypothesis!$H3*AI$18 -> 1909861.458 | AJ67: =AJ$17*COST_Hypothesis!$H3*AJ$18 -> 3546885.565 | AK67: =AK$17*COST_Hypothesis!$H3*AK$18 -> 4610951.234 | AL67: =AL$17*COST_Hypothesis!$H3*AL$18 -> 5994236.604
B68: =COST_Hypothesis!B4 -> Assembly cost | C68: =C$17*COST_Hypothesis!$H4*C$18 -> 420 | D68: =D$17*COST_Hypothesis!$H4*D$18 -> 504 | E68: =E$17*COST_Hypothesis!$H4*E$18 -> 604.8 | F68: =F$17*COST_Hypothesis!$H4*F$18 -> 898.56 | G68: =G$17*COST_Hypothesis!$H4*G$18 -> 1168.128 | H68: =H$17*COST_Hypothesis!$H4*H$18 -> 1518.5664 | I68: =I$17*COST_Hypothesis!$H4*I$18 -> 1860.24384 | J68: =J$17*COST_Hypothesis!$H4*J$18 -> 2604.341376 | K68: =K$17*COST_Hypothesis!$H4*K$18 -> 3646.077926 | L68: =L$17*COST_Hypothesis!$H4*L$18 -> 6771.287578 | M68: =M$17*COST_Hypothesis!$H4*M$18 -> 8802.673851 | N68: =N$17*COST_Hypothesis!$H4*N$18 -> 11443.47601 | O68: =O$17*COST_Hypothesis!$H4*O$18 -> 9612.519845 | P68: =P$17*COST_Hypothesis!$H4*P$18 -> 11535.02381 | Q68: =Q$17*COST_Hypothesis!$H4*Q$18 -> 13842.02858 | R68: =R$17*COST_Hypothesis!$H4*R$18 -> 20565.2996 | S68: =S$17*COST_Hypothesis!$H4*S$18 -> 26734.88948 | T68: =T$17*COST_Hypothesis!$H4*T$18 -> 34755.35632 | U68: =U$17*COST_Hypothesis!$H4*U$18 -> 42575.3115 | V68: =V$17*COST_Hypothesis!$H4*V$18 -> 59605.4361 | W68: =W$17*COST_Hypothesis!$H4*W$18 -> 83447.61053 | X68: =X$17*COST_Hypothesis!$H4*X$18 -> 154974.1338 | Y68: =Y$17*COST_Hypothesis!$H4*Y$18 -> 201466.374 | Z68: =Z$17*COST_Hypothesis!$H4*Z$18 -> 261906.2862 | AA68: =AA$17*COST_Hypothesis!$H4*AA$18 -> 220001.2804 | AB68: =AB$17*COST_Hypothesis!$H4*AB$18 -> 264001.5365 | AC68: =AC$17*COST_Hypothesis!$H4*AC$18 -> 316801.8438 | AD68: =AD$17*COST_Hypothesis!$H4*AD$18 -> 470677.0251 | AE68: =AE$17*COST_Hypothesis!$H4*AE$18 -> 611880.1326 | AF68: =AF$17*COST_Hypothesis!$H4*AF$18 -> 795444.1724 | AG68: =AG$17*COST_Hypothesis!$H4*AG$18 -> 974419.1111 | AH68: =AH$17*COST_Hypothesis!$H4*AH$18 -> 1364186.756 | AI68: =AI$17*COST_Hypothesis!$H4*AI$18 -> 1909861.458 | AJ68: =AJ$17*COST_Hypothesis!$H4*AJ$18 -> 3546885.565 | AK68: =AK$17*COST_Hypothesis!$H4*AK$18 -> 4610951.234 | AL68: =AL$17*COST_Hypothesis!$H4*AL$18 -> 5994236.604
B69: =COST_Hypothesis!B5 -> Packaging cost | C69: =C$17*COST_Hypothesis!$H5*C$18 -> 840 | D69: =D$17*COST_Hypothesis!$H5*D$18 -> 1008 | E69: =E$17*COST_Hypothesis!$H5*E$18 -> 1209.6 | F69: =F$17*COST_Hypothesis!$H5*F$18 -> 1797.12 | G69: =G$17*COST_Hypothesis!$H5*G$18 -> 2336.256 | H69: =H$17*COST_Hypothesis!$H5*H$18 -> 3037.1328 | I69: =I$17*COST_Hypothesis!$H5*I$18 -> 3720.48768 | J69: =J$17*COST_Hypothesis!$H5*J$18 -> 5208.682752 | K69: =K$17*COST_Hypothesis!$H5*K$18 -> 7292.155853 | L69: =L$17*COST_Hypothesis!$H5*L$18 -> 13542.57516 | M69: =M$17*COST_Hypothesis!$H5*M$18 -> 17605.3477 | N69: =N$17*COST_Hypothesis!$H5*N$18 -> 22886.95201 | O69: =O$17*COST_Hypothesis!$H5*O$18 -> 19225.03969 | P69: =P$17*COST_Hypothesis!$H5*P$18 -> 23070.04763 | Q69: =Q$17*COST_Hypothesis!$H5*Q$18 -> 27684.05715 | R69: =R$17*COST_Hypothesis!$H5*R$18 -> 41130.5992 | S69: =S$17*COST_Hypothesis!$H5*S$18 -> 53469.77896 | T69: =T$17*COST_Hypothesis!$H5*T$18 -> 69510.71265 | U69: =U$17*COST_Hypothesis!$H5*U$18 -> 85150.62299 | V69: =V$17*COST_Hypothesis!$H5*V$18 -> 119210.8722 | W69: =W$17*COST_Hypothesis!$H5*W$18 -> 166895.2211 | X69: =X$17*COST_Hypothesis!$H5*X$18 -> 309948.2677 | Y69: =Y$17*COST_Hypothesis!$H5*Y$18 -> 402932.748 | Z69: =Z$17*COST_Hypothesis!$H5*Z$18 -> 523812.5724 | AA69: =AA$17*COST_Hypothesis!$H5*AA$18 -> 440002.5608 | AB69: =AB$17*COST_Hypothesis!$H5*AB$18 -> 528003.073 | AC69: =AC$17*COST_Hypothesis!$H5*AC$18 -> 633603.6876 | AD69: =AD$17*COST_Hypothesis!$H5*AD$18 -> 941354.0501 | AE69: =AE$17*COST_Hypothesis!$H5*AE$18 -> 1223760.265 | AF69: =AF$17*COST_Hypothesis!$H5*AF$18 -> 1590888.345 | AG69: =AG$17*COST_Hypothesis!$H5*AG$18 -> 1948838.222 | AH69: =AH$17*COST_Hypothesis!$H5*AH$18 -> 2728373.511 | AI69: =AI$17*COST_Hypothesis!$H5*AI$18 -> 3819722.916 | AJ69: =AJ$17*COST_Hypothesis!$H5*AJ$18 -> 7093771.129 | AK69: =AK$17*COST_Hypothesis!$H5*AK$18 -> 9221902.468 | AL69: =AL$17*COST_Hypothesis!$H5*AL$18 -> 11988473.21
B70: =COST_Hypothesis!B6 -> Warehouse cost | C70: =C$17*COST_Hypothesis!$H6*C$18 -> 0 | D70: =D$17*COST_Hypothesis!$H6*D$18 -> 0 | E70: =E$17*COST_Hypothesis!$H6*E$18 -> 0 | F70: =F$17*COST_Hypothesis!$H6*F$18 -> 0 | G70: =G$17*COST_Hypothesis!$H6*G$18 -> 0 | H70: =H$17*COST_Hypothesis!$H6*H$18 -> 0 | I70: =I$17*COST_Hypothesis!$H6*I$18 -> 0 | J70: =J$17*COST_Hypothesis!$H6*J$18 -> 0 | K70: =K$17*COST_Hypothesis!$H6*K$18 -> 0 | L70: =L$17*COST_Hypothesis!$H6*L$18 -> 0 | M70: =M$17*COST_Hypothesis!$H6*M$18 -> 0 | N70: =N$17*COST_Hypothesis!$H6*N$18 -> 0 | O70: =O$17*COST_Hypothesis!$H6*O$18 -> 0 | P70: =P$17*COST_Hypothesis!$H6*P$18 -> 0 | Q70: =Q$17*COST_Hypothesis!$H6*Q$18 -> 0 | R70: =R$17*COST_Hypothesis!$H6*R$18 -> 0 | S70: =S$17*COST_Hypothesis!$H6*S$18 -> 0 | T70: =T$17*COST_Hypothesis!$H6*T$18 -> 0 | U70: =U$17*COST_Hypothesis!$H6*U$18 -> 0 | V70: =V$17*COST_Hypothesis!$H6*V$18 -> 0 | W70: =W$17*COST_Hypothesis!$H6*W$18 -> 0 | X70: =X$17*COST_Hypothesis!$H6*X$18 -> 0 | Y70: =Y$17*COST_Hypothesis!$H6*Y$18 -> 0 | Z70: =Z$17*COST_Hypothesis!$H6*Z$18 -> 0 | AA70: =AA$17*COST_Hypothesis!$H6*AA$18 -> 0 | AB70: =AB$17*COST_Hypothesis!$H6*AB$18 -> 0 | AC70: =AC$17*COST_Hypothesis!$H6*AC$18 -> 0 | AD70: =AD$17*COST_Hypothesis!$H6*AD$18 -> 0 | AE70: =AE$17*COST_Hypothesis!$H6*AE$18 -> 0 | AF70: =AF$17*COST_Hypothesis!$H6*AF$18 -> 0 | AG70: =AG$17*COST_Hypothesis!$H6*AG$18 -> 0 | AH70: =AH$17*COST_Hypothesis!$H6*AH$18 -> 0 | AI70: =AI$17*COST_Hypothesis!$H6*AI$18 -> 0 | AJ70: =AJ$17*COST_Hypothesis!$H6*AJ$18 -> 0 | AK70: =AK$17*COST_Hypothesis!$H6*AK$18 -> 0 | AL70: =AL$17*COST_Hypothesis!$H6*AL$18 -> 0
B71: =COST_Hypothesis!B7 -> Delivery cost | C71: =C$17*COST_Hypothesis!$H7*C$18 -> 630 | D71: =D$17*COST_Hypothesis!$H7*D$18 -> 756 | E71: =E$17*COST_Hypothesis!$H7*E$18 -> 907.2 | F71: =F$17*COST_Hypothesis!$H7*F$18 -> 1347.84 | G71: =G$17*COST_Hypothesis!$H7*G$18 -> 1752.192 | H71: =H$17*COST_Hypothesis!$H7*H$18 -> 2277.8496 | I71: =I$17*COST_Hypothesis!$H7*I$18 -> 2790.36576 | J71: =J$17*COST_Hypothesis!$H7*J$18 -> 3906.512064 | K71: =K$17*COST_Hypothesis!$H7*K$18 -> 5469.11689 | L71: =L$17*COST_Hypothesis!$H7*L$18 -> 10156.93137 | M71: =M$17*COST_Hypothesis!$H7*M$18 -> 13204.01078 | N71: =N$17*COST_Hypothesis!$H7*N$18 -> 17165.21401 | O71: =O$17*COST_Hypothesis!$H7*O$18 -> 14418.77977 | P71: =P$17*COST_Hypothesis!$H7*P$18 -> 17302.53572 | Q71: =Q$17*COST_Hypothesis!$H7*Q$18 -> 20763.04287 | R71: =R$17*COST_Hypothesis!$H7*R$18 -> 30847.9494 | S71: =S$17*COST_Hypothesis!$H7*S$18 -> 40102.33422 | T71: =T$17*COST_Hypothesis!$H7*T$18 -> 52133.03449 | U71: =U$17*COST_Hypothesis!$H7*U$18 -> 63862.96725 | V71: =V$17*COST_Hypothesis!$H7*V$18 -> 89408.15414 | W71: =W$17*COST_Hypothesis!$H7*W$18 -> 125171.4158 | X71: =X$17*COST_Hypothesis!$H7*X$18 -> 232461.2008 | Y71: =Y$17*COST_Hypothesis!$H7*Y$18 -> 302199.561 | Z71: =Z$17*COST_Hypothesis!$H7*Z$18 -> 392859.4293 | AA71: =AA$17*COST_Hypothesis!$H7*AA$18 -> 330001.9206 | AB71: =AB$17*COST_Hypothesis!$H7*AB$18 -> 396002.3047 | AC71: =AC$17*COST_Hypothesis!$H7*AC$18 -> 475202.7657 | AD71: =AD$17*COST_Hypothesis!$H7*AD$18 -> 706015.5376 | AE71: =AE$17*COST_Hypothesis!$H7*AE$18 -> 917820.1989 | AF71: =AF$17*COST_Hypothesis!$H7*AF$18 -> 1193166.259 | AG71: =AG$17*COST_Hypothesis!$H7*AG$18 -> 1461628.667 | AH71: =AH$17*COST_Hypothesis!$H7*AH$18 -> 2046280.133 | AI71: =AI$17*COST_Hypothesis!$H7*AI$18 -> 2864792.187 | AJ71: =AJ$17*COST_Hypothesis!$H7*AJ$18 -> 5320328.347 | AK71: =AK$17*COST_Hypothesis!$H7*AK$18 -> 6916426.851 | AL71: =AL$17*COST_Hypothesis!$H7*AL$18 -> 8991354.906
B72: =COST_Hypothesis!B8 -> Exporting cost | C72: =C$17*COST_Hypothesis!$H8*C$18 -> 0 | D72: =D$17*COST_Hypothesis!$H8*D$18 -> 0 | E72: =E$17*COST_Hypothesis!$H8*E$18 -> 0 | F72: =F$17*COST_Hypothesis!$H8*F$18 -> 0 | G72: =G$17*COST_Hypothesis!$H8*G$18 -> 0 | H72: =H$17*COST_Hypothesis!$H8*H$18 -> 0 | I72: =I$17*COST_Hypothesis!$H8*I$18 -> 0 | J72: =J$17*COST_Hypothesis!$H8*J$18 -> 0 | K72: =K$17*COST_Hypothesis!$H8*K$18 -> 0 | L72: =L$17*COST_Hypothesis!$H8*L$18 -> 0 | M72: =M$17*COST_Hypothesis!$H8*M$18 -> 0 | N72: =N$17*COST_Hypothesis!$H8*N$18 -> 0 | O72: =O$17*COST_Hypothesis!$H8*O$18 -> 0 | P72: =P$17*COST_Hypothesis!$H8*P$18 -> 0 | Q72: =Q$17*COST_Hypothesis!$H8*Q$18 -> 0 | R72: =R$17*COST_Hypothesis!$H8*R$18 -> 0 | S72: =S$17*COST_Hypothesis!$H8*S$18 -> 0 | T72: =T$17*COST_Hypothesis!$H8*T$18 -> 0 | U72: =U$17*COST_Hypothesis!$H8*U$18 -> 0 | V72: =V$17*COST_Hypothesis!$H8*V$18 -> 0 | W72: =W$17*COST_Hypothesis!$H8*W$18 -> 0 | X72: =X$17*COST_Hypothesis!$H8*X$18 -> 0 | Y72: =Y$17*COST_Hypothesis!$H8*Y$18 -> 0 | Z72: =Z$17*COST_Hypothesis!$H8*Z$18 -> 0 | AA72: =AA$17*COST_Hypothesis!$H8*AA$18 -> 0 | AB72: =AB$17*COST_Hypothesis!$H8*AB$18 -> 0 | AC72: =AC$17*COST_Hypothesis!$H8*AC$18 -> 0 | AD72: =AD$17*COST_Hypothesis!$H8*AD$18 -> 0 | AE72: =AE$17*COST_Hypothesis!$H8*AE$18 -> 0 | AF72: =AF$17*COST_Hypothesis!$H8*AF$18 -> 0 | AG72: =AG$17*COST_Hypothesis!$H8*AG$18 -> 0 | AH72: =AH$17*COST_Hypothesis!$H8*AH$18 -> 0 | AI72: =AI$17*COST_Hypothesis!$H8*AI$18 -> 0 | AJ72: =AJ$17*COST_Hypothesis!$H8*AJ$18 -> 0 | AK72: =AK$17*COST_Hypothesis!$H8*AK$18 -> 0 | AL72: =AL$17*COST_Hypothesis!$H8*AL$18 -> 0
B73: =COST_Hypothesis!B9 -> Maintenance cost | C73: =C$17*COST_Hypothesis!$H9*C$18 -> 630 | D73: =D$17*COST_Hypothesis!$H9*D$18 -> 756 | E73: =E$17*COST_Hypothesis!$H9*E$18 -> 907.2 | F73: =F$17*COST_Hypothesis!$H9*F$18 -> 1347.84 | G73: =G$17*COST_Hypothesis!$H9*G$18 -> 1752.192 | H73: =H$17*COST_Hypothesis!$H9*H$18 -> 2277.8496 | I73: =I$17*COST_Hypothesis!$H9*I$18 -> 2790.36576 | J73: =J$17*COST_Hypothesis!$H9*J$18 -> 3906.512064 | K73: =K$17*COST_Hypothesis!$H9*K$18 -> 5469.11689 | L73: =L$17*COST_Hypothesis!$H9*L$18 -> 10156.93137 | M73: =M$17*COST_Hypothesis!$H9*M$18 -> 13204.01078 | N73: =N$17*COST_Hypothesis!$H9*N$18 -> 17165.21401 | O73: =O$17*COST_Hypothesis!$H9*O$18 -> 14418.77977 | P73: =P$17*COST_Hypothesis!$H9*P$18 -> 17302.53572 | Q73: =Q$17*COST_Hypothesis!$H9*Q$18 -> 20763.04287 | R73: =R$17*COST_Hypothesis!$H9*R$18 -> 30847.9494 | S73: =S$17*COST_Hypothesis!$H9*S$18 -> 40102.33422 | T73: =T$17*COST_Hypothesis!$H9*T$18 -> 52133.03449 | U73: =U$17*COST_Hypothesis!$H9*U$18 -> 63862.96725 | V73: =V$17*COST_Hypothesis!$H9*V$18 -> 89408.15414 | W73: =W$17*COST_Hypothesis!$H9*W$18 -> 125171.4158 | X73: =X$17*COST_Hypothesis!$H9*X$18 -> 232461.2008 | Y73: =Y$17*COST_Hypothesis!$H9*Y$18 -> 302199.561 | Z73: =Z$17*COST_Hypothesis!$H9*Z$18 -> 392859.4293 | AA73: =AA$17*COST_Hypothesis!$H9*AA$18 -> 330001.9206 | AB73: =AB$17*COST_Hypothesis!$H9*AB$18 -> 396002.3047 | AC73: =AC$17*COST_Hypothesis!$H9*AC$18 -> 475202.7657 | AD73: =AD$17*COST_Hypothesis!$H9*AD$18 -> 706015.5376 | AE73: =AE$17*COST_Hypothesis!$H9*AE$18 -> 917820.1989 | AF73: =AF$17*COST_Hypothesis!$H9*AF$18 -> 1193166.259 | AG73: =AG$17*COST_Hypothesis!$H9*AG$18 -> 1461628.667 | AH73: =AH$17*COST_Hypothesis!$H9*AH$18 -> 2046280.133 | AI73: =AI$17*COST_Hypothesis!$H9*AI$18 -> 2864792.187 | AJ73: =AJ$17*COST_Hypothesis!$H9*AJ$18 -> 5320328.347 | AK73: =AK$17*COST_Hypothesis!$H9*AK$18 -> 6916426.851 | AL73: =AL$17*COST_Hypothesis!$H9*AL$18 -> 8991354.906
B74: =COST_Hypothesis!B10 -> Hosting cost | C74: =C$17*COST_Hypothesis!$H10*C$18 -> 0 | D74: =D$17*COST_Hypothesis!$H10*D$18 -> 0 | E74: =E$17*COST_Hypothesis!$H10*E$18 -> 0 | F74: =F$17*COST_Hypothesis!$H10*F$18 -> 0 | G74: =G$17*COST_Hypothesis!$H10*G$18 -> 0 | H74: =H$17*COST_Hypothesis!$H10*H$18 -> 0 | I74: =I$17*COST_Hypothesis!$H10*I$18 -> 0 | J74: =J$17*COST_Hypothesis!$H10*J$18 -> 0 | K74: =K$17*COST_Hypothesis!$H10*K$18 -> 0 | L74: =L$17*COST_Hypothesis!$H10*L$18 -> 0 | M74: =M$17*COST_Hypothesis!$H10*M$18 -> 0 | N74: =N$17*COST_Hypothesis!$H10*N$18 -> 0 | O74: =O$17*COST_Hypothesis!$H10*O$18 -> 0 | P74: =P$17*COST_Hypothesis!$H10*P$18 -> 0 | Q74: =Q$17*COST_Hypothesis!$H10*Q$18 -> 0 | R74: =R$17*COST_Hypothesis!$H10*R$18 -> 0 | S74: =S$17*COST_Hypothesis!$H10*S$18 -> 0 | T74: =T$17*COST_Hypothesis!$H10*T$18 -> 0 | U74: =U$17*COST_Hypothesis!$H10*U$18 -> 0 | V74: =V$17*COST_Hypothesis!$H10*V$18 -> 0 | W74: =W$17*COST_Hypothesis!$H10*W$18 -> 0 | X74: =X$17*COST_Hypothesis!$H10*X$18 -> 0 | Y74: =Y$17*COST_Hypothesis!$H10*Y$18 -> 0 | Z74: =Z$17*COST_Hypothesis!$H10*Z$18 -> 0 | AA74: =AA$17*COST_Hypothesis!$H10*AA$18 -> 0 | AB74: =AB$17*COST_Hypothesis!$H10*AB$18 -> 0 | AC74: =AC$17*COST_Hypothesis!$H10*AC$18 -> 0 | AD74: =AD$17*COST_Hypothesis!$H10*AD$18 -> 0 | AE74: =AE$17*COST_Hypothesis!$H10*AE$18 -> 0 | AF74: =AF$17*COST_Hypothesis!$H10*AF$18 -> 0 | AG74: =AG$17*COST_Hypothesis!$H10*AG$18 -> 0 | AH74: =AH$17*COST_Hypothesis!$H10*AH$18 -> 0 | AI74: =AI$17*COST_Hypothesis!$H10*AI$18 -> 0 | AJ74: =AJ$17*COST_Hypothesis!$H10*AJ$18 -> 0 | AK74: =AK$17*COST_Hypothesis!$H10*AK$18 -> 0 | AL74: =AL$17*COST_Hypothesis!$H10*AL$18 -> 0
B75: Total cost of Good Sold 2 | C75: =SUM(C67:C74) -> 2940 | D75: 3528 | E75: 4233.6 | F75: 6289.92 | G75: 8176.896 | H75: 10629.9648 | I75: 13021.70688 | J75: 18230.38963 | K75: 25522.54548 | L75: 47399.01304 | M75: 61618.71696 | N75: 80104.33204 | O75: =SUM(O67:O74) -> 67287.63892 | P75: 80745.1667 | Q75: 96894.20004 | R75: 143957.0972 | S75: 187144.2264 | T75: 243287.4943 | U75: 298027.1805 | V75: 417238.0527 | W75: 584133.2737 | X75: 1084818.937 | Y75: 1410264.618 | Z75: 1833344.003 | AA75: 1540008.963 | AB75: 1848010.755 | AC75: 2217612.907 | AD75: 3294739.175 | AE75: 4283160.928 | AF75: 5568109.207 | AG75: 6820933.778 | AH75: 9549307.289 | AI75: 13369030.2 | AJ75: 24828198.95 | AK75: 32276658.64 | AL75: 41959656.23
B77: Accumulated Cost of Good Sold 2 | C77: =C75 -> 2940 | D77: =C77+D75 -> 6468 | E77: =D77+E75 -> 10701.6 | F77: 16991.52 | G77: 25168.416 | H77: 35798.3808 | I77: 48820.08768 | J77: 67050.47731 | K77: 92573.0228 | L77: 139972.0358 | M77: 201590.7528 | N77: 281695.0848 | O77: 348982.7238 | P77: 429727.8905 | Q77: 526622.0905 | R77: 670579.1877 | S77: 857723.4141 | T77: 1101010.908 | U77: 1399038.089 | V77: 1816276.141 | W77: 2400409.415 | X77: 3485228.352 | Y77: 4895492.97 | Z77: 6728836.974 | AA77: 8268845.937 | AB77: 10116856.69 | AC77: 12334469.6 | AD77: 15629208.77 | AE77: 19912369.7 | AF77: 25480478.91 | AG77: 32301412.69 | AH77: 41850719.98 | AI77: 55219750.18 | AJ77: 80047949.13 | AK77: 112324607.8 | AL77: 154284264
A79: PROFIT & LOSS
A81: Revenue
B82: Gross MRR+Gross MooR | C82: =C24+C57 -> 11760 | D82: 17337.6 | E82: 23901.696 | F82: 35289.28512 | G82: 48877.13457 | H82: 66451.30693 | I82: 86932.55044 | J82: 118367.0362 | K82: 162475.4723 | L82: 258920.1507 | M82: 363436.6065 | N82: 498771.1907 | O82: =O24+O57 -> 561213.3703 | P82: 677185.1213 | Q82: 816202.0594 | R82: 1068754.312 | S82: 1371906.067 | T82: 1766527.583 | U82: 2227911.029 | V82: 2940201.899 | W82: 3942775.322 | X82: 6145615.91 | Y82: 8533284.56 | Z82: 11626374.13 | AA82: 13047044.42 | AB82: 15693181.08 | AC82: 18867075.97 | AD82: 24641626.3 | AE82: 31574413.02 | AF82: 40600826.79 | AG82: 51155375.74 | AH82: 67452584.2 | AI82: 90393624.3 | AJ82: 140806820.8 | AK82: 195450230.6 | AL82: 266238635.9
A83: Costs of Good sold
B84: Total costs of Good Sold (1+2) | C84: =C75+C42 -> 5712 | D84: 6854.4 | E84: 8225.28 | F84: 12220.416 | G84: 15886.5408 | H84: 20652.50304 | I84: 25299.31622 | J84: 35419.04271 | K84: 49586.6598 | L84: 92089.51106 | M84: 119716.3644 | N84: 155631.2737 | O84: =O75+O42 -> 130730.2699 | P84: 156876.3239 | Q84: 188251.5886 | R84: 279688.0746 | S84: 363594.4969 | T84: 472672.846 | U84: 579024.2364 | V84: 810633.9309 | W84: 1134887.503 | X84: 2107648.22 | Y84: 2739942.686 | Z84: 3561925.492 | AA84: 2992017.414 | AB84: 3590420.896 | AC84: 4308505.076 | AD84: 6401207.541 | AE84: 8321569.803 | AF84: 10818040.74 | AG84: 13252099.91 | AH84: 18552939.88 | AI84: 25974115.83 | AJ84: 48237643.68 | AK84: 62708936.78 | AL84: 81521617.82
A85: Gross Profit
B86: Gross Profit | C86: =C82-C84 -> 6048 | D86: =D82-D84 -> 10483.2 | E86: 15676.416 | F86: 23068.86912 | G86: 32990.59377 | H86: 45798.80389 | I86: 61633.23422 | J86: 82947.99349 | K86: 112888.8125 | L86: 166830.6397 | M86: 243720.2421 | N86: 343139.917 | O86: =O82-O84 -> 430483.1004 | P86: =P82-P84 -> 520308.7974 | Q86: 627950.4707 | R86: 789066.2378 | S86: 1008311.57 | T86: 1293854.737 | U86: 1648886.793 | V86: 2129567.968 | W86: 2807887.819 | X86: 4037967.689 | Y86: 5793341.873 | Z86: 8064448.635 | AA86: =AA82-AA84 -> 10055027.01 | AB86: =AB82-AB84 -> 12102760.19 | AC86: 14558570.89 | AD86: 18240418.76 | AE86: 23252843.22 | AF86: 29782786.05 | AG86: 37903275.83 | AH86: 48899644.33 | AI86: 64419508.48 | AJ86: 92569177.14 | AK86: 132741293.8 | AL86: 184717018.1
B87: % margin | C87: =1-C84/C82 -> 0.5142857143 | D87: =1-D84/D82 -> 0.6046511628 | E87: 0.6558704453 | F87: 0.6537074651 | G87: 0.6749698823 | H87: 0.6892084747 | I87: 0.7089776373 | J87: 0.7007693708 | K87: 0.6948052583 | L87: 0.6443323905 | M87: 0.6705990474 | N87: 0.6879706034 | O87: =1-O84/O82 -> 0.7670578129 | P87: =1-P84/P82 -> 0.7683405631 | Q87: 0.769356636 | R87: 0.7383046119 | S87: 0.7349712886 | T87: 0.7324282674 | U87: 0.7401044167 | V87: 0.7242931068 | W87: 0.7121602398 | X87: 0.6570484958 | Y87: 0.6789111312 | Z87: 0.6936340209 | AA87: =1-AA84/AA82 -> 0.7706746971 | AB87: =1-AB84/AB82 -> 0.7712114021 | AC87: 0.7716389607 | AD87: 0.7402278785 | AE87: 0.7364457798 | AF87: 0.7335512205 | AG87: 0.7409441389 | AH87: 0.7249484198 | AI87: 0.7126554442 | AJ87: 0.6574196946 | AK87: 0.6791564962 | AL87: 0.6938024508
A88: Operating Expenses
A89: (acquisition cost, intermediation cost) | B89: Sales & Marketing | C89: =COST_Hypothesis!$C15+COST_Hypothesis!$C16+COST_Hypothesis!D15+COST_Hypothesis!D16 -> 50000 | D89: =C89 -> 50000 | E89: =D89 -> 50000 | F89: 50000 | G89: 50000 | H89: 50000 | I89: 50000 | J89: 50000 | K89: 50000 | L89: 50000 | M89: 50000 | N89: 50000 | O89: =N89 -> 50000 | P89: =O89 -> 50000 | Q89: =P89 -> 50000 | R89: =Q89 -> 50000 | S89: =R89 -> 50000 | T89: =S89 -> 50000 | U89: =T89 -> 50000 | V89: =U89 -> 50000 | W89: =V89 -> 50000 | X89: =W89 -> 50000 | Y89: =X89 -> 50000 | Z89: =Y89 -> 50000 | AA89: =Z89 -> 50000 | AB89: =AA89 -> 50000 | AC89: =AB89 -> 50000 | AD89: =AC89 -> 50000 | AE89: =AD89 -> 50000 | AF89: =AE89 -> 50000 | AG89: =AF89 -> 50000 | AH89: =AG89 -> 50000 | AI89: =AH89 -> 50000 | AJ89: =AI89 -> 50000 | AK89: =AJ89 -> 50000 | AL89: =AK89 -> 50000
B90: % of Revenues | C90: =C89/C82 -> 4.25170068 | D90: =D89/D82 -> 2.8839055 | E90: 2.091901763 | F90: 1.416860665 | G90: 1.022973225 | H90: 0.752430649 | I90: 0.5751585539 | J90: 0.422414902 | K90: 0.3077387577 | L90: 0.1931097285 | M90: 0.1375755747 | N90: 0.1002463673 | O90: =O89/O82 -> 0.08909267427 | P90: =P89/P82 -> 0.073835054 | Q90: 0.06125934066 | R90: 0.04678343696 | S90: 0.03644564393 | T90: 0.02830411508 | U90: 0.02244254791 | V90: 0.01700563489 | W90: 0.01268142258 | X90: 0.008135881047 | Y90: 0.00585940849 | Z90: 0.004300566922 | AA90: =AA89/AA82 -> 0.003832285564 | AB90: =AB89/AB82 -> 0.00318609718 | AC90: 0.002650119186 | AD90: 0.002029086854 | AE90: 0.001583560713 | AF90: 0.001231502015 | AG90: 0.0009774143827 | AH90: 0.0007412614445 | AI90: 0.0005531363565 | AJ90: 0.0003550964343 | AK90: 0.000255819601 | AL90: 0.000187801443
A92: (updating costs, development cost) | B92: Research & Development | C92: =COST_Hypothesis!$C17+COST_Hypothesis!$C18+COST_Hypothesis!D17+COST_Hypothesis!D18 -> 50000 | D92: =C92 -> 50000 | E92: =D92 -> 50000 | F92: 50000 | G92: 50000 | H92: 50000 | I92: 50000 | J92: 50000 | K92: 50000 | L92: 50000 | M92: 50000 | N92: 50000 | O92: 50000 | P92: 50000 | Q92: 50000 | R92: 50000 | S92: 50000 | T92: 50000 | U92: 50000 | V92: 50000 | W92: 50000 | X92: 50000 | Y92: 50000 | Z92: 50000 | AA92: 50000 | AB92: 50000 | AC92: 50000 | AD92: 50000 | AE92: 50000 | AF92: 50000 | AG92: 50000 | AH92: 50000 | AI92: 50000 | AJ92: 50000 | AK92: 50000 | AL92: 50000
B93: % of Revenues | C93: =C92/C82 -> 4.25170068 | D93: =D92/D82 -> 2.8839055 | E93: 2.091901763 | F93: 1.416860665 | G93: 1.022973225 | H93: 0.752430649 | I93: 0.5751585539 | J93: 0.422414902 | K93: 0.3077387577 | L93: 0.1931097285 | M93: 0.1375755747 | N93: 0.1002463673 | O93: =O92/O82 -> 0.08909267427 | P93: =P92/P82 -> 0.073835054 | Q93: 0.06125934066 | R93: 0.04678343696 | S93: 0.03644564393 | T93: 0.02830411508 | U93: 0.02244254791 | V93: 0.01700563489 | W93: 0.01268142258 | X93: 0.008135881047 | Y93: 0.00585940849 | Z93: 0.004300566922 | AA93: =AA92/AA82 -> 0.003832285564 | AB93: =AB92/AB82 -> 0.00318609718 | AC93: 0.002650119186 | AD93: 0.002029086854 | AE93: 0.001583560713 | AF93: 0.001231502015 | AG93: 0.0009774143827 | AH93: 0.0007412614445 | AI93: 0.0005531363565 | AJ93: 0.0003550964343 | AK93: 0.000255819601 | AL93: 0.000187801443
A95: (running cost) | B95: General & Administrative | C95: =COST_Hypothesis!C14+COST_Hypothesis!D14 -> 25000 | D95: =C95 -> 25000 | E95: =D95 -> 25000 | F95: 25000 | G95: 25000 | H95: 25000 | I95: 25000 | J95: 25000 | K95: 25000 | L95: 25000 | M95: 25000 | N95: 25000 | O95: =N95 -> 25000 | P95: =O95 -> 25000 | Q95: =P95 -> 25000 | R95: =Q95 -> 25000 | S95: =R95 -> 25000 | T95: =S95 -> 25000 | U95: =T95 -> 25000 | V95: =U95 -> 25000 | W95: =V95 -> 25000 | X95: =W95 -> 25000 | Y95: =X95 -> 25000 | Z95: =Y95 -> 25000 | AA95: =Z95 -> 25000 | AB95: =AA95 -> 25000 | AC95: =AB95 -> 25000 | AD95: =AC95 -> 25000 | AE95: =AD95 -> 25000 | AF95: =AE95 -> 25000 | AG95: =AF95 -> 25000 | AH95: =AG95 -> 25000 | AI95: =AH95 -> 25000 | AJ95: =AI95 -> 25000 | AK95: =AJ95 -> 25000 | AL95: =AK95 -> 25000
B96: % of Revenues | C96: =C95/C82 -> 2.12585034 | D96: =D95/D82 -> 1.44195275 | E96: 1.045950881 | F96: 0.7084303327 | G96: 0.5114866127 | H96: 0.3762153245 | I96: 0.287579277 | J96: 0.211207451 | K96: 0.1538693788 | L96: 0.09655486423 | M96: 0.06878778735 | N96: 0.05012318367 | O96: =O95/O82 -> 0.04454633714 | P96: =P95/P82 -> 0.036917527 | Q96: 0.03062967033 | R96: 0.02339171848 | S96: 0.01822282196 | T96: 0.01415205754 | U96: 0.01122127395 | V96: 0.008502817446 | W96: 0.00634071129 | X96: 0.004067940523 | Y96: 0.002929704245 | Z96: 0.002150283461 | AA96: =AA95/AA82 -> 0.001916142782 | AB96: =AB95/AB82 -> 0.00159304859 | AC96: 0.001325059593 | AD96: 0.001014543427 | AE96: 0.0007917803565 | AF96: 0.0006157510074 | AG96: 0.0004887071913 | AH96: 0.0003706307222 | AI96: 0.0002765681783 | AJ96: 0.0001775482172 | AK96: 0.0001279098005 | AL96: 9.390072148e-05
A97: (payment process cost) | B97: Payment Processing cost | C97: =C26+C59 -> 352.8 | D97: 520.128 | E97: 717.05088 | F97: 1058.678554 | G97: 1466.314037 | H97: 1993.539208 | I97: 2607.976513 | J97: 3551.011086 | K97: 4874.264169 | L97: 7767.604522 | M97: 10903.09819 | N97: 14963.13572 | O97: =O26+O59 -> 16836.40111 | P97: 20315.55364 | Q97: 24486.06178 | R97: 32062.62937 | S97: 41157.182 | T97: 52995.82749 | U97: 66837.33087 | V97: 88206.05696 | W97: 118283.2597 | X97: 184368.4773 | Y97: 255998.5368 | Z97: 348791.2238 | AA97: 391411.3327 | AB97: 470795.4325 | AC97: 566012.279 | AD97: 739248.7891 | AE97: 947232.3907 | AF97: 1218024.804 | AG97: 1534661.272 | AH97: 2023577.526 | AI97: 2711808.729 | AJ97: 4224204.625 | AK97: 5863506.917 | AL97: 7987159.078
B98: % of Revenues | C98: =C97/C82 -> 0.03 | D98: =D97/D82 -> 0.03 | E98: 0.03 | F98: 0.03 | G98: 0.03 | H98: 0.03 | I98: 0.03 | J98: 0.03 | K98: 0.03 | L98: 0.03 | M98: 0.03 | N98: 0.03 | O98: =O97/O82 -> 0.03 | P98: =P97/P82 -> 0.03 | Q98: 0.03 | R98: 0.03 | S98: 0.03 | T98: 0.03 | U98: 0.03 | V98: 0.03 | W98: 0.03 | X98: 0.03 | Y98: 0.03 | Z98: 0.03 | AA98: =AA97/AA82 -> 0.03 | AB98: =AB97/AB82 -> 0.03 | AC98: 0.03 | AD98: 0.03 | AE98: 0.03 | AF98: 0.03 | AG98: 0.03 | AH98: 0.03 | AI98: 0.03 | AJ98: 0.03 | AK98: 0.03 | AL98: 0.03
A99: Total costs | C99: =C97+C84+C89+C92+C95 -> 131064.8 | D99: =D97+D84+D89+D92+D95 -> 132374.528 | E99: 133942.3309 | F99: 138279.0946 | G99: 142352.8548 | H99: 147646.0422 | I99: 152907.2927 | J99: 163970.0538 | K99: 179460.924 | L99: 224857.1156 | M99: 255619.4626 | N99: 295594.4094 | O99: 272566.671 | P99: 302191.8775 | Q99: 337737.6504 | R99: 436750.7039 | S99: 529751.6789 | T99: 650668.6735 | U99: 770861.5672 | V99: 1023839.988 | W99: 1378170.763 | X99: 2417016.698 | Y99: 3120941.223 | Z99: 4035716.716 | AA99: 3508428.746 | AB99: 4186216.329 | AC99: 4999517.355 | AD99: 7265456.33 | AE99: 9393802.194 | AF99: 12161065.55 | AG99: 14911761.18 | AH99: 20701517.4 | AI99: 28810924.56 | AJ99: 52586848.3 | AK99: 68697443.7 | AL99: 89633776.89
B100: Earning Before Interest & Tax | C100: =C86-C89-C92-C95-C97 -> -119304.8 | D100: =D86-D89-D92-D95-D97 -> -115036.928 | E100: -110040.6349 | F100: -102989.8094 | G100: -93475.72027 | H100: -81194.73532 | I100: -65974.7423 | J100: -45603.0176 | K100: -16985.45167 | L100: 34063.03515 | M100: 107817.1439 | N100: 203176.7813 | O100: =O86-O89-O92-O95-O97 -> 288646.6993 | P100: =P86-P89-P92-P95-P97 -> 374993.2438 | Q100: 478464.4089 | R100: 632003.6085 | S100: 842154.3876 | T100: 1115858.91 | U100: 1457049.462 | V100: 1916361.911 | W100: 2564604.559 | X100: 3728599.212 | Y100: 5412343.336 | Z100: 7590657.411 | AA100: =AA86-AA89-AA92-AA95-AA97 -> 9538615.677 | AB100: =AB86-AB89-AB92-AB95-AB97 -> 11506964.76 | AC100: 13867558.61 | AD100: 17376169.97 | AE100: 22180610.83 | AF100: 28439761.25 | AG100: 36243614.56 | AH100: 46751066.8 | AI100: 61582699.75 | AJ100: 88219972.52 | AK100: 126752786.9 | AL100: 176604859

Sheet references
A1: References
A2: The board of innovation: find new revenue models to your idea B2B-B2C
A3: Seizing the white space by Mark Johnson
A4: SaaS Business model. On the cloud, the customer is king (Joel York)
A5: Gary Gaspar (www.marker.io) Early stage SaaS financial plan
A6: https://www.entrepreneurs-journey.com/8127/what-is-b2b/
A7: 50 business models you should copy today: Board of innovation
